Trans No.,Service Area Categorisation,Service Division Categorisation,Responsible Unit,Unit Code,Expenses Type,Expenses Sub Type,Expense Code,Narrative,Amount,Invoice Date,CAP/REV,SupplierName
1,Childrens & Education Services,Strategic Management,DS Director SSR Costs,W0AA01,Supplies & Services           ,Grants and Subscriptions      ,DJ04,Subscriptions                           ,1700.00,16/06/2015,REV,ADASS - DIRECTORS OF ADULT S.S
2,Childrens & Education Services,Other - Other Ch & Fam,CS Short Breaks Day Care                ,W1CA34,Third Party Payments          ,Private Contractors           ,EH01,Miscellaneous Contrct Services          ,1114.99,21/08/2015,REV,SUPER CAMPS                   
3,Childrens & Education Services,Other - Other Ch & Fam,SD Corporate Parenting,W1BF03,Supplies & Services           ,Catering                      ,DB50,Refreshments                            ,651.00,27/08/2015,REV,REDACTED
4,Childrens & Education Services,Family - Other Services,CS Referral & Assessment Sec17,W1CE38,Transfer Payments             ,Schoolchildren/Students       ,FF02,Childr Act 1989 S17                     ,1260.00,08/09/2015,REV,HYTYME B&B                    
5,Childrens & Education Services,Other - Other Ch & Fam,CS Short Breaks Day Care                ,W1CA34,Third Party Payments          ,Private Contractors           ,EH01,Miscellaneous Contrct Services          ,585.00,09/09/2015,REV,YMCA LONDON SOUTH WEST        
6,Childrens & Education Services,Other - Other Ch & Fam,CS Short Breaks Day Care                ,W1CA34,Third Party Payments          ,Private Contractors           ,EH01,Miscellaneous Contrct Services          ,2460.50,27/08/2015,REV,BRADSTOW SCHOOL               
7,Childrens & Education Services,Other - Other Ch & Fam,CS Short Breaks Day Care                ,W1CA34,Third Party Payments          ,Private Contractors           ,EH01,Miscellaneous Contrct Services          ,2460.50,27/08/2015,REV,BRADSTOW SCHOOL               
8,Childrens & Education Services,Other - Other Ch & Fam,CS Short Breaks Day Care                ,W1CA34,Third Party Payments          ,Private Contractors           ,EH01,Miscellaneous Contrct Services          ,577.50,08/09/2015,REV,THE SMARTY CLUB               
9,Childrens & Education Services,Other - Other Ch & Fam,CS Short Breaks Day Care                ,W1CA34,Third Party Payments          ,Private Contractors           ,EH01,Miscellaneous Contrct Services          ,504.00,03/08/2015,REV,TWEEDALE CHILDRENS CENTRE     
10,Childrens & Education Services,CS - Commiss'ing & Social Work,CH Central Services,W1AA00,Employees                     ,Indirect Employee Expenses    ,AB02,Recruitment Adverts                     ,6480.00,29/06/2015,REV,COMPASS CAREER OPPORTUNITIES  
11,Adult Social Care,CS-Commissioning & Social Work,SD NVQ PROGRAMME,W1BA06,Employees                     ,Indirect Employee Expenses    ,AB57,External Training Costs                 ,500.00,12/04/2015,REV,JKB CONSULTING                
12,Adult Social Care,CS-Commissioning & Social Work,SD NVQ PROGRAMME,W1BA06,Employees                     ,Indirect Employee Expenses    ,AB57,External Training Costs                 ,2850.00,03/06/2015,REV,JKB CONSULTING                
13,Childrens & Education Services,Leaving Care Services,"MASH, FR and VCT NRTPF                  ",W1CE39,Third Party Payments          ,Private Contractors           ,EH04,Accommodation Based Support             ,1300.00,07/09/2015,REV,ANDREWS LETTING & MGMENT LTD  
14,Childrens & Education Services,Other Family Support Services,Transforming Families                   ,W1AA05,Supplies & Services           ,Expenses                      ,DH50,Special Projects                        ,2880.00,02/07/2015,REV,WOODHOUSE SUPPORT SERVICES LTD
15,Childrens & Education Services,Family - Other Services,CS SWD Personal support                 ,W1CF49,Third Party Payments          ,Private Contractors           ,EH01,Miscellaneous Contrct Services          ,2559.90,19/08/2015,REV,AMBITION RECRUITMENT          
16,Childrens & Education Services,CS - Commiss'ing & Social Work,CH Central Services,W1AA00,Employees                     ,Indirect Employee Expenses    ,AB02,Recruitment Adverts                     ,2500.00,28/08/2015,REV,WINTERBURN MEDIA LTD          
17,Adult Social Care,CS-Commissioning & Social Work,SD NVQ PROGRAMME,W1BA06,Employees                     ,Indirect Employee Expenses    ,AB57,External Training Costs                 ,10000.00,07/09/2015,REV,LONDON SOUTH BANK UNIVERSITY  
18,Childrens & Education Services,CS - Commiss'ing & Social Work,SEN Reform Grant                        ,W1CF11,Supplies & Services           ,Services                      ,DF09,Miscellaneous Fees                      ,2062.50,06/09/2015,REV,REDACTED
19,Childrens & Education Services,Family - Other Services,CS SWD Personal support                 ,W1CF49,Third Party Payments          ,Private Contractors           ,EH01,Miscellaneous Contrct Services          ,-2559.90,19/08/2015,REV,AMBITION RECRUITMENT          
20,Childrens & Education Services,Family - Other Services,CS SWD Personal support                 ,W1CF49,Third Party Payments          ,Private Contractors           ,EH01,Miscellaneous Contrct Services          ,-2559.90,19/08/2015,REV,AMBITION RECRUITMENT          
21,Childrens & Education Services,Family - Other Services,CS Referral & Assessment Sec17,W1CE38,Transfer Payments             ,Schoolchildren/Students       ,FF02,Childr Act 1989 S17                     ,1080.00,16/09/2015,REV,M K ACCOMMODATION             
22,Childrens & Education Services,Family - Other Services,CS Referral & Assessment Sec17,W1CE38,Transfer Payments             ,Schoolchildren/Students       ,FF02,Childr Act 1989 S17                     ,1166.50,17/09/2015,REV,HOUSING FOR WOMEN             
23,Childrens & Education Services,Family - Other Services,CS Referral & Assessment Sec17,W1CE38,Transfer Payments             ,Schoolchildren/Students       ,FF02,Childr Act 1989 S17                     ,933.20,17/09/2015,REV,HOUSING FOR WOMEN             
24,Childrens & Education Services,Family - Other Services,CS Referral & Assessment Sec17,W1CE38,Transfer Payments             ,Schoolchildren/Students       ,FF02,Childr Act 1989 S17                     ,933.20,17/09/2015,REV,HOUSING FOR WOMEN             
25,Childrens & Education Services,Family - Other Services,CS Referral & Assessment Sec17,W1CE38,Transfer Payments             ,Schoolchildren/Students       ,FF02,Childr Act 1989 S17                     ,1166.50,17/09/2015,REV,HOUSING FOR WOMEN             
26,Childrens & Education Services,Leaving Care Services,"MASH, FR and VCT NRTPF                  ",W1CE39,Third Party Payments          ,Private Contractors           ,EH04,Accommodation Based Support             ,1550.00,07/09/2015,REV,EURO HOTELS (CROYDON COURT)LTD
27,Childrens & Education Services,Family - Direct Payments,CS Direct Payments,W1CF36,Third Party Payments          ,Private Contractors           ,EH73,Direct Payments                         ,764.90,18/09/2015,REV,REDACTED
28,Childrens & Education Services,Family - Direct Payments,CS Direct Payments,W1CF36,Third Party Payments          ,Private Contractors           ,EH73,Direct Payments                         ,764.90,18/09/2015,REV,REDACTED
29,Childrens & Education Services,Family - Direct Payments,CS Direct Payments,W1CF36,Third Party Payments          ,Private Contractors           ,EH73,Direct Payments                         ,764.90,18/09/2015,REV,REDACTED
30,Childrens & Education Services,Family - Direct Payments,CS Direct Payments,W1CF36,Third Party Payments          ,Private Contractors           ,EH73,Direct Payments                         ,764.90,18/09/2015,REV,REDACTED
31,Childrens & Education Services,Family - Other Services,CS SWD Personal support                 ,W1CF49,Third Party Payments          ,Private Contractors           ,EH01,Miscellaneous Contrct Services          ,4273.13,19/08/2015,REV,AMBITION RECRUITMENT          
32,Childrens & Education Services,CS - Commiss'ing & Social Work,SD LSCB Development,W1BD05,Supplies & Services           ,Grants and Subscriptions      ,DJ04,Subscriptions                           ,8000.00,22/09/2015,REV,VIRTUAL COLLEGE LTD           
33,Childrens & Education Services,Other Family Support Services,Transforming Families                   ,W1AA05,Supplies & Services           ,Expenses                      ,DH50,Special Projects                        ,4000.00,03/08/2015,REV,WOODHOUSE SUPPORT SERVICES LTD
34,Childrens & Education Services,Leaving Care Services,"MASH, FR and VCT NRTPF                  ",W1CE39,Third Party Payments          ,Private Contractors           ,EH01,Miscellaneous Contrct Services          ,2000.00,15/09/2015,REV,SAINSBURY'S BUSINESS DIRECT   
35,Childrens & Education Services,Leaving Care Services,"MASH, FR and VCT NRTPF                  ",W1CE39,Third Party Payments          ,Private Contractors           ,EH04,Accommodation Based Support             ,1285.50,16/09/2015,REV,ROOMS & STUDIOS MANAGEMENT    
36,Childrens & Education Services,Family - Direct Payments,CS Direct Payments,W1CF36,Third Party Payments          ,Private Contractors           ,EH73,Direct Payments                         ,551.60,18/09/2015,REV,REDACTED
37,Childrens & Education Services,Family - Direct Payments,CS Direct Payments,W1CF36,Third Party Payments          ,Private Contractors           ,EH73,Direct Payments                         ,551.60,18/09/2015,REV,REDACTED
38,Childrens & Education Services,Family - Direct Payments,CS Direct Payments,W1CF36,Third Party Payments          ,Private Contractors           ,EH73,Direct Payments                         ,551.60,18/09/2015,REV,REDACTED
39,Childrens & Education Services,Family - Direct Payments,CS Direct Payments,W1CF36,Third Party Payments          ,Private Contractors           ,EH73,Direct Payments                         ,551.60,18/09/2015,REV,REDACTED
40,Childrens & Education Services,Family - Other Services,CS SWD Personal support                 ,W1CF49,Third Party Payments          ,Private Contractors           ,EH01,Miscellaneous Contrct Services          ,504.00,03/08/2015,REV,TWEEDALE CHILDRENS CENTRE     
41,Childrens & Education Services,Family - Other Services,CS SWD Personal support                 ,W1CF49,Third Party Payments          ,Private Contractors           ,EH01,Miscellaneous Contrct Services          ,1008.00,03/08/2015,REV,TWEEDALE CHILDRENS CENTRE     
42,Childrens & Education Services,Family - Other Services,CS SWD Personal support                 ,W1CF49,Third Party Payments          ,Private Contractors           ,EH01,Miscellaneous Contrct Services          ,1080.00,01/09/2015,REV,CARESTAFF SOLUTIONS           
43,,,Mtchm Cmmon Consvtors,W0000W,Premises Related Expenditure  ,Ground Maintenance Costs      ,BL03,Maintenance of Grounds                  ,3800.00,23/09/2015,REV,LITTLE OAK TREE CARE          
44,Childrens & Education Services,Leaving Care Services,"MASH, FR and VCT NRTPF                  ",W1CE39,Third Party Payments          ,Private Contractors           ,EH04,Accommodation Based Support             ,1328.35,07/09/2015,REV,ROOMS & STUDIOS MANAGEMENT    
45,Childrens & Education Services,Leaving Care Services,"MASH, FR and VCT NRTPF                  ",W1CE39,Third Party Payments          ,Private Contractors           ,EH04,Accommodation Based Support             ,1594.02,07/09/2015,REV,ROOMS & STUDIOS MANAGEMENT    
46,Childrens & Education Services,Leaving Care Services,"MASH, FR and VCT NRTPF                  ",W1CE39,Third Party Payments          ,Private Contractors           ,EH04,Accommodation Based Support             ,1328.35,07/09/2015,REV,ROOMS & STUDIOS MANAGEMENT    
47,Childrens & Education Services,Leaving Care Services,"MASH, FR and VCT NRTPF                  ",W1CE39,Third Party Payments          ,Private Contractors           ,EH04,Accommodation Based Support             ,814.15,07/09/2015,REV,ROOMS & STUDIOS MANAGEMENT    
48,Childrens & Education Services,Leaving Care Services,"MASH, FR and VCT NRTPF                  ",W1CE39,Third Party Payments          ,Private Contractors           ,EH04,Accommodation Based Support             ,1328.35,07/09/2015,REV,ROOMS & STUDIOS MANAGEMENT    
49,Childrens & Education Services,Leaving Care Services,"MASH, FR and VCT NRTPF                  ",W1CE39,Third Party Payments          ,Private Contractors           ,EH04,Accommodation Based Support             ,1594.02,07/09/2015,REV,ROOMS & STUDIOS MANAGEMENT    
50,Childrens & Education Services,Leaving Care Services,"MASH, FR and VCT NRTPF                  ",W1CE39,Third Party Payments          ,Private Contractors           ,EH04,Accommodation Based Support             ,1328.35,07/09/2015,REV,ROOMS & STUDIOS MANAGEMENT    
51,Childrens & Education Services,Leaving Care Services,"MASH, FR and VCT NRTPF                  ",W1CE39,Third Party Payments          ,Private Contractors           ,EH04,Accommodation Based Support             ,800.00,08/09/2015,REV,REDACTED
52,Childrens & Education Services,Leaving Care Services,"MASH, FR and VCT NRTPF                  ",W1CE39,Third Party Payments          ,Private Contractors           ,EH04,Accommodation Based Support             ,960.00,16/09/2015,REV,M K ACCOMMODATION             
53,Childrens & Education Services,Family - Other Services,CS SWD Personal support                 ,W1CF49,Third Party Payments          ,Private Contractors           ,EH01,Miscellaneous Contrct Services          ,561.00,21/04/2015,REV,CARESTAFF SOLUTIONS           
54,Childrens & Education Services,CS - Commiss'ing & Social Work,SD LSCB Development,W1BD05,Supplies & Services           ,Services                      ,DF03,Consultants                             ,500.00,08/09/2015,REV,KEITH MAKIN CONSULTANCY       
55,Childrens & Education Services,Services for Under 8s,CS Family Support at Bond Road,W1CD00,Premises Related Expenditure  ,Cleaning and Domestic Supplies,BH03,Cleaning Services                       ,679.12,30/08/2015,REV,JULIUS RUTHERFOORD & CO LTD   
56,Childrens & Education Services,Family - Other Services,CS SWD Personal support                 ,W1CF49,Third Party Payments          ,Private Contractors           ,EH01,Miscellaneous Contrct Services          ,4273.13,19/08/2015,REV,AMBITION RECRUITMENT          
57,Childrens & Education Services,Family - Other Services,CS SWD Personal support                 ,W1CF49,Third Party Payments          ,Private Contractors           ,EH01,Miscellaneous Contrct Services          ,3393.60,24/08/2015,REV,CARE O LINE                   
58,Childrens & Education Services,Support for SEN Pupils,PERSONAL BUDGETS - TRANSPORT,W1CH62,Third Party Payments          ,Private Contractors           ,EH73,Direct Payments                         ,574.84,09/09/2015,REV,REDACTED
59,Childrens & Education Services,Family - Direct Payments,CS Direct Payments,W1CF36,Third Party Payments          ,Private Contractors           ,EH73,Direct Payments                         ,1725.30,14/09/2015,REV,REDACTED
60,Childrens & Education Services,Support for SEN Pupils,PERSONAL BUDGETS - TRANSPORT,W1CH62,Third Party Payments          ,Private Contractors           ,EH73,Direct Payments                         ,7008.00,17/09/2015,REV,REDACTED
61,Childrens & Education Services,Family - Other Services,CS SWD Personal support                 ,W1CF49,Third Party Payments          ,Private Contractors           ,EH01,Miscellaneous Contrct Services          ,4273.13,09/09/2015,REV,AMBITION RECRUITMENT          
62,Childrens & Education Services,Chidren's Homes,CS Brightwell,W1CG00,Premises Related Expenditure  ,Cleaning and Domestic Supplies,BH03,Cleaning Services                       ,522.34,01/09/2015,REV,BIRKIN CLEANING SERVICES LTD  
63,Childrens & Education Services,Family - Direct Payments,CS Direct Payments,W1CF36,Third Party Payments          ,Private Contractors           ,EH73,Direct Payments                         ,1160.65,18/09/2015,REV,REDACTED
64,Childrens & Education Services,Family - Direct Payments,CS Direct Payments,W1CF36,Third Party Payments          ,Private Contractors           ,EH73,Direct Payments                         ,1160.65,18/09/2015,REV,REDACTED
65,Childrens & Education Services,Family - Direct Payments,CS Direct Payments,W1CF36,Third Party Payments          ,Private Contractors           ,EH73,Direct Payments                         ,1160.65,18/09/2015,REV,REDACTED
66,Childrens & Education Services,Strategic Management,DS Director SSR Costs,W0AA01,Supplies & Services           ,Services                      ,DF11,Counsel's Fees                          ,1350.00,03/09/2015,REV,REDACTED
67,Adult Social Care,CS-Commissioning & Social Work,SD NVQ PROGRAMME,W1BA06,Supplies & Services           ,Grants and Subscriptions      ,DJ01,Grants                                  ,4456.25,24/08/2015,REV,REDACTED
68,Childrens & Education Services,CS - Commiss'ing & Social Work,SD Finance & Admin,W1BE02,Supplies & Services           ,Services                      ,DF56,Bank and Giro Charges                   ,3857.10,04/09/2015,REV,ADVANCED PAYMENT SOLUTIONS LTD
69,Childrens & Education Services,CS - Commiss'ing & Social Work,SD Finance & Admin,W1BE02,Supplies & Services           ,Services                      ,DF56,Bank and Giro Charges                   ,2232.97,18/09/2015,REV,ADVANCED PAYMENT SOLUTIONS LTD
70,Childrens & Education Services,CS - Commiss'ing & Social Work,SD Finance & Admin,W1BE02,Supplies & Services           ,Services                      ,DF56,Bank and Giro Charges                   ,837.33,29/09/2015,REV,ADVANCED PAYMENT SOLUTIONS LTD
71,Childrens & Education Services,CS - Commiss'ing & Social Work,SD Finance & Admin,W1BE02,Supplies & Services           ,Services                      ,DF56,Bank and Giro Charges                   ,2078.93,04/09/2015,REV,ADVANCED PAYMENT SOLUTIONS LTD
72,Childrens & Education Services,CS - Commiss'ing & Social Work,SD Finance & Admin,W1BE02,Supplies & Services           ,Services                      ,DF56,Bank and Giro Charges                   ,2101.34,14/09/2015,REV,ADVANCED PAYMENT SOLUTIONS LTD
73,Childrens & Education Services,Services for Under 8s,CS Family Support at Bond Road,W1CD00,Supplies & Services           ,Grants and Subscriptions      ,DJ54,Contributions                           ,2397.00,04/08/2015,REV,RISE                          
74,Childrens & Education Services,Chidren's Homes,CS Brightwell,W1CG00,Supplies & Services           ,Equip Furniture/Materials     ,DA01,Equipment - R & M                       ,650.56,08/07/2015,REV,SENSORY DEVELOPMENTS          
75,Childrens & Education Services,Family - Other Services,CS SWD Personal support                 ,W1CF49,Third Party Payments          ,Private Contractors           ,EH01,Miscellaneous Contrct Services          ,861.84,09/09/2015,REV,SOUTH THAMES CROSSROADS       
76,Childrens & Education Services,Family - Other Services,CS SWD Personal support                 ,W1CF49,Third Party Payments          ,Private Contractors           ,EH01,Miscellaneous Contrct Services          ,583.60,26/07/2015,REV,FOCUSED HEALTHCARE LIMITED    
77,Childrens & Education Services,Support for SEN Pupils,PERSONAL BUDGETS - TRANSPORT,W1CH62,Third Party Payments          ,Private Contractors           ,EH73,Direct Payments                         ,850.00,18/09/2015,REV,REDACTED
78,Childrens & Education Services,Support for SEN Pupils,PERSONAL BUDGETS - TRANSPORT,W1CH62,Third Party Payments          ,Private Contractors           ,EH73,Direct Payments                         ,850.00,18/09/2015,REV,REDACTED
79,Childrens & Education Services,CS - Commiss'ing & Social Work,SD Finance & Admin,W1BE02,Supplies & Services           ,Services                      ,DF56,Bank and Giro Charges                   ,2915.52,29/09/2015,REV,ADVANCED PAYMENT SOLUTIONS LTD
80,Childrens & Education Services,Other - Other Ch & Fam,Emergency SW - children,W1CA02,Employees                     ,Direct Employee Expenses      ,AA51,Emergency Social Workers (AP)           ,33615.27,03/07/2015,REV,LONDON BOROUGH OF SUTTON      
81,Childrens & Education Services,Family - Direct Payments,CS Direct Payments,W1CF36,Third Party Payments          ,Private Contractors           ,EH73,Direct Payments                         ,1160.65,18/09/2015,REV,REDACTED
82,Adult Social Care,CS-Commissioning & Social Work,SD NVQ PROGRAMME,W1BA06,Supplies & Services           ,Grants and Subscriptions      ,DJ01,Grants                                  ,4456.25,24/08/2015,REV,REDACTED
83,Adult Social Care,CS-Commissioning & Social Work,SD NVQ PROGRAMME,W1BA06,Supplies & Services           ,Grants and Subscriptions      ,DJ01,Grants                                  ,4456.25,24/08/2015,REV,REDACTED
84,Adult Social Care,CS-Commissioning & Social Work,SD NVQ PROGRAMME,W1BA06,Supplies & Services           ,Grants and Subscriptions      ,DJ01,Grants                                  ,4456.25,24/08/2015,REV,REDACTED
85,Childrens & Education Services,Family - Other Services,CS CWD - NRTPF                          ,W1CF39,Third Party Payments          ,Private Contractors           ,EH04,Accommodation Based Support             ,1328.55,16/09/2015,REV,ROOMS & STUDIOS MANAGEMENT    
86,Childrens & Education Services,Family - Other Services,CS CWD - NRTPF                          ,W1CF39,Third Party Payments          ,Private Contractors           ,EH04,Accommodation Based Support             ,1328.35,16/09/2015,REV,ROOMS & STUDIOS MANAGEMENT    
87,Childrens & Education Services,Fostering Services,ART Independent Agency Foster,W1DE46,Supplies & Services           ,Services                      ,DF53,Task Based Fostering                    ,1233.10,01/08/2015,REV,INTEGRATED SERVICES PROGRAMME 
88,Childrens & Education Services,Fostering Services,ART Independent Agency Foster,W1DE46,Supplies & Services           ,Services                      ,DF53,Task Based Fostering                    ,1233.10,01/08/2015,REV,INTEGRATED SERVICES PROGRAMME 
89,Childrens & Education Services,Fostering Services,ART Independent Agency Foster,W1DE46,Supplies & Services           ,Services                      ,DF53,Task Based Fostering                    ,1233.10,01/08/2015,REV,INTEGRATED SERVICES PROGRAMME 
90,Childrens & Education Services,Fostering Services,ART Independent Agency Foster,W1DE46,Supplies & Services           ,Services                      ,DF53,Task Based Fostering                    ,-1057.88,01/08/2015,REV,INTEGRATED SERVICES PROGRAMME 
91,Childrens & Education Services,Fostering Services,ART Independent Agency Foster,W1DE46,Supplies & Services           ,Services                      ,DF53,Task Based Fostering                    ,1233.10,01/08/2015,REV,INTEGRATED SERVICES PROGRAMME 
92,Childrens & Education Services,Fostering Services,ART Independent Agency Foster,W1DE46,Supplies & Services           ,Services                      ,DF53,Task Based Fostering                    ,780.01,31/08/2015,REV,KINDERCARE FOSTERING          
93,Childrens & Education Services,Fostering Services,ART Independent Agency Foster,W1DE46,Supplies & Services           ,Services                      ,DF53,Task Based Fostering                    ,780.01,31/08/2015,REV,KINDERCARE FOSTERING          
94,Childrens & Education Services,Fostering Services,ART Independent Agency Foster,W1DE46,Supplies & Services           ,Services                      ,DF53,Task Based Fostering                    ,780.01,31/08/2015,REV,KINDERCARE FOSTERING          
95,Childrens & Education Services,Fostering Services,ART Independent Agency Foster,W1DE46,Supplies & Services           ,Services                      ,DF53,Task Based Fostering                    ,780.01,31/08/2015,REV,KINDERCARE FOSTERING          
96,Childrens & Education Services,Fostering Services,ART Independent Agency Foster,W1DE46,Supplies & Services           ,Services                      ,DF53,Task Based Fostering                    ,780.01,31/08/2015,REV,KINDERCARE FOSTERING          
97,Childrens & Education Services,Fostering Services,ART Independent Agency Foster,W1DE46,Supplies & Services           ,Services                      ,DF53,Task Based Fostering                    ,-668.58,31/08/2015,REV,KINDERCARE FOSTERING          
98,Childrens & Education Services,Fostering Services,ART Independent Agency Foster,W1DE46,Supplies & Services           ,Services                      ,DF53,Task Based Fostering                    ,1233.10,01/08/2015,REV,INTEGRATED SERVICES PROGRAMME 
99,Childrens & Education Services,Fostering Services,ART Independent Agency Foster,W1DE46,Supplies & Services           ,Services                      ,DF53,Task Based Fostering                    ,700.56,29/07/2015,REV,CORNERWAYS FOSTERING SERV.LTD 
100,Childrens & Education Services,Fostering Services,ART Independent Agency Foster,W1DE46,Supplies & Services           ,Services                      ,DF53,Task Based Fostering                    ,700.56,29/07/2015,REV,CORNERWAYS FOSTERING SERV.LTD 
101,Childrens & Education Services,Fostering Services,ART Independent Agency Foster,W1DE46,Supplies & Services           ,Services                      ,DF53,Task Based Fostering                    ,700.56,29/07/2015,REV,CORNERWAYS FOSTERING SERV.LTD 
102,Childrens & Education Services,Fostering Services,ART Independent Agency Foster,W1DE46,Supplies & Services           ,Services                      ,DF53,Task Based Fostering                    ,700.56,29/07/2015,REV,CORNERWAYS FOSTERING SERV.LTD 
103,Childrens & Education Services,Fostering Services,ART Independent Agency Foster,W1DE46,Supplies & Services           ,Services                      ,DF53,Task Based Fostering                    ,700.56,29/07/2015,REV,CORNERWAYS FOSTERING SERV.LTD 
104,Childrens & Education Services,Fostering Services,ART Independent Agency Foster,W1DE46,Supplies & Services           ,Services                      ,DF53,Task Based Fostering                    ,-600.48,29/07/2015,REV,CORNERWAYS FOSTERING SERV.LTD 
105,Childrens & Education Services,Fostering Services,ART Independent Agency Foster,W1DE46,Supplies & Services           ,Services                      ,DF53,Task Based Fostering                    ,700.56,29/07/2015,REV,CORNERWAYS FOSTERING SERV.LTD 
106,Childrens & Education Services,Fostering Services,ART Independent Agency Foster,W1DE46,Supplies & Services           ,Services                      ,DF53,Task Based Fostering                    ,700.56,29/07/2015,REV,CORNERWAYS FOSTERING SERV.LTD 
107,Childrens & Education Services,Fostering Services,ART Independent Agency Foster,W1DE46,Supplies & Services           ,Services                      ,DF53,Task Based Fostering                    ,700.56,29/07/2015,REV,CORNERWAYS FOSTERING SERV.LTD 
108,Childrens & Education Services,Fostering Services,ART Independent Agency Foster,W1DE46,Supplies & Services           ,Services                      ,DF53,Task Based Fostering                    ,700.56,29/07/2015,REV,CORNERWAYS FOSTERING SERV.LTD 
109,Childrens & Education Services,Fostering Services,ART Independent Agency Foster,W1DE46,Supplies & Services           ,Services                      ,DF53,Task Based Fostering                    ,700.56,29/07/2015,REV,CORNERWAYS FOSTERING SERV.LTD 
110,Childrens & Education Services,Fostering Services,ART Independent Agency Foster,W1DE46,Supplies & Services           ,Services                      ,DF53,Task Based Fostering                    ,-600.48,29/07/2015,REV,CORNERWAYS FOSTERING SERV.LTD 
111,Childrens & Education Services,Fostering Services,ART Independent Agency Foster,W1DE46,Supplies & Services           ,Services                      ,DF53,Task Based Fostering                    ,786.03,14/08/2015,REV,ST CHRISTOPHERS FELLOWSHIP    
112,Childrens & Education Services,Fostering Services,ART Independent Agency Foster,W1DE46,Supplies & Services           ,Services                      ,DF53,Task Based Fostering                    ,786.03,14/08/2015,REV,ST CHRISTOPHERS FELLOWSHIP    
113,Childrens & Education Services,Fostering Services,ART Independent Agency Foster,W1DE46,Supplies & Services           ,Services                      ,DF53,Task Based Fostering                    ,786.03,14/08/2015,REV,ST CHRISTOPHERS FELLOWSHIP    
114,Childrens & Education Services,Fostering Services,ART Independent Agency Foster,W1DE46,Supplies & Services           ,Services                      ,DF53,Task Based Fostering                    ,786.03,14/08/2015,REV,ST CHRISTOPHERS FELLOWSHIP    
115,Childrens & Education Services,Fostering Services,ART Independent Agency Foster,W1DE46,Supplies & Services           ,Services                      ,DF53,Task Based Fostering                    ,786.03,14/08/2015,REV,ST CHRISTOPHERS FELLOWSHIP    
116,Childrens & Education Services,Fostering Services,ART Independent Agency Foster,W1DE46,Supplies & Services           ,Services                      ,DF53,Task Based Fostering                    ,-674.00,14/08/2015,REV,ST CHRISTOPHERS FELLOWSHIP    
117,Childrens & Education Services,Fostering Services,ART Independent Agency Foster,W1DE46,Supplies & Services           ,Services                      ,DF53,Task Based Fostering                    ,501.20,19/08/2015,REV,RAINBOW FOSTERING SERVICES LTD
118,Childrens & Education Services,Fostering Services,ART Independent Agency Foster,W1DE46,Supplies & Services           ,Services                      ,DF53,Task Based Fostering                    ,701.68,19/08/2015,REV,RAINBOW FOSTERING SERVICES LTD
119,Childrens & Education Services,Fostering Services,ART Independent Agency Foster,W1DE46,Supplies & Services           ,Services                      ,DF53,Task Based Fostering                    ,671.09,19/08/2015,REV,RAINBOW FOSTERING SERVICES LTD
120,Childrens & Education Services,Fostering Services,ART Independent Agency Foster,W1DE46,Supplies & Services           ,Services                      ,DF53,Task Based Fostering                    ,671.09,19/08/2015,REV,RAINBOW FOSTERING SERVICES LTD
121,Childrens & Education Services,Fostering Services,ART Independent Agency Foster,W1DE46,Supplies & Services           ,Services                      ,DF53,Task Based Fostering                    ,671.09,19/08/2015,REV,RAINBOW FOSTERING SERVICES LTD
122,Childrens & Education Services,Fostering Services,ART Independent Agency Foster,W1DE46,Supplies & Services           ,Services                      ,DF53,Task Based Fostering                    ,671.09,19/08/2015,REV,RAINBOW FOSTERING SERVICES LTD
123,Childrens & Education Services,Fostering Services,ART Independent Agency Foster,W1DE46,Supplies & Services           ,Services                      ,DF53,Task Based Fostering                    ,671.09,19/08/2015,REV,RAINBOW FOSTERING SERVICES LTD
124,Childrens & Education Services,Fostering Services,ART Independent Agency Foster,W1DE46,Supplies & Services           ,Services                      ,DF53,Task Based Fostering                    ,671.09,19/08/2015,REV,RAINBOW FOSTERING SERVICES LTD
125,Childrens & Education Services,Fostering Services,ART Independent Agency Foster,W1DE46,Supplies & Services           ,Services                      ,DF53,Task Based Fostering                    ,671.09,19/08/2015,REV,RAINBOW FOSTERING SERVICES LTD
126,Childrens & Education Services,Fostering Services,ART Independent Agency Foster,W1DE46,Supplies & Services           ,Services                      ,DF53,Task Based Fostering                    ,671.09,19/08/2015,REV,RAINBOW FOSTERING SERVICES LTD
127,Childrens & Education Services,Fostering Services,ART Independent Agency Foster,W1DE46,Supplies & Services           ,Services                      ,DF53,Task Based Fostering                    ,501.20,19/08/2015,REV,RAINBOW FOSTERING SERVICES LTD
128,Childrens & Education Services,Fostering Services,ART Independent Agency Foster,W1DE46,Supplies & Services           ,Services                      ,DF53,Task Based Fostering                    ,701.68,19/08/2015,REV,RAINBOW FOSTERING SERVICES LTD
129,Childrens & Education Services,Fostering Services,ART Independent Agency Foster,W1DE46,Supplies & Services           ,Services                      ,DF53,Task Based Fostering                    ,701.68,19/08/2015,REV,RAINBOW FOSTERING SERVICES LTD
130,Childrens & Education Services,Fostering Services,ART Independent Agency Foster,W1DE46,Supplies & Services           ,Services                      ,DF53,Task Based Fostering                    ,701.68,19/08/2015,REV,RAINBOW FOSTERING SERVICES LTD
131,Childrens & Education Services,Fostering Services,ART Independent Agency Foster,W1DE46,Supplies & Services           ,Services                      ,DF53,Task Based Fostering                    ,701.68,19/08/2015,REV,RAINBOW FOSTERING SERVICES LTD
132,Childrens & Education Services,Fostering Services,ART Independent Agency Foster,W1DE46,Supplies & Services           ,Services                      ,DF53,Task Based Fostering                    ,869.61,31/08/2015,REV,THE FOSTER CARE AGENCY        
133,Childrens & Education Services,Fostering Services,ART Independent Agency Foster,W1DE46,Supplies & Services           ,Services                      ,DF53,Task Based Fostering                    ,869.61,31/08/2015,REV,THE FOSTER CARE AGENCY        
134,Childrens & Education Services,CS - Commiss'ing & Social Work,SD Finance & Admin,W1BE02,Supplies & Services           ,Services                      ,DF56,Bank and Giro Charges                   ,1075.12,18/09/2015,REV,ADVANCED PAYMENT SOLUTIONS LTD
135,Childrens & Education Services,CS - Commiss'ing & Social Work,SD Finance & Admin,W1BE02,Supplies & Services           ,Services                      ,DF56,Bank and Giro Charges                   ,1591.44,14/09/2015,REV,ADVANCED PAYMENT SOLUTIONS LTD
136,Childrens & Education Services,Fostering Services,ART Independent Agency Foster,W1DE46,Supplies & Services           ,Services                      ,DF53,Task Based Fostering                    ,869.61,31/08/2015,REV,THE FOSTER CARE AGENCY        
137,Childrens & Education Services,Fostering Services,ART Independent Agency Foster,W1DE46,Supplies & Services           ,Services                      ,DF53,Task Based Fostering                    ,869.61,31/08/2015,REV,THE FOSTER CARE AGENCY        
138,Childrens & Education Services,Fostering Services,ART Independent Agency Foster,W1DE46,Supplies & Services           ,Services                      ,DF53,Task Based Fostering                    ,869.61,31/08/2015,REV,THE FOSTER CARE AGENCY        
139,Childrens & Education Services,Fostering Services,ART Independent Agency Foster,W1DE46,Supplies & Services           ,Services                      ,DF53,Task Based Fostering                    ,-745.38,31/08/2015,REV,THE FOSTER CARE AGENCY        
140,Childrens & Education Services,Fostering Services,ART Independent Agency Foster,W1DE46,Supplies & Services           ,Services                      ,DF53,Task Based Fostering                    ,1150.03,31/08/2015,REV,THE FOSTER CARE AGENCY        
141,Childrens & Education Services,Fostering Services,ART Independent Agency Foster,W1DE46,Supplies & Services           ,Services                      ,DF53,Task Based Fostering                    ,1150.03,31/08/2015,REV,THE FOSTER CARE AGENCY        
142,Childrens & Education Services,Fostering Services,ART Independent Agency Foster,W1DE46,Supplies & Services           ,Services                      ,DF53,Task Based Fostering                    ,1150.03,31/08/2015,REV,THE FOSTER CARE AGENCY        
143,Childrens & Education Services,Fostering Services,ART Independent Agency Foster,W1DE46,Supplies & Services           ,Services                      ,DF53,Task Based Fostering                    ,1150.03,31/08/2015,REV,THE FOSTER CARE AGENCY        
144,Childrens & Education Services,Fostering Services,ART Independent Agency Foster,W1DE46,Supplies & Services           ,Services                      ,DF53,Task Based Fostering                    ,1150.03,31/08/2015,REV,THE FOSTER CARE AGENCY        
145,Childrens & Education Services,Fostering Services,ART Independent Agency Foster,W1DE46,Supplies & Services           ,Services                      ,DF53,Task Based Fostering                    ,-985.74,31/08/2015,REV,THE FOSTER CARE AGENCY        
146,Childrens & Education Services,Fostering Services,ART Independent Agency Foster,W1DE46,Supplies & Services           ,Services                      ,DF53,Task Based Fostering                    ,749.00,31/08/2015,REV,GREATER LONDON FOSTERING LTD  
147,Childrens & Education Services,Fostering Services,ART Independent Agency Foster,W1DE46,Supplies & Services           ,Services                      ,DF53,Task Based Fostering                    ,749.00,31/08/2015,REV,GREATER LONDON FOSTERING LTD  
148,Childrens & Education Services,Family - Direct Payments,CS Direct Payments,W1CF36,Third Party Payments          ,Private Contractors           ,EH73,Direct Payments                         ,919.00,24/09/2015,REV,REDACTED
149,Childrens & Education Services,Family - Direct Payments,CS Direct Payments,W1CF36,Third Party Payments          ,Private Contractors           ,EH73,Direct Payments                         ,806.25,24/09/2015,REV,REDACTED
150,Childrens & Education Services,Fostering Services,ART Independent Agency Foster,W1DE46,Supplies & Services           ,Services                      ,DF53,Task Based Fostering                    ,758.00,01/05/2015,REV,THE XCEL 2000 PARTNERSHIP LTD 
151,Childrens & Education Services,Fostering Services,ART Independent Agency Foster,W1DE46,Supplies & Services           ,Services                      ,DF53,Task Based Fostering                    ,758.00,01/05/2015,REV,THE XCEL 2000 PARTNERSHIP LTD 
152,Childrens & Education Services,Fostering Services,ART Independent Agency Foster,W1DE46,Supplies & Services           ,Services                      ,DF53,Task Based Fostering                    ,758.00,01/05/2015,REV,THE XCEL 2000 PARTNERSHIP LTD 
153,Childrens & Education Services,Fostering Services,ART Independent Agency Foster,W1DE46,Supplies & Services           ,Services                      ,DF53,Task Based Fostering                    ,758.00,01/05/2015,REV,THE XCEL 2000 PARTNERSHIP LTD 
154,Childrens & Education Services,Fostering Services,ART Independent Agency Foster,W1DE46,Supplies & Services           ,Services                      ,DF53,Task Based Fostering                    ,1150.00,26/08/2015,REV,AFFINITY FOSTERING SERV LTD   
155,Childrens & Education Services,Fostering Services,ART Independent Agency Foster,W1DE46,Supplies & Services           ,Services                      ,DF53,Task Based Fostering                    ,1150.00,26/08/2015,REV,AFFINITY FOSTERING SERV LTD   
156,Childrens & Education Services,Fostering Services,ART Independent Agency Foster,W1DE46,Supplies & Services           ,Services                      ,DF53,Task Based Fostering                    ,1150.00,26/08/2015,REV,AFFINITY FOSTERING SERV LTD   
157,Childrens & Education Services,Fostering Services,ART Independent Agency Foster,W1DE46,Supplies & Services           ,Services                      ,DF53,Task Based Fostering                    ,1150.00,26/08/2015,REV,AFFINITY FOSTERING SERV LTD   
158,Childrens & Education Services,Fostering Services,ART Independent Agency Foster,W1DE46,Supplies & Services           ,Services                      ,DF53,Task Based Fostering                    ,-985.68,26/08/2015,REV,AFFINITY FOSTERING SERV LTD   
159,Childrens & Education Services,Fostering Services,ART Independent Agency Foster,W1DE46,Supplies & Services           ,Services                      ,DF53,Task Based Fostering                    ,1150.00,26/08/2015,REV,AFFINITY FOSTERING SERV LTD   
160,Childrens & Education Services,Fostering Services,ART Independent Agency Foster,W1DE46,Supplies & Services           ,Services                      ,DF53,Task Based Fostering                    ,760.00,03/08/2015,REV,BRIGHTER FUTURES FOSTER CARE  
161,Childrens & Education Services,Fostering Services,ART Independent Agency Foster,W1DE46,Supplies & Services           ,Services                      ,DF53,Task Based Fostering                    ,764.47,31/08/2015,REV,KINDERCARE FOSTERING          
162,Childrens & Education Services,Fostering Services,ART Independent Agency Foster,W1DE46,Supplies & Services           ,Services                      ,DF53,Task Based Fostering                    ,764.47,31/08/2015,REV,KINDERCARE FOSTERING          
163,Childrens & Education Services,Fostering Services,ART Independent Agency Foster,W1DE46,Supplies & Services           ,Services                      ,DF53,Task Based Fostering                    ,764.47,31/08/2015,REV,KINDERCARE FOSTERING          
164,Childrens & Education Services,Fostering Services,ART Independent Agency Foster,W1DE46,Supplies & Services           ,Services                      ,DF53,Task Based Fostering                    ,764.47,31/08/2015,REV,KINDERCARE FOSTERING          
165,Childrens & Education Services,Fostering Services,ART Independent Agency Foster,W1DE46,Supplies & Services           ,Services                      ,DF53,Task Based Fostering                    ,764.47,31/08/2015,REV,KINDERCARE FOSTERING          
166,Childrens & Education Services,Fostering Services,ART Independent Agency Foster,W1DE46,Supplies & Services           ,Services                      ,DF53,Task Based Fostering                    ,-655.26,31/08/2015,REV,KINDERCARE FOSTERING          
167,Childrens & Education Services,Support for SEN Pupils,PERSONAL BUDGETS - TRANSPORT,W1CH62,Third Party Payments          ,Private Contractors           ,EH73,Direct Payments                         ,850.00,18/09/2015,REV,REDACTED
168,Childrens & Education Services,Support for SEN Pupils,PERSONAL BUDGETS - TRANSPORT,W1CH62,Third Party Payments          ,Private Contractors           ,EH73,Direct Payments                         ,850.00,18/09/2015,REV,REDACTED
169,Childrens & Education Services,Support for SEN Pupils,PERSONAL BUDGETS - TRANSPORT,W1CH62,Third Party Payments          ,Private Contractors           ,EH73,Direct Payments                         ,850.00,23/09/2015,REV,REDACTED
170,Childrens & Education Services,Support for SEN Pupils,PERSONAL BUDGETS - TRANSPORT,W1CH62,Third Party Payments          ,Private Contractors           ,EH73,Direct Payments                         ,850.00,23/09/2015,REV,REDACTED
171,Childrens & Education Services,Support for SEN Pupils,PERSONAL BUDGETS - TRANSPORT,W1CH62,Third Party Payments          ,Private Contractors           ,EH73,Direct Payments                         ,850.00,23/09/2015,REV,REDACTED
172,Childrens & Education Services,Adoption Services,CL Permanency,W1DC00,Third Party Payments          ,Private Contractors           ,EH01,Miscellaneous Agency Services           ,9000.00,21/08/2015,REV,NORTH LINCOLNSHIRE COUNCIL    
173,Childrens & Education Services,Fostering Services,ART Independent Agency Foster,W1DE46,Supplies & Services           ,Services                      ,DF53,Task Based Fostering                    ,-651.43,03/08/2015,REV,BRIGHTER FUTURES FOSTER CARE  
174,Childrens & Education Services,Fostering Services,ART Independent Agency Foster,W1DE46,Supplies & Services           ,Services                      ,DF53,Task Based Fostering                    ,745.00,06/08/2015,REV,CONNECT FOSTERING LTD         
175,Childrens & Education Services,Fostering Services,ART Independent Agency Foster,W1DE46,Supplies & Services           ,Services                      ,DF53,Task Based Fostering                    ,745.00,06/08/2015,REV,CONNECT FOSTERING LTD         
176,Childrens & Education Services,Fostering Services,ART Independent Agency Foster,W1DE46,Supplies & Services           ,Services                      ,DF53,Task Based Fostering                    ,745.00,06/08/2015,REV,CONNECT FOSTERING LTD         
177,Childrens & Education Services,Fostering Services,ART Independent Agency Foster,W1DE46,Supplies & Services           ,Services                      ,DF53,Task Based Fostering                    ,745.00,06/08/2015,REV,CONNECT FOSTERING LTD         
178,Childrens & Education Services,Fostering Services,ART Independent Agency Foster,W1DE46,Supplies & Services           ,Services                      ,DF53,Task Based Fostering                    ,745.00,06/08/2015,REV,CONNECT FOSTERING LTD         
179,Childrens & Education Services,Fostering Services,ART Independent Agency Foster,W1DE46,Supplies & Services           ,Services                      ,DF53,Task Based Fostering                    ,-638.57,06/08/2015,REV,CONNECT FOSTERING LTD         
180,Childrens & Education Services,Fostering Services,ART Independent Agency Foster,W1DE46,Supplies & Services           ,Services                      ,DF53,Task Based Fostering                    ,724.71,02/09/2015,REV,CROHAM SERV.FOR CHILDREN LTD  
181,Childrens & Education Services,Fostering Services,ART Independent Agency Foster,W1DE46,Supplies & Services           ,Services                      ,DF53,Task Based Fostering                    ,780.00,12/07/2015,REV,THE NATIONAL FOSTERING AGENCY 
182,Childrens & Education Services,Fostering Services,ART Independent Agency Foster,W1DE46,Supplies & Services           ,Services                      ,DF53,Task Based Fostering                    ,780.00,12/07/2015,REV,THE NATIONAL FOSTERING AGENCY 
183,Childrens & Education Services,Fostering Services,ART Independent Agency Foster,W1DE46,Supplies & Services           ,Services                      ,DF53,Task Based Fostering                    ,749.00,31/08/2015,REV,GREATER LONDON FOSTERING LTD  
184,Childrens & Education Services,Fostering Services,ART Independent Agency Foster,W1DE46,Supplies & Services           ,Services                      ,DF53,Task Based Fostering                    ,749.00,31/08/2015,REV,GREATER LONDON FOSTERING LTD  
185,Childrens & Education Services,Fostering Services,ART Independent Agency Foster,W1DE46,Supplies & Services           ,Services                      ,DF53,Task Based Fostering                    ,749.00,31/08/2015,REV,GREATER LONDON FOSTERING LTD  
186,Childrens & Education Services,Fostering Services,ART Independent Agency Foster,W1DE46,Supplies & Services           ,Services                      ,DF53,Task Based Fostering                    ,-642.00,31/08/2015,REV,GREATER LONDON FOSTERING LTD  
187,Childrens & Education Services,Fostering Services,ART Independent Agency Foster,W1DE46,Supplies & Services           ,Services                      ,DF53,Task Based Fostering                    ,742.67,31/08/2015,REV,FOCUSED FOSTERING             
188,Childrens & Education Services,Fostering Services,ART Independent Agency Foster,W1DE46,Supplies & Services           ,Services                      ,DF53,Task Based Fostering                    ,742.67,31/08/2015,REV,FOCUSED FOSTERING             
189,Childrens & Education Services,Fostering Services,ART Independent Agency Foster,W1DE46,Supplies & Services           ,Services                      ,DF53,Task Based Fostering                    ,742.67,31/08/2015,REV,FOCUSED FOSTERING             
190,Childrens & Education Services,Fostering Services,ART Independent Agency Foster,W1DE46,Supplies & Services           ,Services                      ,DF53,Task Based Fostering                    ,742.67,31/08/2015,REV,FOCUSED FOSTERING             
191,Childrens & Education Services,Fostering Services,ART Independent Agency Foster,W1DE46,Supplies & Services           ,Services                      ,DF53,Task Based Fostering                    ,742.67,31/08/2015,REV,FOCUSED FOSTERING             
192,Childrens & Education Services,Fostering Services,ART Independent Agency Foster,W1DE46,Supplies & Services           ,Services                      ,DF53,Task Based Fostering                    ,-636.59,31/08/2015,REV,FOCUSED FOSTERING             
193,Childrens & Education Services,Fostering Services,ART Independent Agency Foster,W1DE46,Supplies & Services           ,Services                      ,DF53,Task Based Fostering                    ,-574.00,12/08/2015,REV,CHILDREN OF COLOUR            
194,Childrens & Education Services,Fostering Services,ART Independent Agency Foster,W1DE46,Supplies & Services           ,Services                      ,DF53,Task Based Fostering                    ,803.60,12/08/2015,REV,CHILDREN OF COLOUR            
195,Childrens & Education Services,Fostering Services,ART Independent Agency Foster,W1DE46,Supplies & Services           ,Services                      ,DF53,Task Based Fostering                    ,780.00,12/07/2015,REV,THE NATIONAL FOSTERING AGENCY 
196,Childrens & Education Services,Fostering Services,ART Independent Agency Foster,W1DE46,Supplies & Services           ,Services                      ,DF53,Task Based Fostering                    ,780.00,12/07/2015,REV,THE NATIONAL FOSTERING AGENCY 
197,Childrens & Education Services,Fostering Services,ART Independent Agency Foster,W1DE46,Supplies & Services           ,Services                      ,DF53,Task Based Fostering                    ,742.00,31/08/2015,REV,IAS TACT                      
198,Childrens & Education Services,Fostering Services,ART Independent Agency Foster,W1DE46,Supplies & Services           ,Services                      ,DF53,Task Based Fostering                    ,742.00,31/08/2015,REV,IAS TACT                      
199,Childrens & Education Services,Fostering Services,ART Independent Agency Foster,W1DE46,Supplies & Services           ,Services                      ,DF53,Task Based Fostering                    ,742.00,31/08/2015,REV,IAS TACT                      
200,Childrens & Education Services,Fostering Services,ART Independent Agency Foster,W1DE46,Supplies & Services           ,Services                      ,DF53,Task Based Fostering                    ,742.00,31/08/2015,REV,IAS TACT                      
201,Childrens & Education Services,Fostering Services,ART Independent Agency Foster,W1DE46,Supplies & Services           ,Services                      ,DF53,Task Based Fostering                    ,742.00,31/08/2015,REV,IAS TACT                      
202,Childrens & Education Services,Fostering Services,ART Independent Agency Foster,W1DE46,Supplies & Services           ,Services                      ,DF53,Task Based Fostering                    ,-636.00,31/08/2015,REV,IAS TACT                      
203,Childrens & Education Services,Fostering Services,ART Independent Agency Foster,W1DE46,Supplies & Services           ,Services                      ,DF53,Task Based Fostering                    ,714.00,31/08/2015,REV,IAS TACT                      
204,Childrens & Education Services,Fostering Services,ART Independent Agency Foster,W1DE46,Supplies & Services           ,Services                      ,DF53,Task Based Fostering                    ,784.14,01/09/2015,REV,FOSTERING OUTCOMES LTD        
205,Childrens & Education Services,Fostering Services,ART Independent Agency Foster,W1DE46,Supplies & Services           ,Services                      ,DF53,Task Based Fostering                    ,784.14,01/09/2015,REV,FOSTERING OUTCOMES LTD        
206,Childrens & Education Services,Fostering Services,ART Independent Agency Foster,W1DE46,Supplies & Services           ,Services                      ,DF53,Task Based Fostering                    ,784.14,01/09/2015,REV,FOSTERING OUTCOMES LTD        
207,Childrens & Education Services,Fostering Services,ART Independent Agency Foster,W1DE46,Supplies & Services           ,Services                      ,DF53,Task Based Fostering                    ,784.14,01/09/2015,REV,FOSTERING OUTCOMES LTD        
208,Childrens & Education Services,Fostering Services,ART Independent Agency Foster,W1DE46,Supplies & Services           ,Services                      ,DF53,Task Based Fostering                    ,767.97,14/07/2015,REV,MOMENTS FOSTERING             
209,Childrens & Education Services,Fostering Services,ART Independent Agency Foster,W1DE46,Supplies & Services           ,Services                      ,DF53,Task Based Fostering                    ,767.97,14/07/2015,REV,MOMENTS FOSTERING             
210,Childrens & Education Services,Fostering Services,ART Independent Agency Foster,W1DE46,Supplies & Services           ,Services                      ,DF53,Task Based Fostering                    ,767.97,14/07/2015,REV,MOMENTS FOSTERING             
211,Childrens & Education Services,Fostering Services,ART Independent Agency Foster,W1DE46,Supplies & Services           ,Services                      ,DF53,Task Based Fostering                    ,724.71,02/09/2015,REV,CROHAM SERV.FOR CHILDREN LTD  
212,Childrens & Education Services,Fostering Services,ART Independent Agency Foster,W1DE46,Supplies & Services           ,Services                      ,DF53,Task Based Fostering                    ,724.71,02/09/2015,REV,CROHAM SERV.FOR CHILDREN LTD  
213,Childrens & Education Services,Fostering Services,ART Independent Agency Foster,W1DE46,Supplies & Services           ,Services                      ,DF53,Task Based Fostering                    ,724.71,02/09/2015,REV,CROHAM SERV.FOR CHILDREN LTD  
214,Childrens & Education Services,Fostering Services,ART Independent Agency Foster,W1DE46,Supplies & Services           ,Services                      ,DF53,Task Based Fostering                    ,724.71,02/09/2015,REV,CROHAM SERV.FOR CHILDREN LTD  
215,Childrens & Education Services,Fostering Services,ART Independent Agency Foster,W1DE46,Supplies & Services           ,Services                      ,DF53,Task Based Fostering                    ,-621.18,02/09/2015,REV,CROHAM SERV.FOR CHILDREN LTD  
216,Childrens & Education Services,Fostering Services,ART Independent Agency Foster,W1DE46,Supplies & Services           ,Services                      ,DF53,Task Based Fostering                    ,806.61,06/09/2015,REV,THE NATIONAL FOSTERING AGENCY 
217,Childrens & Education Services,Fostering Services,ART Independent Agency Foster,W1DE46,Supplies & Services           ,Services                      ,DF53,Task Based Fostering                    ,806.61,06/09/2015,REV,THE NATIONAL FOSTERING AGENCY 
218,Childrens & Education Services,Fostering Services,ART Independent Agency Foster,W1DE46,Supplies & Services           ,Services                      ,DF53,Task Based Fostering                    ,806.61,06/09/2015,REV,THE NATIONAL FOSTERING AGENCY 
219,Childrens & Education Services,Fostering Services,ART Independent Agency Foster,W1DE46,Supplies & Services           ,Services                      ,DF53,Task Based Fostering                    ,806.61,06/09/2015,REV,THE NATIONAL FOSTERING AGENCY 
220,Childrens & Education Services,Fostering Services,ART Independent Agency Foster,W1DE46,Supplies & Services           ,Services                      ,DF53,Task Based Fostering                    ,574.00,15/07/2015,REV,CHILDREN OF COLOUR            
221,Childrens & Education Services,Fostering Services,ART Independent Agency Foster,W1DE46,Supplies & Services           ,Services                      ,DF53,Task Based Fostering                    ,803.60,15/07/2015,REV,CHILDREN OF COLOUR            
222,Childrens & Education Services,Fostering Services,ART Independent Agency Foster,W1DE46,Supplies & Services           ,Services                      ,DF53,Task Based Fostering                    ,803.60,15/07/2015,REV,CHILDREN OF COLOUR            
223,Childrens & Education Services,Fostering Services,ART Independent Agency Foster,W1DE46,Supplies & Services           ,Services                      ,DF53,Task Based Fostering                    ,803.60,15/07/2015,REV,CHILDREN OF COLOUR            
224,Childrens & Education Services,Fostering Services,ART Independent Agency Foster,W1DE46,Supplies & Services           ,Services                      ,DF53,Task Based Fostering                    ,574.00,15/07/2015,REV,CHILDREN OF COLOUR            
225,Childrens & Education Services,Fostering Services,ART Independent Agency Foster,W1DE46,Supplies & Services           ,Services                      ,DF53,Task Based Fostering                    ,665.00,09/09/2015,REV,LONDON BOROUGH OF WANDSWORTH  
226,Childrens & Education Services,Fostering Services,ART Independent Agency Foster,W1DE46,Supplies & Services           ,Services                      ,DF53,Task Based Fostering                    ,665.00,09/09/2015,REV,LONDON BOROUGH OF WANDSWORTH  
227,Childrens & Education Services,Fostering Services,ART Independent Agency Foster,W1DE46,Supplies & Services           ,Services                      ,DF53,Task Based Fostering                    ,665.00,09/09/2015,REV,LONDON BOROUGH OF WANDSWORTH  
228,Childrens & Education Services,Fostering Services,ART Independent Agency Foster,W1DE46,Supplies & Services           ,Services                      ,DF53,Task Based Fostering                    ,665.00,09/09/2015,REV,LONDON BOROUGH OF WANDSWORTH  
229,Childrens & Education Services,Fostering Services,ART Independent Agency Foster,W1DE46,Supplies & Services           ,Services                      ,DF53,Task Based Fostering                    ,665.00,09/09/2015,REV,LONDON BOROUGH OF WANDSWORTH  
230,Childrens & Education Services,Fostering Services,ART Independent Agency Foster,W1DE46,Supplies & Services           ,Services                      ,DF53,Task Based Fostering                    ,665.00,11/09/2015,REV,LONDON BOROUGH OF WANDSWORTH  
231,Childrens & Education Services,Fostering Services,ART Independent Agency Foster,W1DE46,Supplies & Services           ,Services                      ,DF53,Task Based Fostering                    ,665.00,11/09/2015,REV,LONDON BOROUGH OF WANDSWORTH  
232,Childrens & Education Services,Fostering Services,ART Independent Agency Foster,W1DE46,Supplies & Services           ,Services                      ,DF53,Task Based Fostering                    ,665.00,11/09/2015,REV,LONDON BOROUGH OF WANDSWORTH  
233,Childrens & Education Services,Fostering Services,ART Independent Agency Foster,W1DE46,Supplies & Services           ,Services                      ,DF53,Task Based Fostering                    ,665.00,11/09/2015,REV,LONDON BOROUGH OF WANDSWORTH  
234,Childrens & Education Services,Fostering Services,ART Independent Agency Foster,W1DE46,Supplies & Services           ,Services                      ,DF53,Task Based Fostering                    ,671.09,10/09/2015,REV,RAINBOW FOSTERING SERVICES LTD
235,Childrens & Education Services,Family - Other Services,CS Childr Act 1989 - Section17,W1CF38,Transfer Payments             ,Schoolchildren/Students       ,FF02,Childr Act 1989 S17                     ,540.00,19/06/2015,REV,CROHAM SERV.FOR CHILDREN LTD  
236,Childrens & Education Services,Fostering Services,ART Independent Agency Foster,W1DE46,Supplies & Services           ,Services                      ,DF53,Task Based Fostering                    ,798.00,01/05/2015,REV,THE XCEL 2000 PARTNERSHIP LTD 
237,Childrens & Education Services,Fostering Services,ART Independent Agency Foster,W1DE46,Supplies & Services           ,Services                      ,DF53,Task Based Fostering                    ,798.00,01/05/2015,REV,THE XCEL 2000 PARTNERSHIP LTD 
238,Childrens & Education Services,Fostering Services,ART Independent Agency Foster,W1DE46,Supplies & Services           ,Services                      ,DF53,Task Based Fostering                    ,798.00,01/05/2015,REV,THE XCEL 2000 PARTNERSHIP LTD 
239,Childrens & Education Services,Fostering Services,ART Independent Agency Foster,W1DE46,Supplies & Services           ,Services                      ,DF53,Task Based Fostering                    ,798.00,01/05/2015,REV,THE XCEL 2000 PARTNERSHIP LTD 
240,Childrens & Education Services,Fostering Services,ART Independent Agency Foster,W1DE46,Supplies & Services           ,Services                      ,DF53,Task Based Fostering                    ,671.09,10/09/2015,REV,RAINBOW FOSTERING SERVICES LTD
241,Childrens & Education Services,Fostering Services,ART Independent Agency Foster,W1DE46,Supplies & Services           ,Services                      ,DF53,Task Based Fostering                    ,671.09,10/09/2015,REV,RAINBOW FOSTERING SERVICES LTD
242,Childrens & Education Services,Fostering Services,ART Independent Agency Foster,W1DE46,Supplies & Services           ,Services                      ,DF53,Task Based Fostering                    ,671.09,10/09/2015,REV,RAINBOW FOSTERING SERVICES LTD
243,Childrens & Education Services,Fostering Services,ART Independent Agency Foster,W1DE46,Supplies & Services           ,Services                      ,DF53,Task Based Fostering                    ,803.60,12/08/2015,REV,CHILDREN OF COLOUR            
244,Childrens & Education Services,Fostering Services,ART Independent Agency Foster,W1DE46,Supplies & Services           ,Services                      ,DF53,Task Based Fostering                    ,803.60,12/08/2015,REV,CHILDREN OF COLOUR            
245,Childrens & Education Services,Fostering Services,ART Independent Agency Foster,W1DE46,Supplies & Services           ,Services                      ,DF53,Task Based Fostering                    ,803.60,12/08/2015,REV,CHILDREN OF COLOUR            
246,Childrens & Education Services,Fostering Services,ART Independent Agency Foster,W1DE46,Supplies & Services           ,Services                      ,DF53,Task Based Fostering                    ,803.60,12/08/2015,REV,CHILDREN OF COLOUR            
247,Childrens & Education Services,Fostering Services,ART Independent Agency Foster,W1DE46,Supplies & Services           ,Services                      ,DF53,Task Based Fostering                    ,803.60,12/08/2015,REV,CHILDREN OF COLOUR            
248,Childrens & Education Services,Fostering Services,ART Independent Agency Foster,W1DE46,Supplies & Services           ,Services                      ,DF53,Task Based Fostering                    ,-688.80,12/08/2015,REV,CHILDREN OF COLOUR            
249,Childrens & Education Services,Fostering Services,ART Independent Agency Foster,W1DE46,Supplies & Services           ,Services                      ,DF53,Task Based Fostering                    ,792.41,21/08/2015,REV,DIAGRAMA FOUNDATION           
250,Childrens & Education Services,Fostering Services,ART Independent Agency Foster,W1DE46,Supplies & Services           ,Services                      ,DF53,Task Based Fostering                    ,792.41,21/08/2015,REV,DIAGRAMA FOUNDATION           
251,Childrens & Education Services,Fostering Services,ART Independent Agency Foster,W1DE46,Supplies & Services           ,Services                      ,DF53,Task Based Fostering                    ,792.41,21/08/2015,REV,DIAGRAMA FOUNDATION           
252,Childrens & Education Services,Fostering Services,ART Independent Agency Foster,W1DE46,Supplies & Services           ,Services                      ,DF53,Task Based Fostering                    ,792.41,21/08/2015,REV,DIAGRAMA FOUNDATION           
253,Childrens & Education Services,Fostering Services,ART Independent Agency Foster,W1DE46,Supplies & Services           ,Services                      ,DF91,Long Term Fostering                     ,802.97,01/07/2015,REV,FOSTER CARE ASSOCIATES LTD    
254,Childrens & Education Services,Fostering Services,ART Independent Agency Foster,W1DE46,Supplies & Services           ,Services                      ,DF91,Long Term Fostering                     ,802.97,01/07/2015,REV,FOSTER CARE ASSOCIATES LTD    
255,Childrens & Education Services,Fostering Services,ART Independent Agency Foster,W1DE46,Supplies & Services           ,Services                      ,DF91,Long Term Fostering                     ,802.97,01/07/2015,REV,FOSTER CARE ASSOCIATES LTD    
256,Childrens & Education Services,Fostering Services,ART Independent Agency Foster,W1DE46,Supplies & Services           ,Services                      ,DF91,Long Term Fostering                     ,802.97,01/07/2015,REV,FOSTER CARE ASSOCIATES LTD    
257,Childrens & Education Services,Fostering Services,ART In-house Fostering,W1DE47,Supplies & Services           ,Services                      ,DF53,Task Based Fostering                    ,545.26,07/09/2015,REV,REDACTED
258,Childrens & Education Services,Fostering Services,ART Independent Agency Foster,W1DE46,Supplies & Services           ,Services                      ,DF53,Task Based Fostering                    ,735.00,31/08/2015,REV,KINDERCARE FOSTERING          
259,Childrens & Education Services,Fostering Services,ART Independent Agency Foster,W1DE46,Supplies & Services           ,Services                      ,DF53,Task Based Fostering                    ,735.00,31/08/2015,REV,KINDERCARE FOSTERING          
260,Childrens & Education Services,Fostering Services,ART Independent Agency Foster,W1DE46,Supplies & Services           ,Services                      ,DF53,Task Based Fostering                    ,735.00,31/08/2015,REV,KINDERCARE FOSTERING          
261,Childrens & Education Services,Fostering Services,ART Independent Agency Foster,W1DE46,Supplies & Services           ,Services                      ,DF53,Task Based Fostering                    ,735.00,31/08/2015,REV,KINDERCARE FOSTERING          
262,Childrens & Education Services,Fostering Services,ART Independent Agency Foster,W1DE46,Supplies & Services           ,Services                      ,DF53,Task Based Fostering                    ,700.56,29/07/2015,REV,CORNERWAYS FOSTERING SERV.LTD 
263,Childrens & Education Services,Fostering Services,ART Independent Agency Foster,W1DE46,Supplies & Services           ,Services                      ,DF53,Task Based Fostering                    ,700.56,29/07/2015,REV,CORNERWAYS FOSTERING SERV.LTD 
264,Childrens & Education Services,Fostering Services,ART Independent Agency Foster,W1DE46,Supplies & Services           ,Services                      ,DF53,Task Based Fostering                    ,700.56,29/07/2015,REV,CORNERWAYS FOSTERING SERV.LTD 
265,Childrens & Education Services,Fostering Services,ART Independent Agency Foster,W1DE46,Supplies & Services           ,Services                      ,DF53,Task Based Fostering                    ,700.56,29/07/2015,REV,CORNERWAYS FOSTERING SERV.LTD 
266,Childrens & Education Services,Fostering Services,ART Independent Agency Foster,W1DE46,Supplies & Services           ,Services                      ,DF53,Task Based Fostering                    ,700.56,29/07/2015,REV,CORNERWAYS FOSTERING SERV.LTD 
267,Childrens & Education Services,Fostering Services,ART Independent Agency Foster,W1DE46,Supplies & Services           ,Services                      ,DF53,Task Based Fostering                    ,-600.48,29/07/2015,REV,CORNERWAYS FOSTERING SERV.LTD 
268,Childrens & Education Services,Fostering Services,ART Independent Agency Foster,W1DE46,Supplies & Services           ,Services                      ,DF53,Task Based Fostering                    ,735.00,31/08/2015,REV,HORIZON FOSTERING SERVICES    
269,Childrens & Education Services,Fostering Services,ART Independent Agency Foster,W1DE46,Supplies & Services           ,Services                      ,DF53,Task Based Fostering                    ,735.00,31/08/2015,REV,HORIZON FOSTERING SERVICES    
270,Childrens & Education Services,Fostering Services,ART Independent Agency Foster,W1DE46,Supplies & Services           ,Services                      ,DF53,Task Based Fostering                    ,735.00,31/08/2015,REV,HORIZON FOSTERING SERVICES    
271,Childrens & Education Services,Fostering Services,ART Independent Agency Foster,W1DE46,Supplies & Services           ,Services                      ,DF53,Task Based Fostering                    ,735.00,31/08/2015,REV,HORIZON FOSTERING SERVICES    
272,Childrens & Education Services,Fostering Services,ART Independent Agency Foster,W1DE46,Supplies & Services           ,Services                      ,DF53,Task Based Fostering                    ,735.00,31/08/2015,REV,HORIZON FOSTERING SERVICES    
273,Childrens & Education Services,Fostering Services,ART Independent Agency Foster,W1DE46,Supplies & Services           ,Services                      ,DF53,Task Based Fostering                    ,-630.00,31/08/2015,REV,HORIZON FOSTERING SERVICES    
274,Childrens & Education Services,Fostering Services,ART Independent Agency Foster,W1DE46,Supplies & Services           ,Services                      ,DF53,Task Based Fostering                    ,780.01,06/09/2015,REV,THE NATIONAL FOSTERING AGENCY 
275,Childrens & Education Services,Fostering Services,ART Independent Agency Foster,W1DE46,Supplies & Services           ,Services                      ,DF53,Task Based Fostering                    ,780.01,06/09/2015,REV,THE NATIONAL FOSTERING AGENCY 
276,Childrens & Education Services,Fostering Services,CL Fostering Services,W1DD47,Supplies & Services           ,Services                      ,DF19,Foster Parent Retainers                 ,4000.00,18/09/2015,REV,REDACTED
277,Childrens & Education Services,Fostering Services,ART In-house Fostering,W1DE47,Supplies & Services           ,Services                      ,DF53,Task Based Fostering                    ,-2604.67,11/09/2015,REV,REDACTED
278,Childrens & Education Services,Support for SEN Pupils,PERSONAL BUDGETS - TRANSPORT,W1CH62,Third Party Payments          ,Private Contractors           ,EH73,Direct Payments                         ,850.00,24/09/2015,REV,REDACTED
279,Childrens & Education Services,Adoption Services,CL Permanency,W1DC00,Third Party Payments          ,Private Contractors           ,EH01,Miscellaneous Agency Services           ,14333.00,21/08/2015,REV,NORTH LINCOLNSHIRE COUNCIL    
280,Childrens & Education Services,Fostering Services,ART Independent Agency Foster,W1DE46,Supplies & Services           ,Services                      ,DF53,Task Based Fostering                    ,780.01,06/09/2015,REV,THE NATIONAL FOSTERING AGENCY 
281,Childrens & Education Services,Fostering Services,ART Independent Agency Foster,W1DE46,Supplies & Services           ,Services                      ,DF53,Task Based Fostering                    ,780.01,06/09/2015,REV,THE NATIONAL FOSTERING AGENCY 
282,Childrens & Education Services,Fostering Services,ART Independent Agency Foster,W1DE46,Supplies & Services           ,Services                      ,DF53,Task Based Fostering                    ,767.97,14/07/2015,REV,MOMENTS FOSTERING             
283,Childrens & Education Services,Fostering Services,ART Independent Agency Foster,W1DE46,Supplies & Services           ,Services                      ,DF53,Task Based Fostering                    ,767.97,14/07/2015,REV,MOMENTS FOSTERING             
284,Childrens & Education Services,Fostering Services,ART Independent Agency Foster,W1DE46,Supplies & Services           ,Services                      ,DF53,Task Based Fostering                    ,767.97,14/07/2015,REV,MOMENTS FOSTERING             
285,Childrens & Education Services,Fostering Services,ART Independent Agency Foster,W1DE46,Supplies & Services           ,Services                      ,DF53,Task Based Fostering                    ,767.97,14/07/2015,REV,MOMENTS FOSTERING             
286,Childrens & Education Services,Fostering Services,ART Independent Agency Foster,W1DE46,Supplies & Services           ,Services                      ,DF53,Task Based Fostering                    ,767.97,14/07/2015,REV,MOMENTS FOSTERING             
287,Childrens & Education Services,Fostering Services,ART Independent Agency Foster,W1DE46,Supplies & Services           ,Services                      ,DF53,Task Based Fostering                    ,-658.26,14/07/2015,REV,MOMENTS FOSTERING             
288,Childrens & Education Services,Fostering Services,ART Independent Agency Foster,W1DE46,Supplies & Services           ,Services                      ,DF53,Task Based Fostering                    ,748.37,06/09/2015,REV,THE NATIONAL FOSTERING AGENCY 
289,Childrens & Education Services,Fostering Services,ART Independent Agency Foster,W1DE46,Supplies & Services           ,Services                      ,DF53,Task Based Fostering                    ,748.37,06/09/2015,REV,THE NATIONAL FOSTERING AGENCY 
290,Childrens & Education Services,Fostering Services,ART Independent Agency Foster,W1DE46,Supplies & Services           ,Services                      ,DF53,Task Based Fostering                    ,748.37,06/09/2015,REV,THE NATIONAL FOSTERING AGENCY 
291,Childrens & Education Services,Fostering Services,ART Independent Agency Foster,W1DE46,Supplies & Services           ,Services                      ,DF53,Task Based Fostering                    ,748.37,06/09/2015,REV,THE NATIONAL FOSTERING AGENCY 
292,Childrens & Education Services,Fostering Services,ART Independent Agency Foster,W1DE46,Supplies & Services           ,Services                      ,DF53,Task Based Fostering                    ,574.00,15/07/2015,REV,CHILDREN OF COLOUR            
293,Childrens & Education Services,Fostering Services,ART Independent Agency Foster,W1DE46,Supplies & Services           ,Services                      ,DF53,Task Based Fostering                    ,803.60,15/07/2015,REV,CHILDREN OF COLOUR            
294,Childrens & Education Services,Fostering Services,ART Independent Agency Foster,W1DE46,Supplies & Services           ,Services                      ,DF53,Task Based Fostering                    ,570.00,01/07/2015,REV,THE XCEL 2000 PARTNERSHIP LTD 
295,Childrens & Education Services,Fostering Services,ART Independent Agency Foster,W1DE46,Supplies & Services           ,Services                      ,DF53,Task Based Fostering                    ,798.00,01/07/2015,REV,THE XCEL 2000 PARTNERSHIP LTD 
296,Childrens & Education Services,Fostering Services,ART Independent Agency Foster,W1DE46,Supplies & Services           ,Services                      ,DF53,Task Based Fostering                    ,798.00,01/07/2015,REV,THE XCEL 2000 PARTNERSHIP LTD 
297,Childrens & Education Services,Fostering Services,ART Independent Agency Foster,W1DE46,Supplies & Services           ,Services                      ,DF53,Task Based Fostering                    ,798.00,01/07/2015,REV,THE XCEL 2000 PARTNERSHIP LTD 
298,Childrens & Education Services,Fostering Services,ART Independent Agency Foster,W1DE46,Supplies & Services           ,Services                      ,DF53,Task Based Fostering                    ,671.09,10/09/2015,REV,RAINBOW FOSTERING SERVICES LTD
299,Childrens & Education Services,Fostering Services,ART Independent Agency Foster,W1DE46,Supplies & Services           ,Services                      ,DF53,Task Based Fostering                    ,671.09,10/09/2015,REV,RAINBOW FOSTERING SERVICES LTD
300,Childrens & Education Services,Fostering Services,ART Independent Agency Foster,W1DE46,Supplies & Services           ,Services                      ,DF53,Task Based Fostering                    ,671.09,10/09/2015,REV,RAINBOW FOSTERING SERVICES LTD
301,Childrens & Education Services,Fostering Services,ART Independent Agency Foster,W1DE46,Supplies & Services           ,Services                      ,DF53,Task Based Fostering                    ,671.09,10/09/2015,REV,RAINBOW FOSTERING SERVICES LTD
302,Childrens & Education Services,Fostering Services,ART Independent Agency Foster,W1DE46,Supplies & Services           ,Services                      ,DF53,Task Based Fostering                    ,671.09,10/09/2015,REV,RAINBOW FOSTERING SERVICES LTD
303,Childrens & Education Services,Fostering Services,ART Independent Agency Foster,W1DE46,Supplies & Services           ,Services                      ,DF53,Task Based Fostering                    ,-575.22,10/09/2015,REV,RAINBOW FOSTERING SERVICES LTD
304,Childrens & Education Services,Fostering Services,ART Independent Agency Foster,W1DE46,Supplies & Services           ,Services                      ,DF53,Task Based Fostering                    ,701.68,10/09/2015,REV,RAINBOW FOSTERING SERVICES LTD
305,Childrens & Education Services,Fostering Services,ART Independent Agency Foster,W1DE46,Supplies & Services           ,Services                      ,DF53,Task Based Fostering                    ,701.68,10/09/2015,REV,RAINBOW FOSTERING SERVICES LTD
306,Childrens & Education Services,Fostering Services,ART Independent Agency Foster,W1DE46,Supplies & Services           ,Services                      ,DF53,Task Based Fostering                    ,701.68,10/09/2015,REV,RAINBOW FOSTERING SERVICES LTD
307,Childrens & Education Services,Fostering Services,ART Independent Agency Foster,W1DE46,Supplies & Services           ,Services                      ,DF53,Task Based Fostering                    ,701.68,10/09/2015,REV,RAINBOW FOSTERING SERVICES LTD
308,Childrens & Education Services,Fostering Services,ART Independent Agency Foster,W1DE46,Supplies & Services           ,Services                      ,DF53,Task Based Fostering                    ,701.68,10/09/2015,REV,RAINBOW FOSTERING SERVICES LTD
309,Childrens & Education Services,Fostering Services,ART Independent Agency Foster,W1DE46,Supplies & Services           ,Services                      ,DF53,Task Based Fostering                    ,-601.44,10/09/2015,REV,RAINBOW FOSTERING SERVICES LTD
310,Childrens & Education Services,Chidren's Homes,ART Residential Placements,W1DE57,Third Party Payments          ,Private Contractors           ,EH01,Miscellaneous Agency Services           ,924.28,03/08/2015,REV,REDACTED
311,Childrens & Education Services,Chidren's Homes,ART Residential Placements,W1DE57,Third Party Payments          ,Private Contractors           ,EH01,Miscellaneous Agency Services           ,3235.00,03/08/2015,REV,REDACTED
312,Childrens & Education Services,Chidren's Homes,ART Residential Placements,W1DE57,Third Party Payments          ,Private Contractors           ,EH01,Miscellaneous Agency Services           ,3235.00,03/08/2015,REV,REDACTED
313,Childrens & Education Services,Chidren's Homes,ART Residential Placements,W1DE57,Third Party Payments          ,Private Contractors           ,EH01,Miscellaneous Agency Services           ,3235.00,03/08/2015,REV,REDACTED
314,Childrens & Education Services,Chidren's Homes,ART Residential Placements,W1DE57,Third Party Payments          ,Private Contractors           ,EH01,Miscellaneous Agency Services           ,3235.00,03/08/2015,REV,REDACTED
315,Childrens & Education Services,Fostering Services,ART Independent Agency Foster,W1DE46,Supplies & Services           ,Services                      ,DF53,Task Based Fostering                    ,792.41,21/08/2015,REV,DIAGRAMA FOUNDATION           
316,Childrens & Education Services,Fostering Services,ART Independent Agency Foster,W1DE46,Supplies & Services           ,Services                      ,DF53,Task Based Fostering                    ,792.41,21/08/2015,REV,DIAGRAMA FOUNDATION           
317,Childrens & Education Services,Fostering Services,ART Independent Agency Foster,W1DE46,Supplies & Services           ,Services                      ,DF53,Task Based Fostering                    ,792.41,21/08/2015,REV,DIAGRAMA FOUNDATION           
318,Childrens & Education Services,Fostering Services,ART Independent Agency Foster,W1DE46,Supplies & Services           ,Services                      ,DF53,Task Based Fostering                    ,792.41,21/08/2015,REV,DIAGRAMA FOUNDATION           
319,Childrens & Education Services,Fostering Services,ART Independent Agency Foster,W1DE46,Supplies & Services           ,Services                      ,DF53,Task Based Fostering                    ,671.09,10/09/2015,REV,RAINBOW FOSTERING SERVICES LTD
320,Childrens & Education Services,Fostering Services,ART Independent Agency Foster,W1DE46,Supplies & Services           ,Services                      ,DF53,Task Based Fostering                    ,-575.22,10/09/2015,REV,RAINBOW FOSTERING SERVICES LTD
321,Childrens & Education Services,Chidren's Homes,ART Residential Placements,W1DE57,Third Party Payments          ,Private Contractors           ,EH01,Miscellaneous Agency Services           ,1003.68,03/08/2015,REV,REDACTED
322,Childrens & Education Services,Chidren's Homes,ART Residential Placements,W1DE57,Third Party Payments          ,Private Contractors           ,EH01,Miscellaneous Agency Services           ,3512.92,03/08/2015,REV,REDACTED
323,Childrens & Education Services,Chidren's Homes,ART Residential Placements,W1DE57,Third Party Payments          ,Private Contractors           ,EH01,Miscellaneous Agency Services           ,3512.92,03/08/2015,REV,REDACTED
324,Childrens & Education Services,Chidren's Homes,ART Residential Placements,W1DE57,Third Party Payments          ,Private Contractors           ,EH01,Miscellaneous Agency Services           ,3512.92,03/08/2015,REV,REDACTED
325,Childrens & Education Services,Chidren's Homes,ART Residential Placements,W1DE57,Third Party Payments          ,Private Contractors           ,EH01,Miscellaneous Agency Services           ,3512.92,03/08/2015,REV,REDACTED
326,Childrens & Education Services,Chidren's Homes,ART Residential Placements,W1DE57,Third Party Payments          ,Private Contractors           ,EH01,Miscellaneous Agency Services           ,3512.92,03/08/2015,REV,REDACTED
327,Childrens & Education Services,Chidren's Homes,ART Residential Placements,W1DE57,Third Party Payments          ,Private Contractors           ,EH01,Miscellaneous Agency Services           ,-3011.06,03/08/2015,REV,REDACTED
328,Childrens & Education Services,Chidren's Homes,ART Residential Placements,W1DE57,Third Party Payments          ,Private Contractors           ,EH01,Miscellaneous Agency Services           ,1428.49,31/08/2015,REV,REDACTED
329,Childrens & Education Services,Chidren's Homes,ART Residential Placements,W1DE57,Third Party Payments          ,Private Contractors           ,EH01,Miscellaneous Agency Services           ,-1428.57,31/08/2015,REV,REDACTED
330,Childrens & Education Services,Fostering Services,ART Independent Agency Foster,W1DE46,Supplies & Services           ,Services                      ,DF53,Task Based Fostering                    ,570.00,21/09/2015,REV,THE XCEL 2000 PARTNERSHIP LTD 
331,Childrens & Education Services,Fostering Services,ART Independent Agency Foster,W1DE46,Supplies & Services           ,Services                      ,DF53,Task Based Fostering                    ,798.00,21/09/2015,REV,THE XCEL 2000 PARTNERSHIP LTD 
332,Childrens & Education Services,Fostering Services,ART Independent Agency Foster,W1DE46,Supplies & Services           ,Services                      ,DF53,Task Based Fostering                    ,684.00,21/09/2015,REV,THE XCEL 2000 PARTNERSHIP LTD 
333,Childrens & Education Services,Chidren's Homes,ART Residential Placements,W1DE57,Third Party Payments          ,Private Contractors           ,EH01,Miscellaneous Agency Services           ,2057.14,10/06/2015,REV,REDACTED
334,Childrens & Education Services,Chidren's Homes,ART Residential Placements,W1DE57,Third Party Payments          ,Private Contractors           ,EH01,Miscellaneous Agency Services           ,2400.00,10/06/2015,REV,REDACTED
335,Childrens & Education Services,Chidren's Homes,ART Residential Placements,W1DE57,Third Party Payments          ,Private Contractors           ,EH01,Miscellaneous Agency Services           ,2400.00,10/06/2015,REV,REDACTED
336,Childrens & Education Services,Chidren's Homes,ART Residential Placements,W1DE57,Third Party Payments          ,Private Contractors           ,EH01,Miscellaneous Agency Services           ,2400.00,01/07/2015,REV,REDACTED
337,Childrens & Education Services,Chidren's Homes,ART Residential Placements,W1DE57,Third Party Payments          ,Private Contractors           ,EH01,Miscellaneous Agency Services           ,2400.00,01/07/2015,REV,REDACTED
338,Childrens & Education Services,Chidren's Homes,ART Residential Placements,W1DE57,Third Party Payments          ,Private Contractors           ,EH01,Miscellaneous Agency Services           ,2400.00,01/07/2015,REV,REDACTED
339,Childrens & Education Services,Chidren's Homes,ART Residential Placements,W1DE57,Third Party Payments          ,Private Contractors           ,EH01,Miscellaneous Agency Services           ,2400.00,01/07/2015,REV,REDACTED
340,Childrens & Education Services,Chidren's Homes,ART Residential Placements,W1DE57,Third Party Payments          ,Private Contractors           ,EH01,Miscellaneous Agency Services           ,2400.00,01/07/2015,REV,REDACTED
341,Childrens & Education Services,Chidren's Homes,ART Residential Placements,W1DE57,Third Party Payments          ,Private Contractors           ,EH01,Miscellaneous Agency Services           ,-1371.43,01/07/2015,REV,REDACTED
342,Childrens & Education Services,Chidren's Homes,ART Residential Placements,W1DE57,Third Party Payments          ,Private Contractors           ,EH01,Miscellaneous Agency Services           ,968.21,15/08/2015,REV,REDACTED
343,Childrens & Education Services,Chidren's Homes,ART Residential Placements,W1DE57,Third Party Payments          ,Private Contractors           ,EH01,Miscellaneous Agency Services           ,3388.71,15/08/2015,REV,REDACTED
344,Childrens & Education Services,Chidren's Homes,ART Residential Placements,W1DE57,Third Party Payments          ,Private Contractors           ,EH01,Miscellaneous Agency Services           ,3388.71,15/08/2015,REV,REDACTED
345,Childrens & Education Services,Chidren's Homes,ART Residential Placements,W1DE57,Third Party Payments          ,Private Contractors           ,EH01,Miscellaneous Agency Services           ,3388.71,15/08/2015,REV,REDACTED
346,Childrens & Education Services,Chidren's Homes,ART Residential Placements,W1DE57,Third Party Payments          ,Private Contractors           ,EH01,Miscellaneous Agency Services           ,3388.71,15/08/2015,REV,REDACTED
347,Childrens & Education Services,Chidren's Homes,ART Residential Placements,W1DE57,Third Party Payments          ,Private Contractors           ,EH01,Miscellaneous Agency Services           ,3388.71,15/08/2015,REV,REDACTED
348,Childrens & Education Services,Chidren's Homes,ART Residential Placements,W1DE57,Third Party Payments          ,Private Contractors           ,EH01,Miscellaneous Agency Services           ,-2904.60,15/08/2015,REV,REDACTED
349,Childrens & Education Services,Chidren's Homes,ART Residential Placements,W1DE57,Third Party Payments          ,Private Contractors           ,EH01,Miscellaneous Agency Services           ,2555.55,01/07/2015,REV,REDACTED
350,Childrens & Education Services,Chidren's Homes,ART Residential Placements,W1DE57,Third Party Payments          ,Private Contractors           ,EH01,Miscellaneous Agency Services           ,3577.82,01/07/2015,REV,REDACTED
351,Childrens & Education Services,Chidren's Homes,ART Residential Placements,W1DE57,Third Party Payments          ,Private Contractors           ,EH01,Miscellaneous Agency Services           ,3577.82,01/07/2015,REV,REDACTED
352,Childrens & Education Services,Chidren's Homes,ART Residential Placements,W1DE57,Third Party Payments          ,Private Contractors           ,EH01,Miscellaneous Agency Services           ,3577.82,01/07/2015,REV,REDACTED
353,Childrens & Education Services,Fostering Services,ART Independent Agency Foster,W1DE46,Supplies & Services           ,Services                      ,DF53,Task Based Fostering                    ,-548.55,14/07/2015,REV,MOMENTS FOSTERING             
354,Childrens & Education Services,Fostering Services,ART Independent Agency Foster,W1DE46,Supplies & Services           ,Services                      ,DF53,Task Based Fostering                    ,548.55,14/07/2015,REV,MOMENTS FOSTERING             
355,Childrens & Education Services,Fostering Services,ART Independent Agency Foster,W1DE46,Supplies & Services           ,Services                      ,DF53,Task Based Fostering                    ,767.97,14/07/2015,REV,MOMENTS FOSTERING             
356,Childrens & Education Services,Fostering Services,ART Independent Agency Foster,W1DE46,Supplies & Services           ,Services                      ,DF53,Task Based Fostering                    ,767.97,14/07/2015,REV,MOMENTS FOSTERING             
357,Childrens & Education Services,Fostering Services,ART Independent Agency Foster,W1DE46,Supplies & Services           ,Services                      ,DF53,Task Based Fostering                    ,767.97,14/07/2015,REV,MOMENTS FOSTERING             
358,Childrens & Education Services,Fostering Services,ART Independent Agency Foster,W1DE46,Supplies & Services           ,Services                      ,DF53,Task Based Fostering                    ,767.97,14/07/2015,REV,MOMENTS FOSTERING             
359,Childrens & Education Services,Fostering Services,ART Independent Agency Foster,W1DE46,Supplies & Services           ,Services                      ,DF53,Task Based Fostering                    ,534.55,14/06/2015,REV,THE NATIONAL FOSTERING AGENCY 
360,Childrens & Education Services,Fostering Services,ART Independent Agency Foster,W1DE46,Supplies & Services           ,Services                      ,DF53,Task Based Fostering                    ,748.37,14/06/2015,REV,THE NATIONAL FOSTERING AGENCY 
361,Childrens & Education Services,Fostering Services,ART Independent Agency Foster,W1DE46,Supplies & Services           ,Services                      ,DF53,Task Based Fostering                    ,748.37,14/06/2015,REV,THE NATIONAL FOSTERING AGENCY 
362,Childrens & Education Services,Fostering Services,ART Independent Agency Foster,W1DE46,Supplies & Services           ,Services                      ,DF53,Task Based Fostering                    ,748.37,14/06/2015,REV,THE NATIONAL FOSTERING AGENCY 
363,Childrens & Education Services,Fostering Services,ART Independent Agency Foster,W1DE46,Supplies & Services           ,Services                      ,DF53,Task Based Fostering                    ,576.15,14/06/2015,REV,THE NATIONAL FOSTERING AGENCY 
364,Childrens & Education Services,Fostering Services,ART Independent Agency Foster,W1DE46,Supplies & Services           ,Services                      ,DF53,Task Based Fostering                    ,806.61,14/06/2015,REV,THE NATIONAL FOSTERING AGENCY 
365,Childrens & Education Services,Fostering Services,ART Independent Agency Foster,W1DE46,Supplies & Services           ,Services                      ,DF53,Task Based Fostering                    ,806.61,14/06/2015,REV,THE NATIONAL FOSTERING AGENCY 
366,Childrens & Education Services,Fostering Services,ART Independent Agency Foster,W1DE46,Supplies & Services           ,Services                      ,DF53,Task Based Fostering                    ,806.61,14/06/2015,REV,THE NATIONAL FOSTERING AGENCY 
367,Childrens & Education Services,Chidren's Homes,ART Residential Placements,W1DE57,Third Party Payments          ,Private Contractors           ,EH01,Miscellaneous Agency Services           ,3582.00,01/08/2015,REV,REDACTED
368,Childrens & Education Services,Chidren's Homes,ART Residential Placements,W1DE57,Third Party Payments          ,Private Contractors           ,EH01,Miscellaneous Agency Services           ,3582.00,01/08/2015,REV,REDACTED
369,Childrens & Education Services,Chidren's Homes,ART Residential Placements,W1DE57,Third Party Payments          ,Private Contractors           ,EH01,Miscellaneous Agency Services           ,3582.00,01/08/2015,REV,REDACTED
370,Childrens & Education Services,Chidren's Homes,ART Residential Placements,W1DE57,Third Party Payments          ,Private Contractors           ,EH01,Miscellaneous Agency Services           ,3582.00,01/08/2015,REV,REDACTED
371,Childrens & Education Services,Chidren's Homes,ART Residential Placements,W1DE57,Third Party Payments          ,Private Contractors           ,EH01,Miscellaneous Agency Services           ,-2938.66,01/08/2015,REV,REDACTED
372,Childrens & Education Services,Chidren's Homes,ART Residential Placements,W1DE57,Third Party Payments          ,Private Contractors           ,EH01,Miscellaneous Agency Services           ,3582.00,01/08/2015,REV,REDACTED
373,Childrens & Education Services,Chidren's Homes,ART Residential Placements,W1DE57,Third Party Payments          ,Private Contractors           ,EH01,Miscellaneous Agency Services           ,819.99,05/08/2015,REV,REDACTED
374,Childrens & Education Services,Chidren's Homes,ART Residential Placements,W1DE57,Third Party Payments          ,Private Contractors           ,EH01,Miscellaneous Agency Services           ,2871.51,05/08/2015,REV,REDACTED
375,Childrens & Education Services,Chidren's Homes,ART Residential Placements,W1DE57,Third Party Payments          ,Private Contractors           ,EH01,Miscellaneous Agency Services           ,2871.51,05/08/2015,REV,REDACTED
376,Childrens & Education Services,Chidren's Homes,ART Residential Placements,W1DE57,Third Party Payments          ,Private Contractors           ,EH01,Miscellaneous Agency Services           ,2871.51,05/08/2015,REV,REDACTED
377,Childrens & Education Services,Chidren's Homes,ART Residential Placements,W1DE57,Third Party Payments          ,Private Contractors           ,EH01,Miscellaneous Agency Services           ,2871.51,05/08/2015,REV,REDACTED
378,Childrens & Education Services,Chidren's Homes,ART Residential Placements,W1DE57,Third Party Payments          ,Private Contractors           ,EH01,Miscellaneous Agency Services           ,2871.51,05/08/2015,REV,REDACTED
379,Childrens & Education Services,Chidren's Homes,ART Residential Placements,W1DE57,Third Party Payments          ,Private Contractors           ,EH01,Miscellaneous Agency Services           ,-2460.63,05/08/2015,REV,REDACTED
380,Childrens & Education Services,Chidren's Homes,ART Residential Placements,W1DE57,Third Party Payments          ,Private Contractors           ,EH01,Miscellaneous Agency Services           ,2525.70,18/05/2015,REV,REDACTED
381,Childrens & Education Services,Chidren's Homes,ART Residential Placements,W1DE57,Third Party Payments          ,Private Contractors           ,EH01,Miscellaneous Agency Services           ,2525.70,18/05/2015,REV,REDACTED
382,Childrens & Education Services,Chidren's Homes,ART Residential Placements,W1DE57,Third Party Payments          ,Private Contractors           ,EH01,Miscellaneous Agency Services           ,-2525.70,18/05/2015,REV,REDACTED
383,Childrens & Education Services,Chidren's Homes,ART Residential Placements,W1DE57,Third Party Payments          ,Private Contractors           ,EH01,Miscellaneous Agency Services           ,3535.98,18/05/2015,REV,REDACTED
384,Childrens & Education Services,Chidren's Homes,ART Residential Placements,W1DE57,Third Party Payments          ,Private Contractors           ,EH01,Miscellaneous Agency Services           ,3535.98,18/05/2015,REV,REDACTED
385,Childrens & Education Services,Chidren's Homes,ART Residential Placements,W1DE57,Third Party Payments          ,Private Contractors           ,EH01,Miscellaneous Agency Services           ,3535.98,18/05/2015,REV,REDACTED
386,Childrens & Education Services,Chidren's Homes,ART Residential Placements,W1DE57,Third Party Payments          ,Private Contractors           ,EH01,Miscellaneous Agency Services           ,3535.98,18/05/2015,REV,REDACTED
387,Childrens & Education Services,Chidren's Homes,ART Residential Placements,W1DE57,Third Party Payments          ,Private Contractors           ,EH01,Miscellaneous Agency Services           ,-1515.42,18/05/2015,REV,REDACTED
388,Childrens & Education Services,Chidren's Homes,ART Residential Placements,W1DE57,Third Party Payments          ,Private Contractors           ,EH01,Miscellaneous Agency Services           ,1515.42,18/05/2015,REV,REDACTED
389,Childrens & Education Services,Chidren's Homes,ART Residential Placements,W1DE57,Third Party Payments          ,Private Contractors           ,EH01,Miscellaneous Agency Services           ,3535.98,18/05/2015,REV,REDACTED
390,Childrens & Education Services,Chidren's Homes,ART Residential Placements,W1DE57,Third Party Payments          ,Private Contractors           ,EH01,Miscellaneous Agency Services           ,3535.98,18/05/2015,REV,REDACTED
391,Childrens & Education Services,Chidren's Homes,ART Residential Placements,W1DE57,Third Party Payments          ,Private Contractors           ,EH01,Miscellaneous Agency Services           ,5000.00,31/08/2015,REV,REDACTED
392,Childrens & Education Services,Chidren's Homes,ART Residential Placements,W1DE57,Third Party Payments          ,Private Contractors           ,EH01,Miscellaneous Agency Services           ,1371.43,03/08/2015,REV,REDACTED
393,Childrens & Education Services,Chidren's Homes,ART Residential Placements,W1DE57,Third Party Payments          ,Private Contractors           ,EH01,Miscellaneous Agency Services           ,-685.72,03/08/2015,REV,REDACTED
394,Childrens & Education Services,Chidren's Homes,ART Residential Placements,W1DE57,Third Party Payments          ,Private Contractors           ,EH01,Miscellaneous Agency Services           ,2400.00,03/08/2015,REV,REDACTED
395,Childrens & Education Services,Chidren's Homes,ART Residential Placements,W1DE57,Third Party Payments          ,Private Contractors           ,EH01,Miscellaneous Agency Services           ,2400.00,03/08/2015,REV,REDACTED
396,Childrens & Education Services,Chidren's Homes,ART Residential Placements,W1DE57,Third Party Payments          ,Private Contractors           ,EH01,Miscellaneous Agency Services           ,2400.00,03/08/2015,REV,REDACTED
397,Childrens & Education Services,Chidren's Homes,ART Residential Placements,W1DE57,Third Party Payments          ,Private Contractors           ,EH01,Miscellaneous Agency Services           ,2400.00,03/08/2015,REV,REDACTED
398,Childrens & Education Services,Chidren's Homes,ART Residential Placements,W1DE57,Third Party Payments          ,Private Contractors           ,EH01,Miscellaneous Agency Services           ,2400.00,03/08/2015,REV,REDACTED
399,Childrens & Education Services,Chidren's Homes,ART Residential Placements,W1DE57,Third Party Payments          ,Private Contractors           ,EH01,Miscellaneous Agency Services           ,-2057.14,03/08/2015,REV,REDACTED
400,Childrens & Education Services,Chidren's Homes,ART Residential Placements,W1DE57,Third Party Payments          ,Private Contractors           ,EH01,Miscellaneous Agency Services           ,2555.55,01/07/2015,REV,REDACTED
401,Childrens & Education Services,Chidren's Homes,ART Residential Placements,W1DE57,Third Party Payments          ,Private Contractors           ,EH01,Miscellaneous Agency Services           ,3577.82,01/07/2015,REV,REDACTED
402,Childrens & Education Services,Chidren's Homes,ART Residential Placements,W1DE57,Third Party Payments          ,Private Contractors           ,EH01,Miscellaneous Agency Services           ,3577.82,01/07/2015,REV,REDACTED
403,Childrens & Education Services,Chidren's Homes,ART Residential Placements,W1DE57,Third Party Payments          ,Private Contractors           ,EH01,Miscellaneous Agency Services           ,3577.82,01/07/2015,REV,REDACTED
404,Childrens & Education Services,Chidren's Homes,ART Residential Placements,W1DE57,Third Party Payments          ,Private Contractors           ,EH01,Miscellaneous Agency Services           ,3577.82,01/07/2015,REV,REDACTED
405,Childrens & Education Services,Chidren's Homes,ART Residential Placements,W1DE57,Third Party Payments          ,Private Contractors           ,EH01,Miscellaneous Agency Services           ,3577.82,01/07/2015,REV,REDACTED
406,Childrens & Education Services,Chidren's Homes,ART Residential Placements,W1DE57,Third Party Payments          ,Private Contractors           ,EH01,Miscellaneous Agency Services           ,3577.82,01/07/2015,REV,REDACTED
407,Childrens & Education Services,Chidren's Homes,ART Residential Placements,W1DE57,Third Party Payments          ,Private Contractors           ,EH01,Miscellaneous Agency Services           ,3577.82,01/07/2015,REV,REDACTED
408,Childrens & Education Services,Chidren's Homes,ART Residential Placements,W1DE57,Third Party Payments          ,Private Contractors           ,EH01,Miscellaneous Agency Services           ,3577.82,01/07/2015,REV,REDACTED
409,Childrens & Education Services,Chidren's Homes,ART Residential Placements,W1DE57,Third Party Payments          ,Private Contractors           ,EH01,Miscellaneous Agency Services           ,3577.82,01/07/2015,REV,REDACTED
410,Childrens & Education Services,Chidren's Homes,ART Residential Placements,W1DE57,Third Party Payments          ,Private Contractors           ,EH01,Miscellaneous Agency Services           ,3577.82,01/07/2015,REV,REDACTED
411,Childrens & Education Services,Chidren's Homes,ART Residential Placements,W1DE57,Third Party Payments          ,Private Contractors           ,EH01,Miscellaneous Agency Services           ,3577.82,01/07/2015,REV,REDACTED
412,Childrens & Education Services,Chidren's Homes,ART Residential Placements,W1DE57,Third Party Payments          ,Private Contractors           ,EH01,Miscellaneous Agency Services           ,3577.82,01/07/2015,REV,REDACTED
413,Childrens & Education Services,Chidren's Homes,ART Residential Placements,W1DE57,Third Party Payments          ,Private Contractors           ,EH01,Miscellaneous Agency Services           ,3577.82,01/07/2015,REV,REDACTED
414,Childrens & Education Services,Chidren's Homes,ART Residential Placements,W1DE57,Third Party Payments          ,Private Contractors           ,EH01,Miscellaneous Agency Services           ,-2555.51,01/07/2015,REV,REDACTED
415,Childrens & Education Services,Chidren's Homes,ART Residential Placements,W1DE57,Third Party Payments          ,Private Contractors           ,EH01,Miscellaneous Agency Services           ,3240.00,31/05/2015,REV,REDACTED
416,Childrens & Education Services,Chidren's Homes,ART Residential Placements,W1DE57,Third Party Payments          ,Private Contractors           ,EH01,Miscellaneous Agency Services           ,3235.00,03/08/2015,REV,REDACTED
417,Childrens & Education Services,Chidren's Homes,ART Residential Placements,W1DE57,Third Party Payments          ,Private Contractors           ,EH01,Miscellaneous Agency Services           ,-2772.85,03/08/2015,REV,REDACTED
418,Childrens & Education Services,Chidren's Homes,ART Residential Placements,W1DE57,Third Party Payments          ,Private Contractors           ,EH01,Miscellaneous Agency Services           ,4285.71,31/07/2015,REV,REDACTED
419,Childrens & Education Services,Chidren's Homes,ART Residential Placements,W1DE57,Third Party Payments          ,Private Contractors           ,EH01,Miscellaneous Agency Services           ,5000.00,31/07/2015,REV,REDACTED
420,Childrens & Education Services,Chidren's Homes,ART Residential Placements,W1DE57,Third Party Payments          ,Private Contractors           ,EH01,Miscellaneous Agency Services           ,5000.00,31/07/2015,REV,REDACTED
421,Childrens & Education Services,Chidren's Homes,ART Residential Placements,W1DE57,Third Party Payments          ,Private Contractors           ,EH01,Miscellaneous Agency Services           ,-1428.49,31/07/2015,REV,REDACTED
422,Childrens & Education Services,Chidren's Homes,ART Residential Placements,W1DE57,Third Party Payments          ,Private Contractors           ,EH01,Miscellaneous Agency Services           ,3718.90,01/09/2015,REV,REDACTED
423,Childrens & Education Services,Chidren's Homes,ART Residential Placements,W1DE57,Third Party Payments          ,Private Contractors           ,EH01,Miscellaneous Agency Services           ,3718.90,01/09/2015,REV,REDACTED
424,Childrens & Education Services,Chidren's Homes,ART Residential Placements,W1DE57,Third Party Payments          ,Private Contractors           ,EH01,Miscellaneous Agency Services           ,3718.90,01/09/2015,REV,REDACTED
425,Childrens & Education Services,Chidren's Homes,ART Residential Placements,W1DE57,Third Party Payments          ,Private Contractors           ,EH01,Miscellaneous Agency Services           ,3718.90,01/09/2015,REV,REDACTED
426,Childrens & Education Services,Chidren's Homes,ART Residential Placements,W1DE57,Third Party Payments          ,Private Contractors           ,EH01,Miscellaneous Agency Services           ,2898.70,10/09/2015,REV,REDACTED
427,Childrens & Education Services,Chidren's Homes,ART Residential Placements,W1DE57,Third Party Payments          ,Private Contractors           ,EH01,Miscellaneous Agency Services           ,2898.70,10/09/2015,REV,REDACTED
428,Childrens & Education Services,Chidren's Homes,ART Residential Placements,W1DE57,Third Party Payments          ,Private Contractors           ,EH01,Miscellaneous Agency Services           ,2898.70,10/09/2015,REV,REDACTED
429,Childrens & Education Services,Chidren's Homes,ART Residential Placements,W1DE57,Third Party Payments          ,Private Contractors           ,EH01,Miscellaneous Agency Services           ,2898.70,10/09/2015,REV,REDACTED
430,Childrens & Education Services,Chidren's Homes,ART Residential Placements,W1DE57,Third Party Payments          ,Private Contractors           ,EH01,Miscellaneous Agency Services           ,6480.00,30/06/2015,REV,REDACTED
431,Childrens & Education Services,Chidren's Homes,ART Residential Placements,W1DE57,Third Party Payments          ,Private Contractors           ,EH01,Miscellaneous Agency Services           ,2800.00,01/09/2015,REV,REDACTED
432,Childrens & Education Services,Chidren's Homes,ART Residential Placements,W1DE57,Third Party Payments          ,Private Contractors           ,EH01,Miscellaneous Agency Services           ,-800.00,01/09/2015,REV,REDACTED
433,Childrens & Education Services,Chidren's Homes,ART Residential Placements,W1DE57,Third Party Payments          ,Private Contractors           ,EH01,Miscellaneous Agency Services           ,-1600.00,01/09/2015,REV,REDACTED
434,Childrens & Education Services,Chidren's Homes,ART Residential Placements,W1DE57,Third Party Payments          ,Private Contractors           ,EH01,Miscellaneous Agency Services           ,800.00,01/09/2015,REV,REDACTED
435,Childrens & Education Services,Chidren's Homes,ART Residential Placements,W1DE57,Third Party Payments          ,Private Contractors           ,EH01,Miscellaneous Agency Services           ,2800.00,01/09/2015,REV,REDACTED
436,Childrens & Education Services,Chidren's Homes,ART Residential Placements,W1DE57,Third Party Payments          ,Private Contractors           ,EH01,Miscellaneous Agency Services           ,2800.00,01/09/2015,REV,REDACTED
437,Childrens & Education Services,Chidren's Homes,ART Residential Placements,W1DE57,Third Party Payments          ,Private Contractors           ,EH01,Miscellaneous Agency Services           ,2800.00,01/09/2015,REV,REDACTED
438,Childrens & Education Services,Chidren's Homes,ART Residential Placements,W1DE57,Third Party Payments          ,Private Contractors           ,EH01,Miscellaneous Agency Services           ,2800.00,01/09/2015,REV,REDACTED
439,Childrens & Education Services,Chidren's Homes,ART Residential Placements,W1DE57,Third Party Payments          ,Private Contractors           ,EH01,Miscellaneous Agency Services           ,918.00,24/07/2015,REV,REDACTED
440,Childrens & Education Services,Chidren's Homes,ART Residential Placements,W1DE57,Third Party Payments          ,Private Contractors           ,EH01,Miscellaneous Agency Services           ,6840.00,31/07/2015,REV,REDACTED
441,Childrens & Education Services,Chidren's Homes,ART Residential Placements,W1DE57,Third Party Payments          ,Private Contractors           ,EH01,Miscellaneous Agency Services           ,2558.57,01/07/2015,REV,REDACTED
442,Childrens & Education Services,Chidren's Homes,ART Residential Placements,W1DE57,Third Party Payments          ,Private Contractors           ,EH01,Miscellaneous Agency Services           ,3582.00,01/07/2015,REV,REDACTED
443,Childrens & Education Services,Chidren's Homes,ART Residential Placements,W1DE57,Third Party Payments          ,Private Contractors           ,EH01,Miscellaneous Agency Services           ,3582.00,01/07/2015,REV,REDACTED
444,Childrens & Education Services,Chidren's Homes,ART Residential Placements,W1DE57,Third Party Payments          ,Private Contractors           ,EH01,Miscellaneous Agency Services           ,3582.00,01/07/2015,REV,REDACTED
445,Childrens & Education Services,Chidren's Homes,ART Residential Placements,W1DE57,Third Party Payments          ,Private Contractors           ,EH01,Miscellaneous Agency Services           ,3582.00,01/07/2015,REV,REDACTED
446,Childrens & Education Services,Chidren's Homes,ART Residential Placements,W1DE57,Third Party Payments          ,Private Contractors           ,EH01,Miscellaneous Agency Services           ,-1023.56,01/07/2015,REV,REDACTED
447,Childrens & Education Services,Chidren's Homes,ART Residential Placements,W1DE57,Third Party Payments          ,Private Contractors           ,EH01,Miscellaneous Agency Services           ,4051.44,01/09/2015,REV,REDACTED
448,Childrens & Education Services,Chidren's Homes,ART Residential Placements,W1DE57,Third Party Payments          ,Private Contractors           ,EH01,Miscellaneous Agency Services           ,4750.00,01/09/2015,REV,REDACTED
449,Childrens & Education Services,Chidren's Homes,ART Residential Placements,W1DE57,Third Party Payments          ,Private Contractors           ,EH01,Miscellaneous Agency Services           ,4750.00,01/09/2015,REV,REDACTED
450,Childrens & Education Services,Chidren's Homes,ART Residential Placements,W1DE57,Third Party Payments          ,Private Contractors           ,EH01,Miscellaneous Agency Services           ,-2694.30,01/09/2015,REV,REDACTED
451,Childrens & Education Services,Chidren's Homes,ART Residential Placements,W1DE57,Third Party Payments          ,Private Contractors           ,EH01,Miscellaneous Agency Services           ,4750.00,01/09/2015,REV,REDACTED
452,Childrens & Education Services,,ART Residential Secure accommo,W1DE58,Third Party Payments          ,Private Contractors           ,EH01,Miscellaneous Agency Services           ,750.00,31/08/2015,REV,HIGHER LEVEL CARE (HLC) LTD   
453,Childrens & Education Services,,ART Residential Secure accommo,W1DE58,Third Party Payments          ,Private Contractors           ,EH01,Miscellaneous Agency Services           ,750.00,31/08/2015,REV,HIGHER LEVEL CARE (HLC) LTD   
454,Childrens & Education Services,,ART Residential Secure accommo,W1DE58,Third Party Payments          ,Private Contractors           ,EH01,Miscellaneous Agency Services           ,750.00,31/08/2015,REV,HIGHER LEVEL CARE (HLC) LTD   
455,Childrens & Education Services,,ART Residential Secure accommo,W1DE58,Third Party Payments          ,Private Contractors           ,EH01,Miscellaneous Agency Services           ,750.00,31/08/2015,REV,HIGHER LEVEL CARE (HLC) LTD   
456,Childrens & Education Services,,ART Residential Secure accommo,W1DE58,Third Party Payments          ,Private Contractors           ,EH01,Miscellaneous Agency Services           ,750.00,31/08/2015,REV,HIGHER LEVEL CARE (HLC) LTD   
457,Childrens & Education Services,,ART Residential Secure accommo,W1DE58,Third Party Payments          ,Private Contractors           ,EH01,Miscellaneous Agency Services           ,-643.12,31/08/2015,REV,HIGHER LEVEL CARE (HLC) LTD   
458,Childrens & Education Services,,ART Residential Secure accommo,W1DE58,Third Party Payments          ,Private Contractors           ,EH01,Miscellaneous Agency Services           ,800.00,31/08/2015,REV,HIGHER LEVEL CARE (HLC) LTD   
459,Childrens & Education Services,,ART Residential Secure accommo,W1DE58,Third Party Payments          ,Private Contractors           ,EH01,Miscellaneous Agency Services           ,800.00,31/08/2015,REV,HIGHER LEVEL CARE (HLC) LTD   
460,Childrens & Education Services,,ART Residential Secure accommo,W1DE58,Third Party Payments          ,Private Contractors           ,EH01,Miscellaneous Agency Services           ,800.00,31/08/2015,REV,HIGHER LEVEL CARE (HLC) LTD   
461,Childrens & Education Services,,ART Residential Secure accommo,W1DE58,Third Party Payments          ,Private Contractors           ,EH01,Miscellaneous Agency Services           ,800.00,31/08/2015,REV,HIGHER LEVEL CARE (HLC) LTD   
462,Childrens & Education Services,,ART Residential Secure accommo,W1DE58,Third Party Payments          ,Private Contractors           ,EH01,Miscellaneous Agency Services           ,800.00,31/08/2015,REV,HIGHER LEVEL CARE (HLC) LTD   
463,Childrens & Education Services,Chidren's Homes,ART Residential Placements,W1DE57,Third Party Payments          ,Private Contractors           ,EH01,Miscellaneous Agency Services           ,3213.00,24/07/2015,REV,REDACTED
464,Childrens & Education Services,,ART Residential Secure accommo,W1DE58,Third Party Payments          ,Private Contractors           ,EH01,Miscellaneous Agency Services           ,800.00,05/08/2015,REV,FUTURE FOUNDATIONS LTD        
465,Childrens & Education Services,,ART Residential Secure accommo,W1DE58,Third Party Payments          ,Private Contractors           ,EH01,Miscellaneous Agency Services           ,800.00,05/08/2015,REV,FUTURE FOUNDATIONS LTD        
466,Childrens & Education Services,,ART Residential Secure accommo,W1DE58,Third Party Payments          ,Private Contractors           ,EH01,Miscellaneous Agency Services           ,800.00,05/08/2015,REV,FUTURE FOUNDATIONS LTD        
467,Childrens & Education Services,,ART Residential Secure accommo,W1DE58,Third Party Payments          ,Private Contractors           ,EH01,Miscellaneous Agency Services           ,800.00,05/08/2015,REV,FUTURE FOUNDATIONS LTD        
468,Childrens & Education Services,,ART Residential Secure accommo,W1DE58,Third Party Payments          ,Private Contractors           ,EH01,Miscellaneous Agency Services           ,800.00,05/08/2015,REV,FUTURE FOUNDATIONS LTD        
469,Childrens & Education Services,,ART Residential Secure accommo,W1DE58,Third Party Payments          ,Private Contractors           ,EH01,Miscellaneous Agency Services           ,-685.73,05/08/2015,REV,FUTURE FOUNDATIONS LTD        
470,Childrens & Education Services,,ART Residential Secure accommo,W1DE58,Third Party Payments          ,Private Contractors           ,EH01,Miscellaneous Agency Services           ,875.00,31/08/2015,REV,HIGHER LEVEL CARE (HLC) LTD   
471,Childrens & Education Services,,ART Residential Secure accommo,W1DE58,Third Party Payments          ,Private Contractors           ,EH01,Miscellaneous Agency Services           ,875.00,31/08/2015,REV,HIGHER LEVEL CARE (HLC) LTD   
472,Childrens & Education Services,,ART Residential Secure accommo,W1DE58,Third Party Payments          ,Private Contractors           ,EH01,Miscellaneous Agency Services           ,875.00,31/08/2015,REV,HIGHER LEVEL CARE (HLC) LTD   
473,Childrens & Education Services,,ART Residential Secure accommo,W1DE58,Third Party Payments          ,Private Contractors           ,EH01,Miscellaneous Agency Services           ,875.00,31/08/2015,REV,HIGHER LEVEL CARE (HLC) LTD   
474,Childrens & Education Services,,ART Residential Secure accommo,W1DE58,Third Party Payments          ,Private Contractors           ,EH01,Miscellaneous Agency Services           ,875.00,31/08/2015,REV,HIGHER LEVEL CARE (HLC) LTD   
475,Childrens & Education Services,,ART Residential Secure accommo,W1DE58,Third Party Payments          ,Private Contractors           ,EH01,Miscellaneous Agency Services           ,-750.00,31/08/2015,REV,HIGHER LEVEL CARE (HLC) LTD   
476,Childrens & Education Services,,ART Residential Secure accommo,W1DE58,Third Party Payments          ,Private Contractors           ,EH01,Miscellaneous Agency Services           ,525.00,01/09/2015,REV,BIBBY FACTORS SUSSEX LTD      
477,Childrens & Education Services,,ART Residential Secure accommo,W1DE58,Third Party Payments          ,Private Contractors           ,EH01,Miscellaneous Agency Services           ,525.00,01/09/2015,REV,BIBBY FACTORS SUSSEX LTD      
478,Childrens & Education Services,,ART Residential Secure accommo,W1DE58,Third Party Payments          ,Private Contractors           ,EH01,Miscellaneous Agency Services           ,525.00,01/09/2015,REV,BIBBY FACTORS SUSSEX LTD      
479,Childrens & Education Services,,ART Residential Secure accommo,W1DE58,Third Party Payments          ,Private Contractors           ,EH01,Miscellaneous Agency Services           ,-686.00,31/08/2015,REV,HIGHER LEVEL CARE (HLC) LTD   
480,Childrens & Education Services,,ART Residential Secure accommo,W1DE58,Third Party Payments          ,Private Contractors           ,EH01,Miscellaneous Agency Services           ,1250.00,31/08/2015,REV,HIGHER LEVEL CARE (HLC) LTD   
481,Childrens & Education Services,,ART Residential Secure accommo,W1DE58,Third Party Payments          ,Private Contractors           ,EH01,Miscellaneous Agency Services           ,-993.63,31/08/2015,REV,HIGHER LEVEL CARE (HLC) LTD   
482,Childrens & Education Services,,ART Residential Secure accommo,W1DE58,Third Party Payments          ,Private Contractors           ,EH01,Miscellaneous Agency Services           ,850.00,15/07/2015,REV,NETPEX LTD                    
483,Childrens & Education Services,,ART Residential Secure accommo,W1DE58,Third Party Payments          ,Private Contractors           ,EH01,Miscellaneous Agency Services           ,850.00,15/07/2015,REV,NETPEX LTD                    
484,Childrens & Education Services,,ART Residential Secure accommo,W1DE58,Third Party Payments          ,Private Contractors           ,EH01,Miscellaneous Agency Services           ,850.00,15/07/2015,REV,NETPEX LTD                    
485,Childrens & Education Services,,ART Residential Secure accommo,W1DE58,Third Party Payments          ,Private Contractors           ,EH01,Miscellaneous Agency Services           ,850.00,15/07/2015,REV,NETPEX LTD                    
486,Childrens & Education Services,,ART Residential Secure accommo,W1DE58,Third Party Payments          ,Private Contractors           ,EH01,Miscellaneous Agency Services           ,557.14,14/08/2015,REV,ST CHRISTOPHERS FELLOWSHIP    
487,Childrens & Education Services,,ART Residential Secure accommo,W1DE58,Third Party Payments          ,Private Contractors           ,EH01,Miscellaneous Agency Services           ,975.00,14/08/2015,REV,ST CHRISTOPHERS FELLOWSHIP    
488,Childrens & Education Services,,ART Residential Secure accommo,W1DE58,Third Party Payments          ,Private Contractors           ,EH01,Miscellaneous Agency Services           ,975.00,14/08/2015,REV,ST CHRISTOPHERS FELLOWSHIP    
489,Childrens & Education Services,,ART Residential Secure accommo,W1DE58,Third Party Payments          ,Private Contractors           ,EH01,Miscellaneous Agency Services           ,696.43,14/08/2015,REV,ST CHRISTOPHERS FELLOWSHIP    
490,Childrens & Education Services,,ART Residential Secure accommo,W1DE58,Third Party Payments          ,Private Contractors           ,EH01,Miscellaneous Agency Services           ,835.00,19/08/2015,REV,CARE ADVOCATES LTD            
491,Childrens & Education Services,,ART Residential Secure accommo,W1DE58,Third Party Payments          ,Private Contractors           ,EH01,Miscellaneous Agency Services           ,835.00,19/08/2015,REV,CARE ADVOCATES LTD            
492,Childrens & Education Services,Chidren's Homes,ART Residential Placements,W1DE57,Third Party Payments          ,Private Contractors           ,EH01,Miscellaneous Agency Services           ,3577.82,01/07/2015,REV,REDACTED
493,Childrens & Education Services,Chidren's Homes,ART Residential Placements,W1DE57,Third Party Payments          ,Private Contractors           ,EH01,Miscellaneous Agency Services           ,3577.82,01/07/2015,REV,REDACTED
494,Childrens & Education Services,Chidren's Homes,ART Residential Placements,W1DE57,Third Party Payments          ,Private Contractors           ,EH01,Miscellaneous Agency Services           ,3577.82,01/07/2015,REV,REDACTED
495,Childrens & Education Services,Chidren's Homes,ART Residential Placements,W1DE57,Third Party Payments          ,Private Contractors           ,EH01,Miscellaneous Agency Services           ,3577.82,01/07/2015,REV,REDACTED
496,Childrens & Education Services,Chidren's Homes,ART Residential Placements,W1DE57,Third Party Payments          ,Private Contractors           ,EH01,Miscellaneous Agency Services           ,3577.82,01/07/2015,REV,REDACTED
497,Childrens & Education Services,Chidren's Homes,ART Residential Placements,W1DE57,Third Party Payments          ,Private Contractors           ,EH01,Miscellaneous Agency Services           ,3577.82,01/07/2015,REV,REDACTED
498,Childrens & Education Services,Chidren's Homes,ART Residential Placements,W1DE57,Third Party Payments          ,Private Contractors           ,EH01,Miscellaneous Agency Services           ,3577.82,01/07/2015,REV,REDACTED
499,Childrens & Education Services,Chidren's Homes,ART Residential Placements,W1DE57,Third Party Payments          ,Private Contractors           ,EH01,Miscellaneous Agency Services           ,3577.82,01/07/2015,REV,REDACTED
500,Childrens & Education Services,Chidren's Homes,ART Residential Placements,W1DE57,Third Party Payments          ,Private Contractors           ,EH01,Miscellaneous Agency Services           ,3577.82,01/07/2015,REV,REDACTED
501,Childrens & Education Services,Chidren's Homes,ART Residential Placements,W1DE57,Third Party Payments          ,Private Contractors           ,EH01,Miscellaneous Agency Services           ,3577.82,01/07/2015,REV,REDACTED
502,Childrens & Education Services,Chidren's Homes,ART Residential Placements,W1DE57,Third Party Payments          ,Private Contractors           ,EH01,Miscellaneous Agency Services           ,-2555.51,01/07/2015,REV,REDACTED
503,Childrens & Education Services,Chidren's Homes,ART Residential Placements,W1DE57,Third Party Payments          ,Private Contractors           ,EH01,Miscellaneous Agency Services           ,5760.00,30/04/2015,REV,REDACTED
504,Childrens & Education Services,Chidren's Homes,ART Residential Placements,W1DE57,Third Party Payments          ,Private Contractors           ,EH01,Miscellaneous Agency Services           ,1428.57,14/09/2015,REV,REDACTED
505,Childrens & Education Services,Chidren's Homes,ART Residential Placements,W1DE57,Third Party Payments          ,Private Contractors           ,EH01,Miscellaneous Agency Services           ,1428.57,14/09/2015,REV,REDACTED
506,Childrens & Education Services,Chidren's Homes,ART Residential Placements,W1DE57,Third Party Payments          ,Private Contractors           ,EH01,Miscellaneous Agency Services           ,3513.00,24/08/2015,REV,REDACTED
507,Childrens & Education Services,Chidren's Homes,ART Residential Placements,W1DE57,Third Party Payments          ,Private Contractors           ,EH01,Miscellaneous Agency Services           ,-3011.14,24/08/2015,REV,REDACTED
508,Childrens & Education Services,Chidren's Homes,ART Residential Placements,W1DE57,Third Party Payments          ,Private Contractors           ,EH01,Miscellaneous Agency Services           ,3513.00,24/08/2015,REV,REDACTED
509,Childrens & Education Services,,ART Residential Secure accommo,W1DE58,Third Party Payments          ,Private Contractors           ,EH01,Miscellaneous Agency Services           ,590.05,31/08/2015,REV,HIGHER LEVEL CARE (HLC) LTD   
510,Childrens & Education Services,,ART Residential Secure accommo,W1DE58,Third Party Payments          ,Private Contractors           ,EH01,Miscellaneous Agency Services           ,1250.00,31/08/2015,REV,HIGHER LEVEL CARE (HLC) LTD   
511,Childrens & Education Services,,ART Residential Secure accommo,W1DE58,Third Party Payments          ,Private Contractors           ,EH01,Miscellaneous Agency Services           ,1250.00,31/08/2015,REV,HIGHER LEVEL CARE (HLC) LTD   
512,Childrens & Education Services,,ART Residential Secure accommo,W1DE58,Third Party Payments          ,Private Contractors           ,EH01,Miscellaneous Agency Services           ,1250.00,31/08/2015,REV,HIGHER LEVEL CARE (HLC) LTD   
513,Childrens & Education Services,,ART Residential Secure accommo,W1DE58,Third Party Payments          ,Private Contractors           ,EH01,Miscellaneous Agency Services           ,1250.00,31/08/2015,REV,HIGHER LEVEL CARE (HLC) LTD   
514,Childrens & Education Services,,ART Residential Secure accommo,W1DE58,Third Party Payments          ,Private Contractors           ,EH01,Miscellaneous Agency Services           ,3985.71,21/08/2015,REV,THE ARTEMIS TEAM LIMITED      
515,Childrens & Education Services,,ART Residential Secure accommo,W1DE58,Third Party Payments          ,Private Contractors           ,EH01,Miscellaneous Agency Services           ,-664.28,21/08/2015,REV,THE ARTEMIS TEAM LIMITED      
516,Childrens & Education Services,,ART Residential Secure accommo,W1DE58,Third Party Payments          ,Private Contractors           ,EH01,Miscellaneous Agency Services           ,595.00,21/08/2015,REV,THE ARTEMIS TEAM LIMITED      
517,Childrens & Education Services,,ART Residential Secure accommo,W1DE58,Third Party Payments          ,Private Contractors           ,EH01,Miscellaneous Agency Services           ,595.00,21/08/2015,REV,THE ARTEMIS TEAM LIMITED      
518,Childrens & Education Services,,ART Residential Secure accommo,W1DE58,Third Party Payments          ,Private Contractors           ,EH01,Miscellaneous Agency Services           ,595.00,21/08/2015,REV,THE ARTEMIS TEAM LIMITED      
519,Childrens & Education Services,,ART Residential Secure accommo,W1DE58,Third Party Payments          ,Private Contractors           ,EH01,Miscellaneous Agency Services           ,595.00,21/08/2015,REV,THE ARTEMIS TEAM LIMITED      
520,Childrens & Education Services,,ART Residential Secure accommo,W1DE58,Third Party Payments          ,Private Contractors           ,EH01,Miscellaneous Agency Services           ,835.00,02/09/2015,REV,CARE ADVOCATES LTD            
521,Childrens & Education Services,,ART Residential Secure accommo,W1DE58,Third Party Payments          ,Private Contractors           ,EH01,Miscellaneous Agency Services           ,835.00,02/09/2015,REV,CARE ADVOCATES LTD            
522,Childrens & Education Services,,ART Residential Secure accommo,W1DE58,Third Party Payments          ,Private Contractors           ,EH01,Miscellaneous Agency Services           ,603.57,29/07/2015,REV,RBS INVOICE FINANCE LIMITED   
523,Childrens & Education Services,,ART Residential Secure accommo,W1DE58,Third Party Payments          ,Private Contractors           ,EH01,Miscellaneous Agency Services           ,845.00,29/07/2015,REV,RBS INVOICE FINANCE LIMITED   
524,Childrens & Education Services,,ART Residential Secure accommo,W1DE58,Third Party Payments          ,Private Contractors           ,EH01,Miscellaneous Agency Services           ,845.00,29/07/2015,REV,RBS INVOICE FINANCE LIMITED   
525,Childrens & Education Services,,ART Residential Secure accommo,W1DE58,Third Party Payments          ,Private Contractors           ,EH01,Miscellaneous Agency Services           ,845.00,29/07/2015,REV,RBS INVOICE FINANCE LIMITED   
526,Childrens & Education Services,Chidren's Homes,ART Residential Placements,W1DE57,Third Party Payments          ,Private Contractors           ,EH01,Miscellaneous Agency Services           ,3535.98,18/05/2015,REV,REDACTED
527,Childrens & Education Services,Chidren's Homes,ART Residential Placements,W1DE57,Third Party Payments          ,Private Contractors           ,EH01,Miscellaneous Agency Services           ,3535.98,18/05/2015,REV,REDACTED
528,Childrens & Education Services,Chidren's Homes,ART Residential Placements,W1DE57,Third Party Payments          ,Private Contractors           ,EH01,Miscellaneous Agency Services           ,8064.00,01/08/2015,REV,REDACTED
529,Childrens & Education Services,Chidren's Homes,ART Residential Placements,W1DE57,Third Party Payments          ,Private Contractors           ,EH01,Miscellaneous Agency Services           ,2898.70,23/09/2015,REV,REDACTED
530,Childrens & Education Services,Chidren's Homes,ART Residential Placements,W1DE57,Third Party Payments          ,Private Contractors           ,EH01,Miscellaneous Agency Services           ,2898.70,23/09/2015,REV,REDACTED
531,Childrens & Education Services,Chidren's Homes,ART Residential Placements,W1DE57,Third Party Payments          ,Private Contractors           ,EH01,Miscellaneous Agency Services           ,-2484.60,23/09/2015,REV,REDACTED
532,Childrens & Education Services,,ART Residential Secure accommo,W1DE58,Third Party Payments          ,Private Contractors           ,EH01,Miscellaneous Agency Services           ,835.00,21/07/2015,REV,CARE ADVOCATES LTD            
533,Childrens & Education Services,,ART Residential Secure accommo,W1DE58,Third Party Payments          ,Private Contractors           ,EH01,Miscellaneous Agency Services           ,835.00,21/07/2015,REV,CARE ADVOCATES LTD            
534,Childrens & Education Services,,ART Residential Secure accommo,W1DE58,Third Party Payments          ,Private Contractors           ,EH01,Miscellaneous Agency Services           ,835.00,21/07/2015,REV,CARE ADVOCATES LTD            
535,Childrens & Education Services,,ART Residential Secure accommo,W1DE58,Third Party Payments          ,Private Contractors           ,EH01,Miscellaneous Agency Services           ,850.00,14/08/2015,REV,NETPEX LTD                    
536,Childrens & Education Services,,ART Residential Secure accommo,W1DE58,Third Party Payments          ,Private Contractors           ,EH01,Miscellaneous Agency Services           ,850.00,14/08/2015,REV,NETPEX LTD                    
537,Childrens & Education Services,,ART Residential Secure accommo,W1DE58,Third Party Payments          ,Private Contractors           ,EH01,Miscellaneous Agency Services           ,850.00,14/08/2015,REV,NETPEX LTD                    
538,Childrens & Education Services,,ART Residential Secure accommo,W1DE58,Third Party Payments          ,Private Contractors           ,EH01,Miscellaneous Agency Services           ,850.00,14/08/2015,REV,NETPEX LTD                    
539,Childrens & Education Services,,ART Residential Secure accommo,W1DE58,Third Party Payments          ,Private Contractors           ,EH01,Miscellaneous Agency Services           ,850.00,14/08/2015,REV,NETPEX LTD                    
540,Childrens & Education Services,,ART Residential Secure accommo,W1DE58,Third Party Payments          ,Private Contractors           ,EH01,Miscellaneous Agency Services           ,-737.26,31/07/2015,REV,HIGHER LEVEL CARE (HLC) LTD   
541,Childrens & Education Services,,ART Residential Secure accommo,W1DE58,Third Party Payments          ,Private Contractors           ,EH01,Miscellaneous Agency Services           ,993.63,31/07/2015,REV,HIGHER LEVEL CARE (HLC) LTD   
542,Childrens & Education Services,,ART Residential Secure accommo,W1DE58,Third Party Payments          ,Private Contractors           ,EH01,Miscellaneous Agency Services           ,685.71,08/07/2015,REV,FUTURE FOUNDATIONS LTD        
543,Childrens & Education Services,,ART Residential Secure accommo,W1DE58,Third Party Payments          ,Private Contractors           ,EH01,Miscellaneous Agency Services           ,800.00,08/07/2015,REV,FUTURE FOUNDATIONS LTD        
544,Childrens & Education Services,,ART Residential Secure accommo,W1DE58,Third Party Payments          ,Private Contractors           ,EH01,Miscellaneous Agency Services           ,800.00,08/07/2015,REV,FUTURE FOUNDATIONS LTD        
545,Childrens & Education Services,,ART Residential Secure accommo,W1DE58,Third Party Payments          ,Private Contractors           ,EH01,Miscellaneous Agency Services           ,-571.43,08/07/2015,REV,FUTURE FOUNDATIONS LTD        
546,Childrens & Education Services,,ART Residential Secure accommo,W1DE58,Third Party Payments          ,Private Contractors           ,EH01,Miscellaneous Agency Services           ,571.43,08/07/2015,REV,FUTURE FOUNDATIONS LTD        
547,Childrens & Education Services,,ART Residential Secure accommo,W1DE58,Third Party Payments          ,Private Contractors           ,EH01,Miscellaneous Agency Services           ,4650.00,21/08/2015,REV,THE ARTEMIS TEAM LIMITED      
548,Childrens & Education Services,,ART Residential Secure accommo,W1DE58,Third Party Payments          ,Private Contractors           ,EH01,Miscellaneous Agency Services           ,4650.00,21/08/2015,REV,THE ARTEMIS TEAM LIMITED      
549,Childrens & Education Services,,ART Residential Secure accommo,W1DE58,Third Party Payments          ,Private Contractors           ,EH01,Miscellaneous Agency Services           ,4650.00,21/08/2015,REV,THE ARTEMIS TEAM LIMITED      
550,Childrens & Education Services,,ART Residential Secure accommo,W1DE58,Third Party Payments          ,Private Contractors           ,EH01,Miscellaneous Agency Services           ,1328.57,21/08/2015,REV,THE ARTEMIS TEAM LIMITED      
551,Childrens & Education Services,,ART Residential Secure accommo,W1DE58,Third Party Payments          ,Private Contractors           ,EH01,Miscellaneous Agency Services           ,595.00,29/06/2015,REV,THE ARTEMIS TEAM LIMITED      
552,Childrens & Education Services,,ART Residential Secure accommo,W1DE58,Third Party Payments          ,Private Contractors           ,EH01,Miscellaneous Agency Services           ,595.00,29/06/2015,REV,THE ARTEMIS TEAM LIMITED      
553,Childrens & Education Services,,ART Residential Secure accommo,W1DE58,Third Party Payments          ,Private Contractors           ,EH01,Miscellaneous Agency Services           ,595.00,29/06/2015,REV,THE ARTEMIS TEAM LIMITED      
554,Childrens & Education Services,,ART Residential Secure accommo,W1DE58,Third Party Payments          ,Private Contractors           ,EH01,Miscellaneous Agency Services           ,595.00,29/06/2015,REV,THE ARTEMIS TEAM LIMITED      
555,Childrens & Education Services,,ART Residential Secure accommo,W1DE58,Third Party Payments          ,Private Contractors           ,EH01,Miscellaneous Agency Services           ,845.00,25/08/2015,REV,RBS INVOICE FINANCE LIMITED   
556,Childrens & Education Services,,ART Residential Secure accommo,W1DE58,Third Party Payments          ,Private Contractors           ,EH01,Miscellaneous Agency Services           ,845.00,25/08/2015,REV,RBS INVOICE FINANCE LIMITED   
557,Childrens & Education Services,,ART Residential Secure accommo,W1DE58,Third Party Payments          ,Private Contractors           ,EH01,Miscellaneous Agency Services           ,845.00,25/08/2015,REV,RBS INVOICE FINANCE LIMITED   
558,Childrens & Education Services,,ART Residential Secure accommo,W1DE58,Third Party Payments          ,Private Contractors           ,EH01,Miscellaneous Agency Services           ,845.00,25/08/2015,REV,RBS INVOICE FINANCE LIMITED   
559,Childrens & Education Services,,ART Residential Secure accommo,W1DE58,Third Party Payments          ,Private Contractors           ,EH01,Miscellaneous Agency Services           ,845.00,29/06/2015,REV,NETPEX LTD                    
560,Childrens & Education Services,,ART Residential Secure accommo,W1DE58,Third Party Payments          ,Private Contractors           ,EH01,Miscellaneous Agency Services           ,845.00,29/06/2015,REV,NETPEX LTD                    
561,Childrens & Education Services,,ART Residential Secure accommo,W1DE58,Third Party Payments          ,Private Contractors           ,EH01,Miscellaneous Agency Services           ,845.00,29/06/2015,REV,NETPEX LTD                    
562,Childrens & Education Services,,ART Residential Secure accommo,W1DE58,Third Party Payments          ,Private Contractors           ,EH01,Miscellaneous Agency Services           ,845.00,29/06/2015,REV,NETPEX LTD                    
563,Childrens & Education Services,,ART Residential Secure accommo,W1DE58,Third Party Payments          ,Private Contractors           ,EH01,Miscellaneous Agency Services           ,950.00,14/08/2015,REV,ST CHRISTOPHERS FELLOWSHIP    
564,Childrens & Education Services,,ART Residential Secure accommo,W1DE58,Third Party Payments          ,Private Contractors           ,EH01,Miscellaneous Agency Services           ,950.00,14/08/2015,REV,ST CHRISTOPHERS FELLOWSHIP    
565,Childrens & Education Services,,ART Residential Secure accommo,W1DE58,Third Party Payments          ,Private Contractors           ,EH01,Miscellaneous Agency Services           ,950.00,14/08/2015,REV,ST CHRISTOPHERS FELLOWSHIP    
566,Childrens & Education Services,,ART Residential Secure accommo,W1DE58,Third Party Payments          ,Private Contractors           ,EH01,Miscellaneous Agency Services           ,950.00,14/08/2015,REV,ST CHRISTOPHERS FELLOWSHIP    
567,Childrens & Education Services,,ART Residential Secure accommo,W1DE58,Third Party Payments          ,Private Contractors           ,EH01,Miscellaneous Agency Services           ,595.00,21/08/2015,REV,THE ARTEMIS TEAM LIMITED      
568,Childrens & Education Services,,ART Residential Secure accommo,W1DE58,Third Party Payments          ,Private Contractors           ,EH01,Miscellaneous Agency Services           ,595.00,21/08/2015,REV,THE ARTEMIS TEAM LIMITED      
569,Childrens & Education Services,,ART Residential Secure accommo,W1DE58,Third Party Payments          ,Private Contractors           ,EH01,Miscellaneous Agency Services           ,595.00,21/08/2015,REV,THE ARTEMIS TEAM LIMITED      
570,Childrens & Education Services,,ART Residential Secure accommo,W1DE58,Third Party Payments          ,Private Contractors           ,EH01,Miscellaneous Agency Services           ,595.00,21/08/2015,REV,THE ARTEMIS TEAM LIMITED      
571,Childrens & Education Services,,ART Residential Secure accommo,W1DE58,Third Party Payments          ,Private Contractors           ,EH01,Miscellaneous Agency Services           ,1100.00,31/08/2015,REV,HIGHER LEVEL CARE (HLC) LTD   
572,Childrens & Education Services,,ART Residential Secure accommo,W1DE58,Third Party Payments          ,Private Contractors           ,EH01,Miscellaneous Agency Services           ,1100.00,31/08/2015,REV,HIGHER LEVEL CARE (HLC) LTD   
573,Childrens & Education Services,,ART Residential Secure accommo,W1DE58,Third Party Payments          ,Private Contractors           ,EH01,Miscellaneous Agency Services           ,1100.00,31/08/2015,REV,HIGHER LEVEL CARE (HLC) LTD   
574,Childrens & Education Services,,ART Residential Secure accommo,W1DE58,Third Party Payments          ,Private Contractors           ,EH01,Miscellaneous Agency Services           ,1100.00,31/08/2015,REV,HIGHER LEVEL CARE (HLC) LTD   
575,Childrens & Education Services,,ART Residential Secure accommo,W1DE58,Third Party Payments          ,Private Contractors           ,EH01,Miscellaneous Agency Services           ,-942.85,31/08/2015,REV,HIGHER LEVEL CARE (HLC) LTD   
576,Childrens & Education Services,,ART Residential Secure accommo,W1DE58,Third Party Payments          ,Private Contractors           ,EH01,Miscellaneous Agency Services           ,1100.00,31/08/2015,REV,HIGHER LEVEL CARE (HLC) LTD   
577,Childrens & Education Services,,ART Residential Secure accommo,W1DE58,Third Party Payments          ,Private Contractors           ,EH01,Miscellaneous Agency Services           ,845.00,11/09/2015,REV,RBS INVOICE FINANCE LIMITED   
578,Childrens & Education Services,,ART Residential Secure accommo,W1DE58,Third Party Payments          ,Private Contractors           ,EH01,Miscellaneous Agency Services           ,845.00,11/09/2015,REV,RBS INVOICE FINANCE LIMITED   
579,Childrens & Education Services,,ART Residential Secure accommo,W1DE58,Third Party Payments          ,Private Contractors           ,EH01,Miscellaneous Agency Services           ,845.00,11/09/2015,REV,RBS INVOICE FINANCE LIMITED   
580,Childrens & Education Services,,ART Residential Secure accommo,W1DE58,Third Party Payments          ,Private Contractors           ,EH01,Miscellaneous Agency Services           ,845.00,11/09/2015,REV,RBS INVOICE FINANCE LIMITED   
581,Childrens & Education Services,,ART Residential Secure accommo,W1DE58,Third Party Payments          ,Private Contractors           ,EH01,Miscellaneous Agency Services           ,950.00,14/08/2015,REV,ST CHRISTOPHERS FELLOWSHIP    
582,Childrens & Education Services,,ART Residential Secure accommo,W1DE58,Third Party Payments          ,Private Contractors           ,EH01,Miscellaneous Agency Services           ,950.00,14/08/2015,REV,ST CHRISTOPHERS FELLOWSHIP    
583,Childrens & Education Services,,ART Residential Secure accommo,W1DE58,Third Party Payments          ,Private Contractors           ,EH01,Miscellaneous Agency Services           ,950.00,14/08/2015,REV,ST CHRISTOPHERS FELLOWSHIP    
584,Childrens & Education Services,,ART Residential Secure accommo,W1DE58,Third Party Payments          ,Private Contractors           ,EH01,Miscellaneous Agency Services           ,-814.28,14/08/2015,REV,ST CHRISTOPHERS FELLOWSHIP    
585,Childrens & Education Services,,ART Residential Secure accommo,W1DE58,Third Party Payments          ,Private Contractors           ,EH01,Miscellaneous Agency Services           ,814.28,14/08/2015,REV,ST CHRISTOPHERS FELLOWSHIP    
586,Childrens & Education Services,,ART Residential Secure accommo,W1DE58,Third Party Payments          ,Private Contractors           ,EH01,Miscellaneous Agency Services           ,-1902.96,26/03/2015,REV,HIGHER LEVEL CARE (HLC) LTD   
587,Childrens & Education Services,,ART Residential Secure accommo,W1DE58,Third Party Payments          ,Private Contractors           ,EH01,Miscellaneous Agency Services           ,800.00,08/07/2015,REV,FUTURE FOUNDATIONS LTD        
588,Childrens & Education Services,,ART Residential Secure accommo,W1DE58,Third Party Payments          ,Private Contractors           ,EH01,Miscellaneous Agency Services           ,800.00,08/07/2015,REV,FUTURE FOUNDATIONS LTD        
589,Childrens & Education Services,,ART Residential Secure accommo,W1DE58,Third Party Payments          ,Private Contractors           ,EH01,Miscellaneous Agency Services           ,800.00,08/07/2015,REV,FUTURE FOUNDATIONS LTD        
590,Childrens & Education Services,,ART Residential Secure accommo,W1DE58,Third Party Payments          ,Private Contractors           ,EH01,Miscellaneous Agency Services           ,800.00,08/07/2015,REV,FUTURE FOUNDATIONS LTD        
591,Childrens & Education Services,,ART Residential Secure accommo,W1DE58,Third Party Payments          ,Private Contractors           ,EH01,Miscellaneous Agency Services           ,500.00,25/08/2015,REV,RBS INVOICE FINANCE LIMITED   
592,Childrens & Education Services,,ART Residential Secure accommo,W1DE58,Third Party Payments          ,Private Contractors           ,EH01,Miscellaneous Agency Services           ,500.00,25/08/2015,REV,RBS INVOICE FINANCE LIMITED   
593,Childrens & Education Services,,ART Residential Secure accommo,W1DE58,Third Party Payments          ,Private Contractors           ,EH01,Miscellaneous Agency Services           ,4650.00,28/06/2015,REV,THE ARTEMIS TEAM LIMITED      
594,Childrens & Education Services,,ART Residential Secure accommo,W1DE58,Third Party Payments          ,Private Contractors           ,EH01,Miscellaneous Agency Services           ,4650.00,28/06/2015,REV,THE ARTEMIS TEAM LIMITED      
595,Childrens & Education Services,,ART Residential Secure accommo,W1DE58,Third Party Payments          ,Private Contractors           ,EH01,Miscellaneous Agency Services           ,4650.00,28/06/2015,REV,THE ARTEMIS TEAM LIMITED      
596,Childrens & Education Services,,ART Residential Secure accommo,W1DE58,Third Party Payments          ,Private Contractors           ,EH01,Miscellaneous Agency Services           ,4650.00,28/06/2015,REV,THE ARTEMIS TEAM LIMITED      
597,Childrens & Education Services,,ART Residential Secure accommo,W1DE58,Third Party Payments          ,Private Contractors           ,EH01,Miscellaneous Agency Services           ,4650.00,21/08/2015,REV,THE ARTEMIS TEAM LIMITED      
598,Childrens & Education Services,,ART Residential Secure accommo,W1DE58,Third Party Payments          ,Private Contractors           ,EH01,Miscellaneous Agency Services           ,4650.00,21/08/2015,REV,THE ARTEMIS TEAM LIMITED      
599,Childrens & Education Services,,ART Residential Secure accommo,W1DE58,Third Party Payments          ,Private Contractors           ,EH01,Miscellaneous Agency Services           ,4650.00,21/08/2015,REV,THE ARTEMIS TEAM LIMITED      
600,Childrens & Education Services,,ART Residential Secure accommo,W1DE58,Third Party Payments          ,Private Contractors           ,EH01,Miscellaneous Agency Services           ,4650.00,21/08/2015,REV,THE ARTEMIS TEAM LIMITED      
601,Childrens & Education Services,,ART Residential Secure accommo,W1DE58,Third Party Payments          ,Private Contractors           ,EH01,Miscellaneous Agency Services           ,-525.00,03/08/2015,REV,BIBBY FACTORS SUSSEX LTD      
602,Childrens & Education Services,,ART Residential Secure accommo,W1DE58,Third Party Payments          ,Private Contractors           ,EH01,Miscellaneous Agency Services           ,-525.00,03/08/2015,REV,BIBBY FACTORS SUSSEX LTD      
603,Childrens & Education Services,,ART Residential Secure accommo,W1DE58,Third Party Payments          ,Private Contractors           ,EH01,Miscellaneous Agency Services           ,-525.00,03/08/2015,REV,BIBBY FACTORS SUSSEX LTD      
604,Childrens & Education Services,,ART Residential Secure accommo,W1DE58,Third Party Payments          ,Private Contractors           ,EH01,Miscellaneous Agency Services           ,-525.00,03/08/2015,REV,BIBBY FACTORS SUSSEX LTD      
605,Childrens & Education Services,,ART Residential Secure accommo,W1DE58,Third Party Payments          ,Private Contractors           ,EH01,Miscellaneous Agency Services           ,700.00,01/09/2015,REV,UNIVERSAL CARE CONSULTANTS    
606,Childrens & Education Services,,ART Residential Secure accommo,W1DE58,Third Party Payments          ,Private Contractors           ,EH01,Miscellaneous Agency Services           ,700.00,01/09/2015,REV,UNIVERSAL CARE CONSULTANTS    
607,Childrens & Education Services,,ART Residential Secure accommo,W1DE58,Third Party Payments          ,Private Contractors           ,EH01,Miscellaneous Agency Services           ,700.00,01/09/2015,REV,UNIVERSAL CARE CONSULTANTS    
608,Childrens & Education Services,,ART Residential Secure accommo,W1DE58,Third Party Payments          ,Private Contractors           ,EH01,Miscellaneous Agency Services           ,700.00,01/09/2015,REV,UNIVERSAL CARE CONSULTANTS    
609,Childrens & Education Services,,ART Residential Secure accommo,W1DE58,Third Party Payments          ,Private Contractors           ,EH17,Supported Lodgings                      ,850.00,14/08/2015,REV,NETPEX LTD                    
610,Childrens & Education Services,,ART Residential Secure accommo,W1DE58,Third Party Payments          ,Private Contractors           ,EH17,Supported Lodgings                      ,850.00,14/08/2015,REV,NETPEX LTD                    
611,Childrens & Education Services,,ART Residential Secure accommo,W1DE58,Third Party Payments          ,Private Contractors           ,EH17,Supported Lodgings                      ,850.00,14/08/2015,REV,NETPEX LTD                    
612,Childrens & Education Services,,ART Residential Secure accommo,W1DE58,Third Party Payments          ,Private Contractors           ,EH17,Supported Lodgings                      ,850.00,14/08/2015,REV,NETPEX LTD                    
613,Childrens & Education Services,,ART Residential Secure accommo,W1DE58,Third Party Payments          ,Private Contractors           ,EH17,Supported Lodgings                      ,850.00,14/08/2015,REV,NETPEX LTD                    
614,Childrens & Education Services,,ART Residential Secure accommo,W1DE58,Third Party Payments          ,Private Contractors           ,EH17,Supported Lodgings                      ,-728.48,14/08/2015,REV,NETPEX LTD                    
615,Childrens & Education Services,,ART Secure Accommodation                ,W1DE59,Third Party Payments          ,Private Contractors           ,EH79,Private Tenant/Landlord                 ,3932.95,30/04/2015,REV,NORTHUMBERLAND COUNTY COUNCIL 
616,Childrens & Education Services,,ART Secure Accommodation                ,W1DE59,Third Party Payments          ,Private Contractors           ,EH79,Private Tenant/Landlord                 ,3932.95,30/04/2015,REV,NORTHUMBERLAND COUNTY COUNCIL 
617,Childrens & Education Services,,ART Secure Accommodation                ,W1DE59,Third Party Payments          ,Private Contractors           ,EH79,Private Tenant/Landlord                 ,-786.59,30/04/2015,REV,NORTHUMBERLAND COUNTY COUNCIL 
618,Childrens & Education Services,,ART Secure Accommodation                ,W1DE59,Third Party Payments          ,Private Contractors           ,EH79,Private Tenant/Landlord                 ,3479.00,24/07/2015,REV,THE YOUTH JUSTICE BOARD       
619,Childrens & Education Services,Fostering Services,ART Independent Agency Foster,W1DE46,Supplies & Services           ,Services                      ,DF53,Task Based Fostering                    ,760.00,03/08/2015,REV,BRIGHTER FUTURES FOSTER CARE  
620,Childrens & Education Services,,ART Residential Secure accommo,W1DE58,Third Party Payments          ,Private Contractors           ,EH01,Miscellaneous Agency Services           ,845.00,29/06/2015,REV,NETPEX LTD                    
621,Childrens & Education Services,,ART Residential Secure accommo,W1DE58,Third Party Payments          ,Private Contractors           ,EH01,Miscellaneous Agency Services           ,500.00,11/09/2015,REV,RBS INVOICE FINANCE LIMITED   
622,Childrens & Education Services,,ART Residential Secure accommo,W1DE58,Third Party Payments          ,Private Contractors           ,EH01,Miscellaneous Agency Services           ,500.00,11/09/2015,REV,RBS INVOICE FINANCE LIMITED   
623,Childrens & Education Services,,ART Residential Secure accommo,W1DE58,Third Party Payments          ,Private Contractors           ,EH01,Miscellaneous Agency Services           ,500.00,11/09/2015,REV,RBS INVOICE FINANCE LIMITED   
624,Childrens & Education Services,,ART Residential Secure accommo,W1DE58,Third Party Payments          ,Private Contractors           ,EH01,Miscellaneous Agency Services           ,500.00,11/09/2015,REV,RBS INVOICE FINANCE LIMITED   
625,Childrens & Education Services,,ART Residential Secure accommo,W1DE58,Third Party Payments          ,Private Contractors           ,EH01,Miscellaneous Agency Services           ,585.00,06/10/2014,REV,FUTURE FOUNDATIONS LTD        
626,Childrens & Education Services,Fostering Services,ART Independent Agency Foster,W1DE46,Supplies & Services           ,Services                      ,DF53,Task Based Fostering                    ,760.00,03/08/2015,REV,BRIGHTER FUTURES FOSTER CARE  
627,Childrens & Education Services,Fostering Services,ART Independent Agency Foster,W1DE46,Supplies & Services           ,Services                      ,DF53,Task Based Fostering                    ,760.00,03/08/2015,REV,BRIGHTER FUTURES FOSTER CARE  
628,Childrens & Education Services,Fostering Services,ART Independent Agency Foster,W1DE46,Supplies & Services           ,Services                      ,DF53,Task Based Fostering                    ,760.00,03/08/2015,REV,BRIGHTER FUTURES FOSTER CARE  
629,Childrens & Education Services,Leaving Care Services,CL Setting Up Home Allowance,W1DF41,Third Party Payments          ,Private Contractors           ,EH01,Miscellaneous Agency Services           ,1800.00,19/02/2015,REV,THE ARTEMIS TEAM LIMITED      
630,Childrens & Education Services,Leaving Care Services,CL Setting Up Home Allowance,W1DF41,Third Party Payments          ,Private Contractors           ,EH01,Miscellaneous Agency Services           ,525.35,09/09/2015,REV,REDACTED
631,Adult Social Care,MH u65 Supported & Other Accom,MH Adult Placement Cont-Morden,W2HB32,Third Party Payments          ,Private Contractors           ,EH04,Accommodation Based Support             ,595.00,25/09/2015,REV,COMFORT CARE SERVICES (UK) LTD
632,Adult Social Care,MH u65 Supported & Other Accom,MH Adult Placement Cont-Morden,W2HB32,Third Party Payments          ,Private Contractors           ,EH04,Accommodation Based Support             ,595.00,25/09/2015,REV,COMFORT CARE SERVICES (UK) LTD
633,Adult Social Care,MH u65 Supported & Other Accom,MH Adult Placement Cont-Morden,W2HB32,Third Party Payments          ,Private Contractors           ,EH04,Accommodation Based Support             ,595.00,25/09/2015,REV,COMFORT CARE SERVICES (UK) LTD
634,Adult Social Care,MH u65 Supported & Other Accom,MH Adult Placement Cont-Morden,W2HB32,Third Party Payments          ,Private Contractors           ,EH04,Accommodation Based Support             ,595.00,25/09/2015,REV,COMFORT CARE SERVICES (UK) LTD
635,Adult Social Care,MH u65 Supported & Other Accom,MH Adult Placement Cont-Morden,W2HB32,Third Party Payments          ,Private Contractors           ,EH04,Accommodation Based Support             ,-510.00,25/09/2015,REV,COMFORT CARE SERVICES (UK) LTD
636,Adult Social Care,MH u65 Supported & Other Accom,MH Adult Placement Cont-Morden,W2HB32,Third Party Payments          ,Private Contractors           ,EH04,Accommodation Based Support             ,595.00,25/09/2015,REV,COMFORT CARE SERVICES (UK) LTD
637,Adult Social Care,MH u65 Supported & Other Accom,MH Adult Placement Cont-Morden,W2HB32,Third Party Payments          ,Private Contractors           ,EH04,Accommodation Based Support             ,510.00,25/09/2015,REV,COMFORT CARE SERVICES (UK) LTD
638,Adult Social Care,MH u65 Residentl Care Placemnt,MH ResidentialCare Ext-Morden,W2HB55,Third Party Payments          ,Private Contractors           ,EH01,Miscellaneous Agency Services           ,600.00,01/09/2015,REV,ABBEY HOUSE RESIDENTIAL HOMES 
639,Adult Social Care,MH u65 Residentl Care Placemnt,MH ResidentialCare Ext-Morden,W2HB55,Third Party Payments          ,Private Contractors           ,EH01,Miscellaneous Agency Services           ,500.00,01/09/2015,REV,ABBEY HOUSE RESIDENTIAL HOMES 
640,Adult Social Care,MH u65 Residentl Care Placemnt,MH ResidentialCare Ext-Morden,W2HB55,Third Party Payments          ,Private Contractors           ,EH01,Miscellaneous Agency Services           ,500.00,01/09/2015,REV,ABBEY HOUSE RESIDENTIAL HOMES 
641,Adult Social Care,MH u65 Residentl Care Placemnt,MH ResidentialCare Ext-Morden,W2HB55,Third Party Payments          ,Private Contractors           ,EH01,Miscellaneous Agency Services           ,600.00,01/09/2015,REV,ABBEY HOUSE RESIDENTIAL HOMES 
642,Adult Social Care,MH u65 Residentl Care Placemnt,MH ResidentialCare Ext-Morden,W2HB55,Third Party Payments          ,Private Contractors           ,EH01,Miscellaneous Agency Services           ,600.00,01/09/2015,REV,ABBEY HOUSE RESIDENTIAL HOMES 
643,Adult Social Care,MH u65 Residentl Care Placemnt,MH ResidentialCare Ext-Morden,W2HB55,Third Party Payments          ,Private Contractors           ,EH01,Miscellaneous Agency Services           ,500.00,01/09/2015,REV,ABBEY HOUSE RESIDENTIAL HOMES 
644,Adult Social Care,MH u65 Residentl Care Placemnt,MH ResidentialCare Ext-Morden,W2HB55,Third Party Payments          ,Private Contractors           ,EH01,Miscellaneous Agency Services           ,500.00,01/09/2015,REV,ABBEY HOUSE RESIDENTIAL HOMES 
645,Adult Social Care,MH u65 Residentl Care Placemnt,MH ResidentialCare Ext-Morden,W2HB55,Third Party Payments          ,Private Contractors           ,EH01,Miscellaneous Agency Services           ,600.00,01/09/2015,REV,ABBEY HOUSE RESIDENTIAL HOMES 
646,Adult Social Care,MH u65 Residentl Care Placemnt,MH ResidentialCare Ext-Morden,W2HB55,Third Party Payments          ,Private Contractors           ,EH01,Miscellaneous Agency Services           ,709.77,01/09/2015,REV,JANE'S HOUSE                  
647,Adult Social Care,MH u65 Residentl Care Placemnt,MH ResidentialCare Ext-Morden,W2HB55,Third Party Payments          ,Private Contractors           ,EH01,Miscellaneous Agency Services           ,709.77,01/09/2015,REV,JANE'S HOUSE                  
648,Childrens & Education Services,,ART Residential Secure accommo,W1DE58,Third Party Payments          ,Private Contractors           ,EH17,Supported Lodgings                      ,825.00,15/07/2015,REV,REDACTED
649,Childrens & Education Services,,ART Residential Secure accommo,W1DE58,Third Party Payments          ,Private Contractors           ,EH17,Supported Lodgings                      ,700.00,17/07/2015,REV,REDACTED
650,Childrens & Education Services,CS - Commiss'ing & Social Work,SG & CP T1 DISCRETIONARY PYMT,W1FB41,Third Party Payments          ,Private Contractors           ,EH01,Miscellaneous Contrct Services          ,963.05,25/03/2015,REV,LEXTOX                        
651,Childrens & Education Services,,ART Secure Accommodation                ,W1DE59,Third Party Payments          ,Private Contractors           ,EH79,Private Tenant/Landlord                 ,2485.00,31/08/2015,REV,THE YOUTH JUSTICE BOARD       
652,Childrens & Education Services,,ART Secure Accommodation                ,W1DE59,Third Party Payments          ,Private Contractors           ,EH79,Private Tenant/Landlord                 ,3479.00,31/08/2015,REV,THE YOUTH JUSTICE BOARD       
653,Childrens & Education Services,,ART Secure Accommodation                ,W1DE59,Third Party Payments          ,Private Contractors           ,EH79,Private Tenant/Landlord                 ,3479.00,31/08/2015,REV,THE YOUTH JUSTICE BOARD       
654,Childrens & Education Services,,ART Secure Accommodation                ,W1DE59,Third Party Payments          ,Private Contractors           ,EH79,Private Tenant/Landlord                 ,-1491.00,31/08/2015,REV,THE YOUTH JUSTICE BOARD       
655,Adult Social Care,MH u65 Residentl Care Placemnt,MH ResidentialCare Ext-Morden,W2HB55,Third Party Payments          ,Private Contractors           ,EH01,Miscellaneous Agency Services           ,709.77,01/09/2015,REV,JANE'S HOUSE                  
656,Adult Social Care,MH u65 Residentl Care Placemnt,MH ResidentialCare Ext-Morden,W2HB55,Third Party Payments          ,Private Contractors           ,EH01,Miscellaneous Agency Services           ,709.77,01/09/2015,REV,JANE'S HOUSE                  
657,Childrens & Education Services,Leaving Care Services,CL Setting Up Home Allowance,W1DF41,Third Party Payments          ,Private Contractors           ,EH01,Miscellaneous Agency Services           ,500.00,24/09/2015,REV,REDACTED
658,Childrens & Education Services,,ART Secure Accommodation                ,W1DE59,Third Party Payments          ,Private Contractors           ,EH79,Private Tenant/Landlord                 ,3479.00,24/07/2015,REV,THE YOUTH JUSTICE BOARD       
659,Childrens & Education Services,,ART Secure Accommodation                ,W1DE59,Third Party Payments          ,Private Contractors           ,EH79,Private Tenant/Landlord                 ,3479.00,24/07/2015,REV,THE YOUTH JUSTICE BOARD       
660,Childrens & Education Services,,ART Secure Accommodation                ,W1DE59,Third Party Payments          ,Private Contractors           ,EH79,Private Tenant/Landlord                 ,3479.00,24/07/2015,REV,THE YOUTH JUSTICE BOARD       
661,Childrens & Education Services,,ART Secure Accommodation                ,W1DE59,Third Party Payments          ,Private Contractors           ,EH79,Private Tenant/Landlord                 ,3479.00,24/07/2015,REV,THE YOUTH JUSTICE BOARD       
662,Childrens & Education Services,,ART Secure Accommodation                ,W1DE59,Third Party Payments          ,Private Contractors           ,EH79,Private Tenant/Landlord                 ,-2485.00,24/07/2015,REV,THE YOUTH JUSTICE BOARD       
663,Adult Social Care,MH u65 Residentl Care Placemnt,MH ResidentialCare Ext - Wim,W2HC55,Third Party Payments          ,Private Contractors           ,EH01,Miscellaneous Agency Services           ,792.77,03/09/2015,REV,MENTAL HEALTH CARE (UK) LTD   
664,Adult Social Care,MH u65 Residentl Care Placemnt,MH ResidentialCare Ext - Wim,W2HC55,Third Party Payments          ,Private Contractors           ,EH01,Miscellaneous Agency Services           ,792.77,03/09/2015,REV,MENTAL HEALTH CARE (UK) LTD   
665,Adult Social Care,MH u65 Residentl Care Placemnt,MH ResidentialCare Ext - Wim,W2HC55,Third Party Payments          ,Private Contractors           ,EH01,Miscellaneous Agency Services           ,792.77,03/09/2015,REV,MENTAL HEALTH CARE (UK) LTD   
666,Adult Social Care,MH u65 Residentl Care Placemnt,MH ResidentialCare Ext - Wim,W2HC55,Third Party Payments          ,Private Contractors           ,EH01,Miscellaneous Agency Services           ,792.77,03/09/2015,REV,MENTAL HEALTH CARE (UK) LTD   
667,Childrens & Education Services,Leaving Care Services,CL Setting Up Home Allowance,W1DF41,Third Party Payments          ,Private Contractors           ,EH01,Miscellaneous Agency Services           ,500.00,17/09/2015,REV,REDACTED
668,Childrens & Education Services,Youth Offender Teams,Youth Offending Team,W1EA00,Supplies & Services           ,Comms and Computing           ,DG02,Software Licences                       ,3500.00,08/09/2015,REV,CAREWORKS LIMITED             
669,Adult Social Care,MH u65 Residentl Care Placemnt,MH ResidentialCare Ext - Wim,W2HC55,Third Party Payments          ,Private Contractors           ,EH01,Miscellaneous Agency Services           ,689.09,07/09/2015,REV,SANCTUARY CARE LTD            
670,Adult Social Care,MH u65 Residentl Care Placemnt,MH ResidentialCare Ext - Wim,W2HC55,Third Party Payments          ,Private Contractors           ,EH01,Miscellaneous Agency Services           ,689.09,07/09/2015,REV,SANCTUARY CARE LTD            
671,Adult Social Care,MH u65 Residentl Care Placemnt,MH ResidentialCare Ext - Wim,W2HC55,Third Party Payments          ,Private Contractors           ,EH01,Miscellaneous Agency Services           ,689.09,07/09/2015,REV,SANCTUARY CARE LTD            
672,Adult Social Care,MH u65 Residentl Care Placemnt,MH ResidentialCare Ext - Wim,W2HC55,Third Party Payments          ,Private Contractors           ,EH01,Miscellaneous Agency Services           ,689.09,07/09/2015,REV,SANCTUARY CARE LTD            
673,Adult Social Care,MH u65 Residentl Care Placemnt,MH ResidentialCare Ext - Wim,W2HC55,Third Party Payments          ,Private Contractors           ,EH01,Miscellaneous Agency Services           ,841.27,31/08/2015,REV,RNID                          
674,Adult Social Care,MH u65 Residentl Care Placemnt,MH ResidentialCare Ext - Wim,W2HC55,Third Party Payments          ,Private Contractors           ,EH01,Miscellaneous Agency Services           ,841.27,31/08/2015,REV,RNID                          
675,Adult Social Care,MH u65 Residentl Care Placemnt,MH ResidentialCare Ext - Wim,W2HC55,Third Party Payments          ,Private Contractors           ,EH01,Miscellaneous Agency Services           ,841.27,31/08/2015,REV,RNID                          
676,Adult Social Care,MH u65 Residentl Care Placemnt,MH ResidentialCare Ext - Wim,W2HC55,Third Party Payments          ,Private Contractors           ,EH01,Miscellaneous Agency Services           ,841.27,31/08/2015,REV,RNID                          
677,Adult Social Care,MH u65 Residentl Care Placemnt,MH ResidentialCare Ext - Wim,W2HC55,Third Party Payments          ,Private Contractors           ,EH01,Miscellaneous Agency Services           ,908.00,01/10/2015,REV,CARE MANAGEMENT GROUP         
678,Adult Social Care,MH u65 Residentl Care Placemnt,MH ResidentialCare Ext - Wim,W2HC55,Third Party Payments          ,Private Contractors           ,EH01,Miscellaneous Agency Services           ,908.00,01/10/2015,REV,CARE MANAGEMENT GROUP         
679,Adult Social Care,MH u65 Residentl Care Placemnt,MH ResidentialCare Ext - Wim,W2HC55,Third Party Payments          ,Private Contractors           ,EH01,Miscellaneous Agency Services           ,908.00,01/10/2015,REV,CARE MANAGEMENT GROUP         
680,Adult Social Care,MH u65 Residentl Care Placemnt,MH ResidentialCare Ext - Wim,W2HC55,Third Party Payments          ,Private Contractors           ,EH01,Miscellaneous Agency Services           ,908.00,01/10/2015,REV,CARE MANAGEMENT GROUP         
681,Adult Social Care,MH u65 Assessment & Care Mgt,MH Community Care Manager,W2HA00,Employees                     ,Indirect Employee Expenses    ,AB13,Health Staff in PCT Pool                ,49042.17,28/08/2015,REV,SW LONDON ST GEORGES NHS TRUST
682,Adult Social Care,MH u65 Nursing Care Placements,MH Nursing Care - Morden,W2HB53,Third Party Payments          ,Private Contractors           ,EH01,Miscellaneous Agency Services           ,679.13,14/09/2015,REV,CARE UNLIMITED                
683,Adult Social Care,MH u65 Nursing Care Placements,MH Nursing Care - Morden,W2HB53,Third Party Payments          ,Private Contractors           ,EH01,Miscellaneous Agency Services           ,679.13,14/09/2015,REV,CARE UNLIMITED                
684,Adult Social Care,MH u65 Nursing Care Placements,MH Nursing Care - Morden,W2HB53,Third Party Payments          ,Private Contractors           ,EH01,Miscellaneous Agency Services           ,679.13,14/09/2015,REV,CARE UNLIMITED                
685,Adult Social Care,MH u65 Nursing Care Placements,MH Nursing Care - Morden,W2HB53,Third Party Payments          ,Private Contractors           ,EH01,Miscellaneous Agency Services           ,679.13,14/09/2015,REV,CARE UNLIMITED                
686,Adult Social Care,PS u65 Day Care,PS All Saints DC,W2JC00,Premises Related Expenditure  ,Cleaning and Domestic Supplies,BH03,Cleaning Services                       ,1172.11,01/09/2015,REV,BIRKIN CLEANING SERVICES LTD  
687,Adult Social Care,MH u65 Residentl Care Placemnt,MH Res Care Ext- Mitcham West,W2HD55,Third Party Payments          ,Private Contractors           ,EH01,Miscellaneous Agency Services           ,518.68,21/09/2015,REV,ASTRA HOMES                   
688,Adult Social Care,MH u65 Residentl Care Placemnt,MH Res Care Ext- Mitcham West,W2HD55,Third Party Payments          ,Private Contractors           ,EH01,Miscellaneous Agency Services           ,518.68,21/09/2015,REV,ASTRA HOMES                   
689,Adult Social Care,MH u65 Residentl Care Placemnt,MH Res Care Ext- Mitcham West,W2HD55,Third Party Payments          ,Private Contractors           ,EH01,Miscellaneous Agency Services           ,518.68,21/09/2015,REV,ASTRA HOMES                   
690,Adult Social Care,MH u65 Residentl Care Placemnt,MH Res Care Ext- Mitcham West,W2HD55,Third Party Payments          ,Private Contractors           ,EH01,Miscellaneous Agency Services           ,518.68,21/09/2015,REV,ASTRA HOMES                   
691,Adult Social Care,Oth Adult - HIV/Aids,PS Aids Support,W2JB05,Supplies & Services           ,Services                      ,DF03,Consultants                             ,5250.00,01/09/2015,REV,FONTANA CONSULTANCY LTD       
692,Adult Social Care,PS u65 Direct Payments,PD EAST TEAM-Direct Payment,W2JJ36,Third Party Payments          ,Private Contractors           ,EH73,Direct Payments                         ,535.07,22/09/2015,REV,REDACTED
693,Adult Social Care,PS u65 Direct Payments,PD EAST TEAM-Direct Payment,W2JJ36,Third Party Payments          ,Private Contractors           ,EH73,Direct Payments                         ,535.07,22/09/2015,REV,REDACTED
694,Adult Social Care,PS u65 Direct Payments,PD EAST TEAM-Direct Payment,W2JJ36,Third Party Payments          ,Private Contractors           ,EH73,Direct Payments                         ,535.07,22/09/2015,REV,REDACTED
695,Adult Social Care,PS u65 Direct Payments,PD EAST TEAM-Direct Payment,W2JJ36,Third Party Payments          ,Private Contractors           ,EH73,Direct Payments                         ,535.07,22/09/2015,REV,REDACTED
696,Adult Social Care,PS u65 Direct Payments,PD EAST TEAM-Direct Payment,W2JJ36,Third Party Payments          ,Private Contractors           ,EH73,Direct Payments                         ,670.95,22/09/2015,REV,REDACTED
697,Adult Social Care,PS u65 Direct Payments,PD EAST TEAM-Direct Payment,W2JJ36,Third Party Payments          ,Private Contractors           ,EH73,Direct Payments                         ,670.95,22/09/2015,REV,REDACTED
698,Adult Social Care,PS u65 Direct Payments,PD EAST TEAM-Direct Payment,W2JJ36,Third Party Payments          ,Private Contractors           ,EH73,Direct Payments                         ,670.95,22/09/2015,REV,REDACTED
699,Adult Social Care,PS u65 Direct Payments,PD EAST TEAM-Direct Payment,W2JJ36,Third Party Payments          ,Private Contractors           ,EH73,Direct Payments                         ,670.95,22/09/2015,REV,REDACTED
700,Adult Social Care,PS u65 Direct Payments,PD EAST TEAM-Direct Payment,W2JJ36,Third Party Payments          ,Private Contractors           ,EH73,Direct Payments                         ,896.64,22/09/2015,REV,REDACTED
701,Adult Social Care,PS u65 Direct Payments,PD EAST TEAM-Direct Payment,W2JJ36,Third Party Payments          ,Private Contractors           ,EH73,Direct Payments                         ,896.64,22/09/2015,REV,REDACTED
702,Adult Social Care,PS u65 Direct Payments,PD EAST TEAM-Direct Payment,W2JJ36,Third Party Payments          ,Private Contractors           ,EH73,Direct Payments                         ,896.64,22/09/2015,REV,REDACTED
703,Adult Social Care,PS u65 Direct Payments,PD EAST TEAM-Direct Payment,W2JJ36,Third Party Payments          ,Private Contractors           ,EH73,Direct Payments                         ,896.64,22/09/2015,REV,REDACTED
704,Adult Social Care,MH u65 Residentl Care Placemnt,MH Res Care Ext- Mitcham West,W2HD55,Third Party Payments          ,Private Contractors           ,EH01,Miscellaneous Agency Services           ,500.00,15/09/2015,REV,THANET HEALTHCARE LTD         
705,Adult Social Care,MH u65 Residentl Care Placemnt,MH Res Care Ext- Mitcham West,W2HD55,Third Party Payments          ,Private Contractors           ,EH01,Miscellaneous Agency Services           ,500.00,15/09/2015,REV,THANET HEALTHCARE LTD         
706,Adult Social Care,MH u65 Residentl Care Placemnt,MH Res Care Ext- Mitcham West,W2HD55,Third Party Payments          ,Private Contractors           ,EH01,Miscellaneous Agency Services           ,500.00,15/09/2015,REV,THANET HEALTHCARE LTD         
707,Adult Social Care,MH u65 Residentl Care Placemnt,MH Res Care Ext- Mitcham West,W2HD55,Third Party Payments          ,Private Contractors           ,EH01,Miscellaneous Agency Services           ,500.00,15/09/2015,REV,THANET HEALTHCARE LTD         
708,Adult Social Care,MH u65 Residentl Care Placemnt,MH Res Care Ext- Mitcham West,W2HD55,Third Party Payments          ,Private Contractors           ,EH01,Miscellaneous Agency Services           ,1420.39,25/09/2015,REV,COMMUNITY CARE SOLUTIONS LTD  
709,Adult Social Care,MH u65 Residentl Care Placemnt,MH Res Care Ext- Mitcham West,W2HD55,Third Party Payments          ,Private Contractors           ,EH01,Miscellaneous Agency Services           ,1420.39,25/09/2015,REV,COMMUNITY CARE SOLUTIONS LTD  
710,Adult Social Care,MH u65 Residentl Care Placemnt,MH Res Care Ext- Mitcham West,W2HD55,Third Party Payments          ,Private Contractors           ,EH01,Miscellaneous Agency Services           ,1420.39,25/09/2015,REV,COMMUNITY CARE SOLUTIONS LTD  
711,Adult Social Care,MH u65 Residentl Care Placemnt,MH Res Care Ext- Mitcham West,W2HD55,Third Party Payments          ,Private Contractors           ,EH01,Miscellaneous Agency Services           ,1420.39,25/09/2015,REV,COMMUNITY CARE SOLUTIONS LTD  
712,Adult Social Care,MH u65 Other Services,MH IMAGINE,W2HV11,Third Party Payments          ,Private Contractors           ,EH10,Contract Payments                       ,17500.00,01/09/2015,REV,IMAGINE INDEPENDENCE          
713,Adult Social Care,MH u65 Assessment & Care Mgt,MH - Comm Care Mgr (Non Pool),W2HX00,Supplies & Services           ,Services                      ,DF09,Miscellaneous Fees                      ,1200.00,26/08/2015,REV,REDACTED
714,Adult Social Care,PS u65 Direct Payments,PD EAST TEAM-Direct Payment,W2JJ36,Third Party Payments          ,Private Contractors           ,EH73,Direct Payments                         ,590.75,22/09/2015,REV,REDACTED
715,Adult Social Care,PS u65 Direct Payments,PD EAST TEAM-Direct Payment,W2JJ36,Third Party Payments          ,Private Contractors           ,EH73,Direct Payments                         ,590.75,22/09/2015,REV,REDACTED
716,Adult Social Care,PS u65 Direct Payments,PD EAST TEAM-Direct Payment,W2JJ36,Third Party Payments          ,Private Contractors           ,EH73,Direct Payments                         ,590.75,22/09/2015,REV,REDACTED
717,Adult Social Care,PS u65 Direct Payments,PD EAST TEAM-Direct Payment,W2JJ36,Third Party Payments          ,Private Contractors           ,EH73,Direct Payments                         ,590.75,22/09/2015,REV,REDACTED
718,Adult Social Care,PS u65 Nursing Care Placements,PD EAST TEAM-Nursing,W2JJ53,Third Party Payments          ,Private Contractors           ,EH01,Miscellaneous Agency Services           ,1169.12,31/08/2015,REV,ROYAL HOSP FOR NEURO-DISAB    
719,Adult Social Care,PS u65 Nursing Care Placements,PD EAST TEAM-Nursing,W2JJ53,Third Party Payments          ,Private Contractors           ,EH01,Miscellaneous Agency Services           ,1169.12,31/08/2015,REV,ROYAL HOSP FOR NEURO-DISAB    
720,Adult Social Care,PS u65 Nursing Care Placements,PD EAST TEAM-Nursing,W2JJ53,Third Party Payments          ,Private Contractors           ,EH01,Miscellaneous Agency Services           ,1169.12,31/08/2015,REV,ROYAL HOSP FOR NEURO-DISAB    
721,Adult Social Care,PS u65 Nursing Care Placements,PD EAST TEAM-Nursing,W2JJ53,Third Party Payments          ,Private Contractors           ,EH01,Miscellaneous Agency Services           ,1169.12,31/08/2015,REV,ROYAL HOSP FOR NEURO-DISAB    
722,Adult Social Care,PS u65 Nursing Care Placements,PD EAST TEAM-Nursing,W2JJ53,Third Party Payments          ,Private Contractors           ,EH01,Miscellaneous Agency Services           ,1169.12,31/08/2015,REV,ROYAL HOSP FOR NEURO-DISAB    
723,Adult Social Care,PS u65 Nursing Care Placements,PD EAST TEAM-Nursing,W2JJ53,Third Party Payments          ,Private Contractors           ,EH01,Miscellaneous Agency Services           ,-827.58,31/08/2015,REV,ROYAL HOSP FOR NEURO-DISAB    
724,Adult Social Care,PS u65 Nursing Care Placements,PD EAST TEAM-Nursing,W2JJ53,Third Party Payments          ,Private Contractors           ,EH01,Miscellaneous Agency Services           ,1200.00,07/09/2015,REV,HAVERING COURT NURSING HOME   
725,Adult Social Care,PS u65 Nursing Care Placements,PD EAST TEAM-Nursing,W2JJ53,Third Party Payments          ,Private Contractors           ,EH01,Miscellaneous Agency Services           ,1200.00,07/09/2015,REV,HAVERING COURT NURSING HOME   
726,Adult Social Care,PS u65 Nursing Care Placements,PD EAST TEAM-Nursing,W2JJ53,Third Party Payments          ,Private Contractors           ,EH01,Miscellaneous Agency Services           ,1200.00,07/09/2015,REV,HAVERING COURT NURSING HOME   
727,Adult Social Care,PS u65 Nursing Care Placements,PD EAST TEAM-Nursing,W2JJ53,Third Party Payments          ,Private Contractors           ,EH01,Miscellaneous Agency Services           ,1200.00,07/09/2015,REV,HAVERING COURT NURSING HOME   
728,Adult Social Care,PS u65 Nursing Care Placements,PD EAST TEAM-Nursing,W2JJ53,Third Party Payments          ,Private Contractors           ,EH01,Miscellaneous Agency Services           ,1000.00,17/08/2015,REV,BUPA CARE HOMES (ANS) LTD     
729,Adult Social Care,PS u65 Nursing Care Placements,PD EAST TEAM-Nursing,W2JJ53,Third Party Payments          ,Private Contractors           ,EH01,Miscellaneous Agency Services           ,1000.00,17/08/2015,REV,BUPA CARE HOMES (ANS) LTD     
730,Adult Social Care,PS u65 Nursing Care Placements,PD EAST TEAM-Nursing,W2JJ53,Third Party Payments          ,Private Contractors           ,EH01,Miscellaneous Agency Services           ,1000.00,17/08/2015,REV,BUPA CARE HOMES (ANS) LTD     
731,Adult Social Care,PS u65 Nursing Care Placements,PD EAST TEAM-Nursing,W2JJ53,Third Party Payments          ,Private Contractors           ,EH01,Miscellaneous Agency Services           ,1000.00,17/08/2015,REV,BUPA CARE HOMES (ANS) LTD     
732,Adult Social Care,PS u65 Nursing Care Placements,PD EAST TEAM-Nursing,W2JJ53,Third Party Payments          ,Private Contractors           ,EH01,Miscellaneous Agency Services           ,1450.00,15/09/2015,REV,BUPA CARE HOMES               
733,Adult Social Care,PS u65 Nursing Care Placements,PD EAST TEAM-Nursing,W2JJ53,Third Party Payments          ,Private Contractors           ,EH01,Miscellaneous Agency Services           ,1450.00,15/09/2015,REV,BUPA CARE HOMES               
734,Adult Social Care,PS u65 Nursing Care Placements,PD EAST TEAM-Nursing,W2JJ53,Third Party Payments          ,Private Contractors           ,EH01,Miscellaneous Agency Services           ,1450.00,15/09/2015,REV,BUPA CARE HOMES               
735,Adult Social Care,PS u65 Nursing Care Placements,PD EAST TEAM-Nursing,W2JJ53,Third Party Payments          ,Private Contractors           ,EH01,Miscellaneous Agency Services           ,1450.00,15/09/2015,REV,BUPA CARE HOMES               
736,Adult Social Care,PS u65 Home Care,PD EAST TEAM-Homecare,W2JJ49,Third Party Payments          ,Private Contractors           ,EH01,Miscellaneous Agency Services           ,928.41,07/09/2015,REV,HOMECARE SERVICES LTD         
737,Adult Social Care,PS u65 Home Care,PD EAST TEAM-Homecare,W2JJ49,Third Party Payments          ,Private Contractors           ,EH01,Miscellaneous Agency Services           ,928.41,07/09/2015,REV,HOMECARE SERVICES LTD         
738,Adult Social Care,PS u65 Home Care,PD EAST TEAM-Homecare,W2JJ49,Third Party Payments          ,Private Contractors           ,EH01,Miscellaneous Agency Services           ,552.72,29/09/2015,REV,BUPA CARE HOMES (ANS) LTD     
739,Adult Social Care,PS u65 Home Care,PD EAST TEAM-Homecare,W2JJ49,Third Party Payments          ,Private Contractors           ,EH01,Miscellaneous Agency Services           ,552.72,29/09/2015,REV,BUPA CARE HOMES (ANS) LTD     
740,Adult Social Care,PS u65 Home Care,PD EAST TEAM-Homecare,W2JJ49,Third Party Payments          ,Private Contractors           ,EH01,Miscellaneous Agency Services           ,552.72,29/09/2015,REV,BUPA CARE HOMES (ANS) LTD     
741,Adult Social Care,PS u65 Home Care,PD EAST TEAM-Homecare,W2JJ49,Third Party Payments          ,Private Contractors           ,EH01,Miscellaneous Agency Services           ,552.72,29/09/2015,REV,BUPA CARE HOMES (ANS) LTD     
742,Adult Social Care,PS u65 Residentl Care Placemnt,PD EAST TEAM-Residential,W2JJ55,Third Party Payments          ,Private Contractors           ,EH01,Miscellaneous Agency Services           ,668.81,27/08/2015,REV,GARWOOD FOUNDATION            
743,Adult Social Care,PS u65 Residentl Care Placemnt,PD EAST TEAM-Residential,W2JJ55,Third Party Payments          ,Private Contractors           ,EH01,Miscellaneous Agency Services           ,668.81,27/08/2015,REV,GARWOOD FOUNDATION            
744,Adult Social Care,PS u65 Residentl Care Placemnt,PD EAST TEAM-Residential,W2JJ55,Third Party Payments          ,Private Contractors           ,EH01,Miscellaneous Agency Services           ,668.81,27/08/2015,REV,GARWOOD FOUNDATION            
745,Adult Social Care,PS u65 Residentl Care Placemnt,PD EAST TEAM-Residential,W2JJ55,Third Party Payments          ,Private Contractors           ,EH01,Miscellaneous Agency Services           ,668.81,27/08/2015,REV,GARWOOD FOUNDATION            
746,Adult Social Care,PS u65 Residentl Care Placemnt,PD EAST TEAM-Residential,W2JJ55,Third Party Payments          ,Private Contractors           ,EH01,Miscellaneous Agency Services           ,668.81,27/08/2015,REV,GARWOOD FOUNDATION            
747,Adult Social Care,PS u65 Residentl Care Placemnt,PD EAST TEAM-Residential,W2JJ55,Third Party Payments          ,Private Contractors           ,EH01,Miscellaneous Agency Services           ,-573.27,27/08/2015,REV,GARWOOD FOUNDATION            
748,Adult Social Care,PS u65 Residentl Care Placemnt,PD EAST TEAM-Residential,W2JJ55,Third Party Payments          ,Private Contractors           ,EH01,Miscellaneous Agency Services           ,2096.21,31/08/2015,REV,RNID                          
749,Adult Social Care,PS u65 Residentl Care Placemnt,PD EAST TEAM-Residential,W2JJ55,Third Party Payments          ,Private Contractors           ,EH01,Miscellaneous Agency Services           ,2096.21,31/08/2015,REV,RNID                          
750,Adult Social Care,PS u65 Residentl Care Placemnt,PD EAST TEAM-Residential,W2JJ55,Third Party Payments          ,Private Contractors           ,EH01,Miscellaneous Agency Services           ,2096.21,31/08/2015,REV,RNID                          
751,Adult Social Care,PS u65 Residentl Care Placemnt,PD EAST TEAM-Residential,W2JJ55,Third Party Payments          ,Private Contractors           ,EH01,Miscellaneous Agency Services           ,2096.21,31/08/2015,REV,RNID                          
752,Adult Social Care,PS u65 Residentl Care Placemnt,PD EAST TEAM-Residential,W2JJ55,Third Party Payments          ,Private Contractors           ,EH01,Miscellaneous Agency Services           ,812.42,07/09/2015,REV,SCOPE                         
753,Adult Social Care,PS u65 Residentl Care Placemnt,PD EAST TEAM-Residential,W2JJ55,Third Party Payments          ,Private Contractors           ,EH01,Miscellaneous Agency Services           ,812.42,07/09/2015,REV,SCOPE                         
754,Adult Social Care,PS u65 Residentl Care Placemnt,PD EAST TEAM-Residential,W2JJ55,Third Party Payments          ,Private Contractors           ,EH01,Miscellaneous Agency Services           ,812.42,07/09/2015,REV,SCOPE                         
755,Adult Social Care,PS u65 Residentl Care Placemnt,PD EAST TEAM-Residential,W2JJ55,Third Party Payments          ,Private Contractors           ,EH01,Miscellaneous Agency Services           ,812.42,07/09/2015,REV,SCOPE                         
756,Adult Social Care,PS u65 Residentl Care Placemnt,PD EAST TEAM-Residential,W2JJ55,Third Party Payments          ,Private Contractors           ,EH01,Miscellaneous Agency Services           ,1267.18,22/09/2015,REV,RNIB REDHILL COLLEGE          
757,Adult Social Care,PS u65 Residentl Care Placemnt,PD EAST TEAM-Residential,W2JJ55,Third Party Payments          ,Private Contractors           ,EH01,Miscellaneous Agency Services           ,1267.18,22/09/2015,REV,RNIB REDHILL COLLEGE          
758,Adult Social Care,PS u65 Residentl Care Placemnt,PD EAST TEAM-Residential,W2JJ55,Third Party Payments          ,Private Contractors           ,EH01,Miscellaneous Agency Services           ,1267.18,22/09/2015,REV,RNIB REDHILL COLLEGE          
759,Adult Social Care,PS u65 Residentl Care Placemnt,PD EAST TEAM-Residential,W2JJ55,Third Party Payments          ,Private Contractors           ,EH01,Miscellaneous Agency Services           ,1267.18,22/09/2015,REV,RNIB REDHILL COLLEGE          
760,Adult Social Care,PS u65 Home Care,PD EAST TEAM-Homecare,W2JJ49,Third Party Payments          ,Private Contractors           ,EH01,Miscellaneous Agency Services           ,928.41,07/09/2015,REV,HOMECARE SERVICES LTD         
761,Adult Social Care,PS u65 Home Care,PD EAST TEAM-Homecare,W2JJ49,Third Party Payments          ,Private Contractors           ,EH01,Miscellaneous Agency Services           ,928.41,07/09/2015,REV,HOMECARE SERVICES LTD         
762,Adult Social Care,PS u65 Residentl Care Placemnt,PD EAST TEAM-Residential,W2JJ55,Third Party Payments          ,Private Contractors           ,EH01,Miscellaneous Agency Services           ,1267.18,11/09/2015,REV,RNIB REDHILL COLLEGE          
763,Adult Social Care,PS u65 Residentl Care Placemnt,PD EAST TEAM-Residential,W2JJ55,Third Party Payments          ,Private Contractors           ,EH01,Miscellaneous Agency Services           ,1267.18,11/09/2015,REV,RNIB REDHILL COLLEGE          
764,Adult Social Care,PS u65 Residentl Care Placemnt,PD EAST TEAM-Residential,W2JJ55,Third Party Payments          ,Private Contractors           ,EH01,Miscellaneous Agency Services           ,1267.18,11/09/2015,REV,RNIB REDHILL COLLEGE          
765,Adult Social Care,PS u65 Residentl Care Placemnt,PD EAST TEAM-Residential,W2JJ55,Third Party Payments          ,Private Contractors           ,EH01,Miscellaneous Agency Services           ,1267.18,11/09/2015,REV,RNIB REDHILL COLLEGE          
766,Adult Social Care,PS u65 Residentl Care Placemnt,PD EAST TEAM-Residential,W2JJ55,Third Party Payments          ,Private Contractors           ,EH01,Miscellaneous Agency Services           ,1267.18,11/09/2015,REV,RNIB REDHILL COLLEGE          
767,Adult Social Care,PS u65 Residentl Care Placemnt,PD EAST TEAM-Residential,W2JJ55,Third Party Payments          ,Private Contractors           ,EH01,Miscellaneous Agency Services           ,1267.18,11/09/2015,REV,RNIB REDHILL COLLEGE          
768,Adult Social Care,PS u65 Residentl Care Placemnt,PD EAST TEAM-Residential,W2JJ55,Third Party Payments          ,Private Contractors           ,EH01,Miscellaneous Agency Services           ,1267.18,11/09/2015,REV,RNIB REDHILL COLLEGE          
769,Adult Social Care,PS u65 Residentl Care Placemnt,PD EAST TEAM-Residential,W2JJ55,Third Party Payments          ,Private Contractors           ,EH01,Miscellaneous Agency Services           ,1267.18,11/09/2015,REV,RNIB REDHILL COLLEGE          
770,Adult Social Care,PS u65 Residentl Care Placemnt,PD EAST TEAM-Residential,W2JJ55,Third Party Payments          ,Private Contractors           ,EH01,Miscellaneous Agency Services           ,1559.95,15/09/2015,REV,BRAMBLEDOWN CARE HOME         
771,Adult Social Care,PS u65 Residentl Care Placemnt,PD EAST TEAM-Residential,W2JJ55,Third Party Payments          ,Private Contractors           ,EH01,Miscellaneous Agency Services           ,1559.95,15/09/2015,REV,BRAMBLEDOWN CARE HOME         
772,Adult Social Care,PS u65 Residentl Care Placemnt,PD EAST TEAM-Residential,W2JJ55,Third Party Payments          ,Private Contractors           ,EH01,Miscellaneous Agency Services           ,1559.95,15/09/2015,REV,BRAMBLEDOWN CARE HOME         
773,Adult Social Care,PS u65 Residentl Care Placemnt,PD EAST TEAM-Residential,W2JJ55,Third Party Payments          ,Private Contractors           ,EH01,Miscellaneous Agency Services           ,1559.95,15/09/2015,REV,BRAMBLEDOWN CARE HOME         
774,Adult Social Care,PS u65 Residentl Care Placemnt,PD EAST TEAM-Residential,W2JJ55,Third Party Payments          ,Private Contractors           ,EH01,Miscellaneous Agency Services           ,1267.18,24/09/2015,REV,RNIB REDHILL COLLEGE          
775,Adult Social Care,PS u65 Residentl Care Placemnt,PD EAST TEAM-Residential,W2JJ55,Third Party Payments          ,Private Contractors           ,EH01,Miscellaneous Agency Services           ,1267.18,24/09/2015,REV,RNIB REDHILL COLLEGE          
776,Adult Social Care,PS u65 Residentl Care Placemnt,PD EAST TEAM-Residential,W2JJ55,Third Party Payments          ,Private Contractors           ,EH01,Miscellaneous Agency Services           ,1267.18,24/09/2015,REV,RNIB REDHILL COLLEGE          
777,Adult Social Care,PS u65 Residentl Care Placemnt,PD EAST TEAM-Residential,W2JJ55,Third Party Payments          ,Private Contractors           ,EH01,Miscellaneous Agency Services           ,1267.18,24/09/2015,REV,RNIB REDHILL COLLEGE          
778,Adult Social Care,PS u65 Residentl Care Placemnt,PD EAST TEAM-Residential,W2JJ55,Third Party Payments          ,Private Contractors           ,EH01,Miscellaneous Agency Services           ,800.00,10/08/2015,REV,LIFE STYLE CARE (2011) PLC    
779,Adult Social Care,PS u65 Residentl Care Placemnt,PD EAST TEAM-Residential,W2JJ55,Third Party Payments          ,Private Contractors           ,EH01,Miscellaneous Agency Services           ,800.00,10/08/2015,REV,LIFE STYLE CARE (2011) PLC    
780,Adult Social Care,PS u65 Residentl Care Placemnt,PD EAST TEAM-Residential,W2JJ55,Third Party Payments          ,Private Contractors           ,EH01,Miscellaneous Agency Services           ,800.00,10/08/2015,REV,LIFE STYLE CARE (2011) PLC    
781,Adult Social Care,PS u65 Residentl Care Placemnt,PD EAST TEAM-Residential,W2JJ55,Third Party Payments          ,Private Contractors           ,EH01,Miscellaneous Agency Services           ,800.00,10/08/2015,REV,LIFE STYLE CARE (2011) PLC    
782,Adult Social Care,PS u65 Equip & Adaptations,PS Property Adaptations,W2JA00,Transfer Payments             ,Adult Soc Servs Clients       ,FD10,Property adapt-Phys H'capped            ,895.00,12/09/2015,REV,NEEDHAM & SAUNDERS            
783,Adult Social Care,PS u65 Other Services,PS Rehab,W2JB02,Third Party Payments          ,Private Contractors           ,EH10,Contract Payments                       ,4586.07,17/08/2015,REV,MERTON VISION                 
784,Adult Social Care,PS u65 Home Care,PD EAST TEAM-Homecare,W2JJ49,Third Party Payments          ,Private Contractors           ,EH01,Miscellaneous Agency Services           ,552.72,17/08/2015,REV,BUPA CARE HOMES (ANS) LTD     
785,Adult Social Care,PS u65 Home Care,PD EAST TEAM-Homecare,W2JJ49,Third Party Payments          ,Private Contractors           ,EH01,Miscellaneous Agency Services           ,552.72,17/08/2015,REV,BUPA CARE HOMES (ANS) LTD     
786,Adult Social Care,PS u65 Home Care,PD EAST TEAM-Homecare,W2JJ49,Third Party Payments          ,Private Contractors           ,EH01,Miscellaneous Agency Services           ,552.72,17/08/2015,REV,BUPA CARE HOMES (ANS) LTD     
787,Adult Social Care,PS u65 Home Care,PD EAST TEAM-Homecare,W2JJ49,Third Party Payments          ,Private Contractors           ,EH01,Miscellaneous Agency Services           ,552.72,17/08/2015,REV,BUPA CARE HOMES (ANS) LTD     
788,Adult Social Care,PS u65 Residentl Care Placemnt,PD EAST TEAM-Residential,W2JJ55,Third Party Payments          ,Private Contractors           ,EH01,Miscellaneous Agency Services           ,1774.00,01/10/2015,REV,CARE MANAGEMENT GROUP         
789,Adult Social Care,PS u65 Residentl Care Placemnt,PD EAST TEAM-Residential,W2JJ55,Third Party Payments          ,Private Contractors           ,EH01,Miscellaneous Agency Services           ,1774.00,01/10/2015,REV,CARE MANAGEMENT GROUP         
790,Adult Social Care,PS u65 Residentl Care Placemnt,PD EAST TEAM-Residential,W2JJ55,Third Party Payments          ,Private Contractors           ,EH01,Miscellaneous Agency Services           ,1774.00,01/10/2015,REV,CARE MANAGEMENT GROUP         
791,Adult Social Care,PS u65 Residentl Care Placemnt,PD EAST TEAM-Residential,W2JJ55,Third Party Payments          ,Private Contractors           ,EH01,Miscellaneous Agency Services           ,1774.00,01/10/2015,REV,CARE MANAGEMENT GROUP         
792,Adult Social Care,PS u65 Direct Payments,PD WEST TEAM-Direct Payment,W2JK36,Third Party Payments          ,Private Contractors           ,EH73,Direct Payments                         ,745.50,11/09/2015,REV,REDACTED
793,Adult Social Care,PS u65 Direct Payments,PD WEST TEAM-Direct Payment,W2JK36,Third Party Payments          ,Private Contractors           ,EH73,Direct Payments                         ,745.50,11/09/2015,REV,REDACTED
794,Adult Social Care,PS u65 Direct Payments,PD WEST TEAM-Direct Payment,W2JK36,Third Party Payments          ,Private Contractors           ,EH73,Direct Payments                         ,745.50,11/09/2015,REV,REDACTED
795,Adult Social Care,PS u65 Direct Payments,PD WEST TEAM-Direct Payment,W2JK36,Third Party Payments          ,Private Contractors           ,EH73,Direct Payments                         ,745.50,11/09/2015,REV,REDACTED
796,Adult Social Care,PS u65 Residentl Care Placemnt,PD EAST TEAM-Residential,W2JJ55,Third Party Payments          ,Private Contractors           ,EH01,Miscellaneous Agency Services           ,1267.18,22/09/2015,REV,RNIB REDHILL COLLEGE          
797,Adult Social Care,PS u65 Residentl Care Placemnt,PD EAST TEAM-Residential,W2JJ55,Third Party Payments          ,Private Contractors           ,EH01,Miscellaneous Agency Services           ,1267.18,22/09/2015,REV,RNIB REDHILL COLLEGE          
798,Adult Social Care,PS u65 Residentl Care Placemnt,PD EAST TEAM-Residential,W2JJ55,Third Party Payments          ,Private Contractors           ,EH01,Miscellaneous Agency Services           ,1267.18,22/09/2015,REV,RNIB REDHILL COLLEGE          
799,Adult Social Care,PS u65 Residentl Care Placemnt,PD EAST TEAM-Residential,W2JJ55,Third Party Payments          ,Private Contractors           ,EH01,Miscellaneous Agency Services           ,1267.18,22/09/2015,REV,RNIB REDHILL COLLEGE          
800,Adult Social Care,PS u65 Residentl Care Placemnt,PD EAST TEAM-Residential,W2JJ55,Third Party Payments          ,Private Contractors           ,EH01,Miscellaneous Agency Services           ,1267.18,22/09/2015,REV,RNIB REDHILL COLLEGE          
801,Adult Social Care,PS u65 Residentl Care Placemnt,PD EAST TEAM-Residential,W2JJ55,Third Party Payments          ,Private Contractors           ,EH01,Miscellaneous Agency Services           ,1267.18,22/09/2015,REV,RNIB REDHILL COLLEGE          
802,Adult Social Care,PS u65 Residentl Care Placemnt,PD EAST TEAM-Residential,W2JJ55,Third Party Payments          ,Private Contractors           ,EH01,Miscellaneous Agency Services           ,1267.18,22/09/2015,REV,RNIB REDHILL COLLEGE          
803,Adult Social Care,PS u65 Residentl Care Placemnt,PD EAST TEAM-Residential,W2JJ55,Third Party Payments          ,Private Contractors           ,EH01,Miscellaneous Agency Services           ,1267.18,22/09/2015,REV,RNIB REDHILL COLLEGE          
804,Adult Social Care,PS u65 Residentl Care Placemnt,PD EAST TEAM-Residential,W2JJ55,Third Party Payments          ,Private Contractors           ,EH01,Miscellaneous Agency Services           ,800.00,07/09/2015,REV,LIFE STYLE CARE (2011) PLC    
805,Adult Social Care,PS u65 Residentl Care Placemnt,PD EAST TEAM-Residential,W2JJ55,Third Party Payments          ,Private Contractors           ,EH01,Miscellaneous Agency Services           ,800.00,07/09/2015,REV,LIFE STYLE CARE (2011) PLC    
806,Adult Social Care,PS u65 Residentl Care Placemnt,PD EAST TEAM-Residential,W2JJ55,Third Party Payments          ,Private Contractors           ,EH01,Miscellaneous Agency Services           ,800.00,07/09/2015,REV,LIFE STYLE CARE (2011) PLC    
807,Adult Social Care,PS u65 Residentl Care Placemnt,PD EAST TEAM-Residential,W2JJ55,Third Party Payments          ,Private Contractors           ,EH01,Miscellaneous Agency Services           ,800.00,07/09/2015,REV,LIFE STYLE CARE (2011) PLC    
808,Adult Social Care,PS u65 Equip & Adaptations,PS Property Adaptations,W2JA00,Transfer Payments             ,Adult Soc Servs Clients       ,FD10,Property adapt-Phys H'capped            ,625.00,24/08/2015,REV,T BROWN GROUP LTD             
809,Adult Social Care,PS u65 Equip & Adaptations,PS Property Adaptations,W2JA00,Transfer Payments             ,Adult Soc Servs Clients       ,FD10,Property adapt-Phys H'capped            ,995.00,26/08/2015,REV,NEEDHAM & SAUNDERS            
810,Adult Social Care,PS u65 Direct Payments,PD WEST TEAM-Direct Payment,W2JK36,Third Party Payments          ,Private Contractors           ,EH73,Direct Payments                         ,745.50,18/09/2015,REV,REDACTED
811,Adult Social Care,PS u65 Direct Payments,PD WEST TEAM-Direct Payment,W2JK36,Third Party Payments          ,Private Contractors           ,EH73,Direct Payments                         ,745.50,18/09/2015,REV,REDACTED
812,Adult Social Care,PS u65 Direct Payments,PD WEST TEAM-Direct Payment,W2JK36,Third Party Payments          ,Private Contractors           ,EH73,Direct Payments                         ,745.50,18/09/2015,REV,REDACTED
813,Adult Social Care,PS u65 Direct Payments,PD WEST TEAM-Direct Payment,W2JK36,Third Party Payments          ,Private Contractors           ,EH73,Direct Payments                         ,745.50,18/09/2015,REV,REDACTED
814,Adult Social Care,PS u65 Direct Payments,PD WEST TEAM-Direct Payment,W2JK36,Third Party Payments          ,Private Contractors           ,EH73,Direct Payments                         ,602.33,22/09/2015,REV,REDACTED
815,Adult Social Care,PS u65 Direct Payments,PD WEST TEAM-Direct Payment,W2JK36,Third Party Payments          ,Private Contractors           ,EH73,Direct Payments                         ,602.33,22/09/2015,REV,REDACTED
816,Adult Social Care,PS u65 Direct Payments,PD WEST TEAM-Direct Payment,W2JK36,Third Party Payments          ,Private Contractors           ,EH73,Direct Payments                         ,602.33,22/09/2015,REV,REDACTED
817,Adult Social Care,PS u65 Direct Payments,PD WEST TEAM-Direct Payment,W2JK36,Third Party Payments          ,Private Contractors           ,EH73,Direct Payments                         ,602.33,22/09/2015,REV,REDACTED
818,Adult Social Care,PS u65 Direct Payments,PD WEST TEAM-Direct Payment,W2JK36,Third Party Payments          ,Private Contractors           ,EH73,Direct Payments                         ,746.40,22/09/2015,REV,REDACTED
819,Adult Social Care,PS u65 Direct Payments,PD WEST TEAM-Direct Payment,W2JK36,Third Party Payments          ,Private Contractors           ,EH73,Direct Payments                         ,746.40,22/09/2015,REV,REDACTED
820,Adult Social Care,PS u65 Direct Payments,PD WEST TEAM-Direct Payment,W2JK36,Third Party Payments          ,Private Contractors           ,EH73,Direct Payments                         ,746.40,22/09/2015,REV,REDACTED
821,Adult Social Care,PS u65 Direct Payments,PD EAST TEAM-Direct Payment,W2JJ36,Third Party Payments          ,Private Contractors           ,EH73,Direct Payments                         ,661.05,22/09/2015,REV,REDACTED
822,Adult Social Care,PS u65 Direct Payments,PD EAST TEAM-Direct Payment,W2JJ36,Third Party Payments          ,Private Contractors           ,EH73,Direct Payments                         ,661.05,22/09/2015,REV,REDACTED
823,Adult Social Care,PS u65 Direct Payments,PD EAST TEAM-Direct Payment,W2JJ36,Third Party Payments          ,Private Contractors           ,EH73,Direct Payments                         ,661.05,22/09/2015,REV,REDACTED
824,Adult Social Care,PS u65 Direct Payments,PD EAST TEAM-Direct Payment,W2JJ36,Third Party Payments          ,Private Contractors           ,EH73,Direct Payments                         ,661.05,22/09/2015,REV,REDACTED
825,Adult Social Care,PS u65 Direct Payments,PD EAST TEAM-Direct Payment,W2JJ36,Third Party Payments          ,Private Contractors           ,EH73,Direct Payments                         ,661.05,23/09/2015,REV,REDACTED
